Department,Entity,Date,Transaction Number,GBP Amount,Supplier ,Account Description
FCO,FCO,01-May-13,4291792,52.06,FIELD FISHER WATERHOUSE,Specialist Contractors
FCO,FCO,01-May-13,4291792,"47,204.91",FIELD FISHER WATERHOUSE,Specialist Contractors
FCO,FCO,01-May-13,4291903,"7,242.00",HEWLETT PACKARD LTD,Information Systems Under 3000 (non-capitalised)
FCO,FCO,01-May-13,4291903,"30,884.00",HEWLETT PACKARD LTD,Information Systems Under 3000 (non-capitalised)
FCO,FCO,01-May-13,4291903,"1,448.40",HEWLETT PACKARD LTD,Information Systems Under 3000 (non-capitalised)
FCO,FCO,01-May-13,4291903,"6,176.80",HEWLETT PACKARD LTD,Information Systems Under 3000 (non-capitalised)
FCO,FCO,01-May-13,4291910,"109,671.01",HEWLETT PACKARD LTD,Information Systems Under 3000 (non-capitalised)
FCO,FCO,01-May-13,4291910,"21,934.20",HEWLETT PACKARD LTD,Information Systems Under 3000 (non-capitalised)
FCO,FCO,01-May-13,4290236,"89,709.23",HOME OFFICE,Programme Spend (Oracle Projects Control Account)
FCO,FCO,01-May-13,4280672,"575,356.00",STERIA LTD,IT/IS Consultancy
FCO,FCO,01-May-13,4291834,"30,315.60",SUPPLY 999 LTD TODD RESEARCH LTD,Technical Supplies (Maint)
FCO,FCO,01-May-13,4281531,"29,233.64",FCO SERVICES,Assets Under Construction (Oracle PA Control Account)
FCO,FCO,01-May-13,4281531,"175,737.14",FCO SERVICES,Assets Under Construction (Oracle PA Control Account)
FCO,FCO,01-May-13,4281531,"-29,233.64",FCO SERVICES,Assets Under Construction (Oracle PA Control Account)
FCO,FCO,01-May-13,4281531,"-175,737.14",FCO SERVICES,Assets Under Construction (Oracle PA Control Account)
FCO,FCO,01-May-13,4281531,"3,739.92",FCO SERVICES,Assets Under Construction (Oracle PA Control Account)
FCO,FCO,01-May-13,4281531,"8,297.12",FCO SERVICES,Freight & Customs Clearance Charges
FCO,FCO,01-May-13,4281531,"73,919.19",FCO SERVICES,Post - Air Travel
FCO,FCO,01-May-13,4281531,"119,014.55",FCO SERVICES,Assets Under Construction (Oracle PA Control Account)
FCO,FCO,01-May-13,4281531,"-8,297.12",FCO SERVICES,Freight & Customs Clearance Charges
FCO,FCO,01-May-13,4281531,"1,230.78",FCO SERVICES,Assets Under Construction (Oracle PA Control Account)
FCO,FCO,01-May-13,4281531,"7,066.34",FCO SERVICES,Freight & Customs Clearance Charges
FCO,FCO,01-May-13,4235391,"987,511.23",FCO POSTS,Control a/c only RFR1 B: GIA BBCWS exc Cap grant
FCO,FCO,01-May-13,4235391,"-987,511.23",FCO POSTS,Control a/c only RFR1 B: GIA BBCWS exc Cap grant
FCO,FCO,01-May-13,4235391,"987,511.23",FCO POSTS,Programme Spend (Oracle Projects Control Account)
FCO,FCO,01-May-13,4291822,"108,351.50",M INTEGRATED SOLUTIONS,Inward visits to the UK and UK Conferences
FCO,FCO,01-May-13,4291830,"57,105.19",EIC LTD,Assets Under Construction (Oracle PA Control Account)
FCO,FCO,02-May-13,4292595,"23,352.12",HEWLETT PACKARD LTD,Assets Under Construction (Oracle PA Control Account)
FCO,FCO,02-May-13,4292639,"21,426.60",HEWLETT PACKARD LTD,Assets Under Construction (Oracle PA Control Account)
FCO,FCO,02-May-13,4276267,"2,401.05",INTERSERVE FM LTD,Building Mechanical and Engineering Services
FCO,FCO,02-May-13,4276267,"1,023.56",INTERSERVE FM LTD,Minor New Works <10K
FCO,FCO,02-May-13,4276267,377.29,INTERSERVE FM LTD,Grounds Maintenance
FCO,FCO,02-May-13,4276267,"3,083.55",INTERSERVE FM LTD,Cleaning & Waste
FCO,FCO,02-May-13,4276267,230.81,INTERSERVE FM LTD,Cleaning & Waste
FCO,FCO,02-May-13,4276267,481.7,INTERSERVE FM LTD,Miscellaneous Expenditure: inc subscriptions and equipment maintenance
FCO,FCO,02-May-13,4276267,161.34,INTERSERVE FM LTD,Waste Disposal
FCO,FCO,02-May-13,4276267,"4,401.60",INTERSERVE FM LTD,Reception Services
FCO,FCO,02-May-13,4276267,"2,402.07",INTERSERVE FM LTD,Mail & Porterage Services
FCO,FCO,02-May-13,4276267,"1,100.40",INTERSERVE FM LTD,Office Support Services
FCO,FCO,02-May-13,4276267,137.34,INTERSERVE FM LTD,Estates Management Services
FCO,FCO,02-May-13,4276267,"3,263.30",INTERSERVE FM LTD,Rematching / Reinstatement
FCO,FCO,02-May-13,4276267,"4,270.45",INTERSERVE FM LTD,Contract Fees
FCO,FCO,02-May-13,4288367,"1,328,220.00",MILTON KEYNES COUNCIL,Rates Taxes Non-Residential
FCO,FCO,02-May-13,4292277,"31,526.91",N A MOVING SERVICES LTD,Personal Car Freight
FCO,FCO,02-May-13,4292809,"115,285.86",HEALIX INTERNATIONAL LTD,FCO Healthcare Scheme
FCO,FCO,02-May-13,4292809,"2,243.45",HEALIX INTERNATIONAL LTD,FCO Healthcare Scheme
FCO,FCO,02-May-13,4292809,"23,057.17",HEALIX INTERNATIONAL LTD,FCO Healthcare Scheme
FCO,FCO,02-May-13,4292809,448.69,HEALIX INTERNATIONAL LTD,FCO Healthcare Scheme
FCO,FCO,02-May-13,4292444,"21,195.00",TURNER & TOWNSEND PROPERTY SERVICES,Programme Spend (Oracle Projects Control Account)
FCO,FCO,02-May-13,4292444,"4,239.00",TURNER & TOWNSEND PROPERTY SERVICES,Programme Spend (Oracle Projects Control Account)
FCO,FCO,02-May-13,4293084,"32,902.52",FICCI - FEDERATION OF INDIAN CHAMBERS OF COMMERCE & INDUSTRY,Programme Spend (Oracle Projects Control Account)
FCO,FCO,02-May-13,4290039,466.06,OSLO KEMNERKONTOR,Business Hospitality (former DEE)
FCO,FCO,02-May-13,4292667,"942,097.74",EUROPEAN BANK FOR CONSTRUCTION + DEVELOPMENT,Protocol - General VAT Refunds to Other Organisations
FCO,FCO,02-May-13,4201804,"42,794.72",BRUEGEL AISBL,Programme Spend (Oracle Projects Control Account)
FCO,FCO,03-May-13,4292426,"25,048.41",G4S RISK MANAGEMENT LTD ,Programme Spend (Oracle Projects Control Account)
FCO,FCO,03-May-13,4293501,"64,755.00",CROWN AGENTS,Programme Spend (Oracle Projects Control Account)
FCO,FCO,03-May-13,4293503,"74,241.00",CROWN AGENTS,Programme Spend (Oracle Projects Control Account)
FCO,FCO,03-May-13,4293505,"35,478.00",CROWN AGENTS,Programme Spend (Oracle Projects Control Account)
FCO,FCO,03-May-13,4293353,"26,500.00",ECA INTERNATIONAL,Local Allowances
FCO,FCO,03-May-13,4291714,"73,500.00",SEARCH FOR COMMON GROUND,Programme Spend (Oracle Projects Control Account)
FCO,FCO,03-May-13,4292774,"23,470.00",HERMAN MILLER LTD,Construction Project more than 10k
FCO,FCO,03-May-13,4292774,"4,694.00",HERMAN MILLER LTD,Construction Project more than 10k
FCO,FCO,03-May-13,4292028,"33,456.00",CONFEDERATION OF INDIAN INDUSTRY,Programme Spend (Oracle Projects Control Account)
FCO,FCO,03-May-13,4282074,"1,800,000.00",ISLAMIC REPUBLIC OF AFGHANISTAN MINISTRY OF FINANCE,Programme Spend (Oracle Projects Control Account)
FCO,FCO,03-May-13,4284133,"27,442.20",INSTITUTE FOR SUSTAINABLE COMMUNITIES,Programme Spend (Oracle Projects Control Account)
FCO,FCO,03-May-13,4291505,"56,354.11",VENTURE LAO PTE CO LTD,Assets Under Construction (Oracle PA Control Account)
FCO,FCO,03-May-13,4292575,"38,401.96",N2 GROUP LLC,Programme Spend (Oracle Projects Control Account)
FCO,FCO,03-May-13,4292584,"32,270.56",CYBERLEASE LLC,Legal Consultancy
FCO,FCO,03-May-13,4293657,"24,165.00",2 HARE COURT,Legal Consultancy
FCO,FCO,05-May-13,4292162,"67,961.79",CRIMINAL JUSTICE TASK FORCE - CJTF,Programme Spend (Oracle Projects Control Account)
FCO,FCO,06-May-13,4294549,134.23,INTERSERVE FM LTD,FM Interserve Building Fabric Maintenance
FCO,FCO,06-May-13,4294549,"257,771.07",INTERSERVE FM LTD,Construction Project more than 10k
FCO,FCO,06-May-13,4294549,705.25,INTERSERVE FM LTD,Construction Project more than 10k
FCO,FCO,06-May-13,4294549,149.94,INTERSERVE FM LTD,GH/VIP Grant in Aid
FCO,FCO,06-May-13,4294549,29.99,INTERSERVE FM LTD,GH/VIP Grant in Aid
FCO,FCO,06-May-13,4294549,-134.23,INTERSERVE FM LTD,FM Interserve Building Fabric Maintenance
FCO,FCO,06-May-13,4294549,134.23,INTERSERVE FM LTD,FM Interserve Building Fabric Maintenance
FCO,FCO,06-May-13,4294438,"69,000.00",ROYAL UNITED SERVICES INSTITUTE FOR DEFENCE & SECURITY STUDIES,Programme Spend (Oracle Projects Control Account)
FCO,FCO,06-May-13,4292335,"178,845.73",845 THIRD LP,Rental Payments - non residential
FCO,FCO,06-May-13,4292335,"2,167.63",845 THIRD LP,Electricity Non-Residential
FCO,FCO,06-May-13,4292437,"34,559.44",DE95LLC  LANDMARK II,Rental Payments - non residential
FCO,FCO,06-May-13,4292437,"2,311.22",DE95LLC  LANDMARK II,Rental Payments - non residential
FCO,FCO,06-May-13,4254726,"62,064.00",CBRE LTD,Residential Property Services
FCO,FCO,06-May-13,4254726,"-62,064.00",CBRE LTD,Residential Property Services
FCO,FCO,06-May-13,4254726,"75,097.44",CBRE LTD,Residential Property Services
FCO,FCO,06-May-13,4294445,"100,320.00",TSAMOTA LTD,Programme Spend (Oracle Projects Control Account)
FCO,FCO,06-May-13,4266133,"89,635.00",BINOCULARS UK LTD,Programme Spend (Oracle Projects Control Account)
FCO,FCO,06-May-13,4266133,"-89,635.00",BINOCULARS UK LTD,Programme Spend (Oracle Projects Control Account)
FCO,FCO,06-May-13,4266133,"89,635.00",BINOCULARS UK LTD,Programme Spend (Oracle Projects Control Account)
FCO,FCO,06-May-13,4266133,"17,927.00",BINOCULARS UK LTD,Programme Spend (Oracle Projects Control Account)
FCO,FCO,06-May-13,4294024,"31,403.26",MANMOHANSINGH SETHI & AVNASH SETHI,Property Maintenance Overseas Residential
FCO,FCO,06-May-13,4294024,"-31,403.26",MANMOHANSINGH SETHI & AVNASH SETHI,Property Maintenance Overseas Residential
FCO,FCO,07-May-13,4296394,"51,009.63",BRITISH COUNCIL,Programme Spend (Oracle Projects Control Account)
FCO,FCO,07-May-13,4295384,439.61,LUMINUS,Electricity Residential
FCO,FCO,07-May-13,4295384,"1,089.03",LUMINUS,Electricity Non-Residential
FCO,FCO,07-May-13,4295384,399.93,LUMINUS,Gas Residential
FCO,FCO,07-May-13,4295384,"1,818.64",LUMINUS,Gas Non-Residential
FCO,FCO,07-May-13,4295384,192.78,LUMINUS,Electricity Residential
FCO,FCO,07-May-13,4295384,"1,212.48",LUMINUS,Electricity Non-Residential
FCO,FCO,07-May-13,4295384,330.6,LUMINUS,Gas Residential
FCO,FCO,07-May-13,4295384,209.69,LUMINUS,Gas Non-Residential
FCO,FCO,07-May-13,4295384,"1,350.60",LUMINUS,Electricity Residential
FCO,FCO,07-May-13,4295384,"3,532.32",LUMINUS,Gas Residential
FCO,FCO,07-May-13,4295384,"5,991.27",LUMINUS,Electricity Residential
FCO,FCO,07-May-13,4295384,"5,745.63",LUMINUS,Electricity Non-Residential
FCO,FCO,07-May-13,4295384,"13,463.16",LUMINUS,Gas Residential
FCO,FCO,07-May-13,4295384,"1,256.95",LUMINUS,Gas Non-Residential
FCO,FCO,07-May-13,4295384,"-5,991.27",LUMINUS,Electricity Residential
FCO,FCO,07-May-13,4295384,"-13,463.16",LUMINUS,Gas Residential
FCO,FCO,07-May-13,4295384,"1,349.07",LUMINUS,Electricity Residential
FCO,FCO,07-May-13,4295384,"4,642.19",LUMINUS,Electricity Residential
FCO,FCO,07-May-13,4295384,"4,910.24",LUMINUS,Gas Residential
FCO,FCO,07-May-13,4295384,"8,552.92",LUMINUS,Gas Residential
FCO,FCO,07-May-13,4293973,"60,977.13",HARIS ENTERPRISES PVT LTD,Local Guards
FCO,FCO,07-May-13,4292730,"166,074.55",TORRE ESPACIO GESTION SL,Rental Payments - non residential
FCO,FCO,07-May-13,4292730,"1,335.66",TORRE ESPACIO GESTION SL,Official Transport Receipts
FCO,FCO,07-May-13,4292730,"-1,335.66",TORRE ESPACIO GESTION SL,Official Transport Receipts
FCO,FCO,08-May-13,4292663,"297,733.45",ADAM SMITH INTERNATIONAL,Programme Spend (Oracle Projects Control Account)
FCO,FCO,08-May-13,4292180,525.95,BRITISH TELECOM  PLC,Telephone Call Charges
FCO,FCO,08-May-13,4292180,37.91,BRITISH TELECOM  PLC,Telephone line and equipment rental charges
FCO,FCO,08-May-13,4292180,865.42,BRITISH TELECOM  PLC,Telephone Call Charges
FCO,FCO,08-May-13,4292180,"6,851.59",BRITISH TELECOM  PLC,Telephone line and equipment rental charges
FCO,FCO,08-May-13,4292180,128.67,BRITISH TELECOM  PLC,Telephone line and equipment rental charges
FCO,FCO,08-May-13,4292180,226.52,BRITISH TELECOM  PLC,Telephone line and equipment rental charges
FCO,FCO,08-May-13,4292180,245.16,BRITISH TELECOM  PLC,Telephone Call Charges
FCO,FCO,08-May-13,4292180,244.46,BRITISH TELECOM  PLC,Telephone line and equipment rental charges
FCO,FCO,08-May-13,4292180,890.28,BRITISH TELECOM  PLC,Telephone Call Charges
FCO,FCO,08-May-13,4292180,"12,005.83",BRITISH TELECOM  PLC,Telephone Call Charges
FCO,FCO,08-May-13,4292180,291.5,BRITISH TELECOM  PLC,Telephone Call Charges
FCO,FCO,08-May-13,4292180,283.68,BRITISH TELECOM  PLC,Mobile Telephone Equipment
FCO,FCO,08-May-13,4292180,827.36,BRITISH TELECOM  PLC,Mobile Telephone Equipment
FCO,FCO,08-May-13,4292180,"1,216.56",BRITISH TELECOM  PLC,Telephone line and equipment rental charges
FCO,FCO,08-May-13,4292180,262.91,BRITISH TELECOM  PLC,Telephone Call Charges
FCO,FCO,08-May-13,4292180,304.8,BRITISH TELECOM  PLC,Telephone Call Charges
FCO,FCO,08-May-13,4292180,63.45,BRITISH TELECOM  PLC,Telephone Call Charges
FCO,FCO,08-May-13,4292180,"79,432.43",BRITISH TELECOM  PLC,Telephone line and equipment rental charges
FCO,FCO,08-May-13,4292180,713.22,BRITISH TELECOM  PLC,Telephone line and equipment rental charges
FCO,FCO,08-May-13,4292180,544.64,BRITISH TELECOM  PLC,Telephone line and equipment rental charges
FCO,FCO,08-May-13,4292180,"17,705.69",BRITISH TELECOM  PLC,Telephone line and equipment rental charges
FCO,FCO,08-May-13,4292180,54.15,BRITISH TELECOM  PLC,Telephone Call Charges
FCO,FCO,08-May-13,4292180,37.91,BRITISH TELECOM  PLC,Telephone Call Charges
FCO,FCO,08-May-13,4292180,418.85,BRITISH TELECOM  PLC,Telephone Call Charges
FCO,FCO,08-May-13,4292180,558.57,BRITISH TELECOM  PLC,Sundries
FCO,FCO,08-May-13,4292180,164.18,BRITISH TELECOM  PLC,Telephone Call Charges
FCO,FCO,08-May-13,4292180,702.3,BRITISH TELECOM  PLC,Telephone Call Charges
FCO,FCO,08-May-13,4292180,222.21,BRITISH TELECOM  PLC,Mobile Telephone Equipment
FCO,FCO,08-May-13,4292180,105.19,BRITISH TELECOM  PLC,Telephone Call Charges
FCO,FCO,08-May-13,4292180,48.89,BRITISH TELECOM  PLC,Telephone line and equipment rental charges
FCO,FCO,08-May-13,4292180,32.84,BRITISH TELECOM  PLC,Telephone Call Charges
FCO,FCO,08-May-13,4292180,7.58,BRITISH TELECOM  PLC,Telephone Call Charges
FCO,FCO,08-May-13,4292180,49.03,BRITISH TELECOM  PLC,Telephone Call Charges
FCO,FCO,08-May-13,4292180,58.3,BRITISH TELECOM  PLC,Telephone Call Charges
FCO,FCO,08-May-13,4292180,"1,370.32",BRITISH TELECOM  PLC,Telephone line and equipment rental charges
FCO,FCO,08-May-13,4292180,243.31,BRITISH TELECOM  PLC,Telephone line and equipment rental charges
FCO,FCO,08-May-13,4292180,313.54,BRITISH TELECOM  PLC,Telephone Call Charges
FCO,FCO,08-May-13,4292180,78.61,BRITISH TELECOM  PLC,Telephone line and equipment rental charges
FCO,FCO,08-May-13,4292180,"2,401.17",BRITISH TELECOM  PLC,Telephone Call Charges
FCO,FCO,08-May-13,4292180,188.89,BRITISH TELECOM  PLC,Telephone Call Charges
FCO,FCO,08-May-13,4292180,52.58,BRITISH TELECOM  PLC,Telephone Call Charges
FCO,FCO,08-May-13,4292180,144.73,BRITISH TELECOM  PLC,Telephone Call Charges
FCO,FCO,08-May-13,4292180,12.69,BRITISH TELECOM  PLC,Telephone Call Charges
FCO,FCO,08-May-13,4292180,111.71,BRITISH TELECOM  PLC,Sundries
FCO,FCO,08-May-13,4292180,"3,213.27",BRITISH TELECOM  PLC,Telephone Call Charges
FCO,FCO,08-May-13,4292180,"2,050.06",BRITISH TELECOM  PLC,Telephone line and equipment rental charges
FCO,FCO,08-May-13,4292180,138,BRITISH TELECOM  PLC,Telephone Call Charges
FCO,FCO,08-May-13,4292180,"3,803.36",BRITISH TELECOM  PLC,Telephone line and equipment rental charges
FCO,FCO,08-May-13,4292180,245.67,BRITISH TELECOM  PLC,Telephone Call Charges
FCO,FCO,08-May-13,4292180,478.54,BRITISH TELECOM  PLC,Telephone line and equipment rental charges
FCO,FCO,08-May-13,4292180,642.65,BRITISH TELECOM  PLC,Telephone Call Charges
FCO,FCO,08-May-13,4292180,760.67,BRITISH TELECOM  PLC,Telephone line and equipment rental charges
FCO,FCO,08-May-13,4292180,410.01,BRITISH TELECOM  PLC,Telephone line and equipment rental charges
FCO,FCO,08-May-13,4292180,49.13,BRITISH TELECOM  PLC,Telephone Call Charges
FCO,FCO,08-May-13,4292180,27.6,BRITISH TELECOM  PLC,Telephone Call Charges
FCO,FCO,08-May-13,4292180,0.01,BRITISH TELECOM  PLC,Telephone Call Charges
FCO,FCO,08-May-13,4292180,-525.95,BRITISH TELECOM  PLC,Telephone Call Charges
FCO,FCO,08-May-13,4292180,525.95,BRITISH TELECOM  PLC,Telephone Call Charges
FCO,FCO,08-May-13,4292180,-105.19,BRITISH TELECOM  PLC,Telephone Call Charges
FCO,FCO,08-May-13,4292180,105.19,BRITISH TELECOM  PLC,Telephone Call Charges
FCO,FCO,08-May-13,4292180,"-79,432.43",BRITISH TELECOM  PLC,Telephone line and equipment rental charges
FCO,FCO,08-May-13,4292180,-713.22,BRITISH TELECOM  PLC,Telephone line and equipment rental charges
FCO,FCO,08-May-13,4292180,-544.64,BRITISH TELECOM  PLC,Telephone line and equipment rental charges
FCO,FCO,08-May-13,4292180,"-17,705.69",BRITISH TELECOM  PLC,Telephone line and equipment rental charges
FCO,FCO,08-May-13,4292180,-478.54,BRITISH TELECOM  PLC,Telephone line and equipment rental charges
FCO,FCO,08-May-13,4292180,"4,000.00",BRITISH TELECOM  PLC,Telephone line and equipment rental charges
FCO,FCO,08-May-13,4292180,"94,874.52",BRITISH TELECOM  PLC,Telephone line and equipment rental charges
FCO,FCO,08-May-13,4292180,-37.91,BRITISH TELECOM  PLC,Telephone line and equipment rental charges
FCO,FCO,08-May-13,4292180,-128.67,BRITISH TELECOM  PLC,Telephone line and equipment rental charges
FCO,FCO,08-May-13,4292180,-226.52,BRITISH TELECOM  PLC,Telephone line and equipment rental charges
FCO,FCO,08-May-13,4292180,-78.61,BRITISH TELECOM  PLC,Telephone line and equipment rental charges
FCO,FCO,08-May-13,4292180,393.1,BRITISH TELECOM  PLC,Telephone line and equipment rental charges
FCO,FCO,08-May-13,4292180,78.62,BRITISH TELECOM  PLC,Telephone line and equipment rental charges
FCO,FCO,08-May-13,4292180,"-12,005.83",BRITISH TELECOM  PLC,Telephone Call Charges
FCO,FCO,08-May-13,4292180,"12,005.83",BRITISH TELECOM  PLC,Telephone Call Charges
FCO,FCO,08-May-13,4292180,"-2,401.17",BRITISH TELECOM  PLC,Telephone Call Charges
FCO,FCO,08-May-13,4292180,"2,401.17",BRITISH TELECOM  PLC,Telephone Call Charges
FCO,FCO,08-May-13,4292251,"564,681.00",DEFENCE BUSINESS SERVICES FINANCE,Programme Spend (Oracle Projects Control Account)
FCO,FCO,08-May-13,4294405,"59,545.74",GOVERNMENT PROCUREMENT SERVICE,Wdhs/Wsds
FCO,FCO,08-May-13,4294406,"160,577.60",GOVERNMENT PROCUREMENT SERVICE,Wdhs/Wsds
FCO,FCO,08-May-13,4294409,"64,865.39",GOVERNMENT PROCUREMENT SERVICE,Wdhs/Wsds
FCO,FCO,08-May-13,4293585,"4,984.31",FCO SERVICES,Assets Under Construction (Oracle PA Control Account)
FCO,FCO,08-May-13,4293585,"28,081.58",FCO SERVICES,Assets Under Construction (Oracle PA Control Account)
FCO,FCO,08-May-13,4293585,"12,777.42",FCO SERVICES,Assets Under Construction (Oracle PA Control Account)
FCO,FCO,08-May-13,4292777,"36,705.28",NATIONAL AUDIT OFFICE,Programme Spend (Oracle Projects Control Account)
FCO,FCO,08-May-13,4297984,180.31,SOCIAL INSURANCE ORGANISATION,Programme Spend (Oracle Projects Control Account)
FCO,FCO,08-May-13,4296799,"42,844.70",UK VISA APPLICATION CENTRE-SHANGHAI,Commercial Partners (Visa)
FCO,FCO,08-May-13,4296808,"41,798.11",UK VISA APPLICATION CENTRE-SHANGHAI,Commercial Partners (Visa)
FCO,FCO,08-May-13,4296813,"41,370.84",UK VISA APPLICATION CENTRE-SHANGHAI,Commercial Partners (Visa)
FCO,FCO,08-May-13,4296816,"39,557.76",UK VISA APPLICATION CENTRE-SHANGHAI,Commercial Partners (Visa)
FCO,FCO,08-May-13,4296871,"25,245.89",IA MEMO RU,Programme Spend (Oracle Projects Control Account)
FCO,FCO,08-May-13,4279066,434.94,ISS FACILITY SERVICES LTD FCO OP,Contract Fees
FCO,FCO,08-May-13,4279066,"34,843.23",ISS FACILITY SERVICES LTD FCO OP,Contract Fees
FCO,FCO,08-May-13,4279066,"1,452.76",ISS FACILITY SERVICES LTD FCO OP,Reception Services
FCO,FCO,08-May-13,4279066,672.15,ISS FACILITY SERVICES LTD FCO OP,Miscellaneous Expenditure: inc subscriptions and equipment maintenance
FCO,FCO,08-May-13,4279066,"12,267.61",ISS FACILITY SERVICES LTD FCO OP,Manned Guarding Services
FCO,FCO,08-May-13,4279066,"7,502.05",ISS FACILITY SERVICES LTD FCO OP,Cleaning & Waste
FCO,FCO,08-May-13,4279066,"2,014.06",ISS FACILITY SERVICES LTD FCO OP,Office Support Services
FCO,FCO,08-May-13,4279066,"2,070.87",ISS FACILITY SERVICES LTD FCO OP,Repair and maintenance of furniture and fittings
FCO,FCO,08-May-13,4279066,"2,342.00",ISS FACILITY SERVICES LTD FCO OP,Mail & Porterage Services
FCO,FCO,08-May-13,4279066,393.51,ISS FACILITY SERVICES LTD FCO OP,Grounds Maintenance
FCO,FCO,08-May-13,4279066,"3,646.13",ISS FACILITY SERVICES LTD FCO OP,Building Fabric Services
FCO,FCO,08-May-13,4279066,"50,363.61",ISS FACILITY SERVICES LTD FCO OP,Contract Fees
FCO,FCO,08-May-13,4279066,"19,357.62",ISS FACILITY SERVICES LTD FCO OP,Building Mechanical and Engineering Services
FCO,FCO,08-May-13,4279066,370.81,ISS FACILITY SERVICES LTD FCO OP,Contract Fees
FCO,FCO,08-May-13,4279066,"1,304.95",ISS FACILITY SERVICES LTD FCO OP,Contract Fees
FCO,FCO,08-May-13,4279066,843.91,ISS FACILITY SERVICES LTD FCO OP,Contract Fees
FCO,FCO,08-May-13,4279066,"1,871.02",ISS FACILITY SERVICES LTD FCO OP,Contract Fees
FCO,FCO,08-May-13,4279066,500.13,ISS FACILITY SERVICES LTD FCO OP,Contract Fees
FCO,FCO,08-May-13,4279066,"1,957.27",ISS FACILITY SERVICES LTD FCO OP,Contract Fees
FCO,FCO,08-May-13,4279066,"9,862.20",ISS FACILITY SERVICES LTD FCO OP,Unscheduled repairs to building infrastructure
FCO,FCO,08-May-13,4279066,"2,364.99",ISS FACILITY SERVICES LTD FCO OP,Residential Property Services
FCO,FCO,08-May-13,4279067,"1,402.84",ISS FACILITY SERVICES LTD FCO OP,Contract Fees
FCO,FCO,08-May-13,4279067,375.45,ISS FACILITY SERVICES LTD FCO OP,Contract Fees
FCO,FCO,08-May-13,4279067,750.9,ISS FACILITY SERVICES LTD FCO OP,Contract Fees
FCO,FCO,08-May-13,4279067,283.7,ISS FACILITY SERVICES LTD FCO OP,Miscellaneous Expenditure: inc subscriptions and equipment maintenance
FCO,FCO,08-May-13,4279067,"40,980.99",ISS FACILITY SERVICES LTD FCO OP,Manned Guarding Services
FCO,FCO,08-May-13,4279067,"11,330.62",ISS FACILITY SERVICES LTD FCO OP,Cleaning & Waste
FCO,FCO,08-May-13,4279067,"2,986.08",ISS FACILITY SERVICES LTD FCO OP,Office Support Services
FCO,FCO,08-May-13,4279067,256.85,ISS FACILITY SERVICES LTD FCO OP,Repair and maintenance of furniture and fittings
FCO,FCO,08-May-13,4279067,"3,694.84",ISS FACILITY SERVICES LTD FCO OP,Contract Fees
FCO,FCO,08-May-13,4279067,"1,662.65",ISS FACILITY SERVICES LTD FCO OP,Contract Fees
FCO,FCO,08-May-13,4279067,"1,017.57",ISS FACILITY SERVICES LTD FCO OP,Contract Fees
FCO,FCO,08-May-13,4279067,"9,049.57",ISS FACILITY SERVICES LTD FCO OP,Unscheduled repairs to building infrastructure
FCO,FCO,08-May-13,4279067,128.42,ISS FACILITY SERVICES LTD FCO OP,Residential Property Services
FCO,FCO,08-May-13,4279067,"2,729.23",ISS FACILITY SERVICES LTD FCO OP,Reception Services
FCO,FCO,08-May-13,4279067,"5,745.75",ISS FACILITY SERVICES LTD FCO OP,Grounds Maintenance
FCO,FCO,08-May-13,4279067,"17,884.89",ISS FACILITY SERVICES LTD FCO OP,Building Mechanical and Engineering Services
FCO,FCO,08-May-13,4279067,"1,007.76",ISS FACILITY SERVICES LTD FCO OP,Contract Fees
FCO,FCO,08-May-13,4279067,70.14,ISS FACILITY SERVICES LTD FCO OP,Contract Fees
FCO,FCO,08-May-13,4279067,18.77,ISS FACILITY SERVICES LTD FCO OP,Contract Fees
FCO,FCO,08-May-13,4279067,37.55,ISS FACILITY SERVICES LTD FCO OP,Contract Fees
FCO,FCO,08-May-13,4279067,14.19,ISS FACILITY SERVICES LTD FCO OP,Miscellaneous Expenditure: inc subscriptions and equipment maintenance
FCO,FCO,08-May-13,4279067,"2,049.05",ISS FACILITY SERVICES LTD FCO OP,Manned Guarding Services
FCO,FCO,08-May-13,4279067,566.53,ISS FACILITY SERVICES LTD FCO OP,Cleaning & Waste
FCO,FCO,08-May-13,4279067,149.3,ISS FACILITY SERVICES LTD FCO OP,Office Support Services
FCO,FCO,08-May-13,4279067,12.84,ISS FACILITY SERVICES LTD FCO OP,Repair and maintenance of furniture and fittings
FCO,FCO,08-May-13,4279067,184.74,ISS FACILITY SERVICES LTD FCO OP,Contract Fees
FCO,FCO,08-May-13,4279067,83.13,ISS FACILITY SERVICES LTD FCO OP,Contract Fees
FCO,FCO,08-May-13,4279067,50.88,ISS FACILITY SERVICES LTD FCO OP,Contract Fees
FCO,FCO,08-May-13,4279067,452.48,ISS FACILITY SERVICES LTD FCO OP,Unscheduled repairs to building infrastructure
FCO,FCO,08-May-13,4279067,6.42,ISS FACILITY SERVICES LTD FCO OP,Residential Property Services
FCO,FCO,08-May-13,4279067,136.46,ISS FACILITY SERVICES LTD FCO OP,Reception Services
FCO,FCO,08-May-13,4279067,287.29,ISS FACILITY SERVICES LTD FCO OP,Grounds Maintenance
FCO,FCO,08-May-13,4279067,894.24,ISS FACILITY SERVICES LTD FCO OP,Building Mechanical and Engineering Services
FCO,FCO,08-May-13,4279067,50.39,ISS FACILITY SERVICES LTD FCO OP,Contract Fees
FCO,FCO,08-May-13,4279068,"2,959.64",ISS FACILITY SERVICES LTD FCO OP,Building Fabric Services
FCO,FCO,08-May-13,4279068,"1,747.82",ISS FACILITY SERVICES LTD FCO OP,Reception Services
FCO,FCO,08-May-13,4279068,"3,254.63",ISS FACILITY SERVICES LTD FCO OP,Miscellaneous Expenditure: inc subscriptions and equipment maintenance
FCO,FCO,08-May-13,4279068,"39,974.77",ISS FACILITY SERVICES LTD FCO OP,Manned Guarding Services
FCO,FCO,08-May-13,4279068,"2,783.32",ISS FACILITY SERVICES LTD FCO OP,Cleaning & Waste
FCO,FCO,08-May-13,4279068,957.14,ISS FACILITY SERVICES LTD FCO OP,Office Support Services
FCO,FCO,08-May-13,4279068,785.69,ISS FACILITY SERVICES LTD FCO OP,Repair and maintenance of furniture and fittings
FCO,FCO,08-May-13,4279068,"1,476.50",ISS FACILITY SERVICES LTD FCO OP,Mail & Porterage Services
FCO,FCO,08-May-13,4279068,"5,121.74",ISS FACILITY SERVICES LTD FCO OP,Grounds Maintenance
FCO,FCO,08-May-13,4279068,667.02,ISS FACILITY SERVICES LTD FCO OP,Contract Fees
FCO,FCO,08-May-13,4279068,"9,129.53",ISS FACILITY SERVICES LTD FCO OP,Building Mechanical and Engineering Services
FCO,FCO,08-May-13,4279068,"20,289.26",ISS FACILITY SERVICES LTD FCO OP,Contract Fees
FCO,FCO,08-May-13,4279068,867.96,ISS FACILITY SERVICES LTD FCO OP,Contract Fees
FCO,FCO,08-May-13,4279068,433.98,ISS FACILITY SERVICES LTD FCO OP,Contract Fees
FCO,FCO,08-May-13,4279068,"1,101.00",ISS FACILITY SERVICES LTD FCO OP,Contract Fees
FCO,FCO,08-May-13,4279068,433.98,ISS FACILITY SERVICES LTD FCO OP,Contract Fees
FCO,FCO,08-May-13,4279068,"1,301.94",ISS FACILITY SERVICES LTD FCO OP,Contract Fees
FCO,FCO,08-May-13,4279068,"6,285.23",ISS FACILITY SERVICES LTD FCO OP,Unscheduled repairs to building infrastructure
FCO,FCO,08-May-13,4279068,"2,426.97",ISS FACILITY SERVICES LTD FCO OP,Residential Property Services
FCO,FCO,08-May-13,4279068,207.17,ISS FACILITY SERVICES LTD FCO OP,Building Fabric Services
FCO,FCO,08-May-13,4279068,122.35,ISS FACILITY SERVICES LTD FCO OP,Reception Services
FCO,FCO,08-May-13,4279068,227.83,ISS FACILITY SERVICES LTD FCO OP,Miscellaneous Expenditure: inc subscriptions and equipment maintenance
FCO,FCO,08-May-13,4279068,"2,798.23",ISS FACILITY SERVICES LTD FCO OP,Manned Guarding Services
FCO,FCO,08-May-13,4279068,194.83,ISS FACILITY SERVICES LTD FCO OP,Cleaning & Waste
FCO,FCO,08-May-13,4279068,67,ISS FACILITY SERVICES LTD FCO OP,Office Support Services
FCO,FCO,08-May-13,4279068,55,ISS FACILITY SERVICES LTD FCO OP,Repair and maintenance of furniture and fittings
FCO,FCO,08-May-13,4279068,103.35,ISS FACILITY SERVICES LTD FCO OP,Mail & Porterage Services
FCO,FCO,08-May-13,4279068,358.52,ISS FACILITY SERVICES LTD FCO OP,Grounds Maintenance
FCO,FCO,08-May-13,4279068,46.69,ISS FACILITY SERVICES LTD FCO OP,Contract Fees
FCO,FCO,08-May-13,4279068,639.07,ISS FACILITY SERVICES LTD FCO OP,Building Mechanical and Engineering Services
FCO,FCO,08-May-13,4279068,"1,420.25",ISS FACILITY SERVICES LTD FCO OP,Contract Fees
FCO,FCO,08-May-13,4279068,60.76,ISS FACILITY SERVICES LTD FCO OP,Contract Fees
FCO,FCO,08-May-13,4279068,30.38,ISS FACILITY SERVICES LTD FCO OP,Contract Fees
FCO,FCO,08-May-13,4279068,77.07,ISS FACILITY SERVICES LTD FCO OP,Contract Fees
FCO,FCO,08-May-13,4279068,30.38,ISS FACILITY SERVICES LTD FCO OP,Contract Fees
FCO,FCO,08-May-13,4279068,91.13,ISS FACILITY SERVICES LTD FCO OP,Contract Fees
FCO,FCO,08-May-13,4279068,439.96,ISS FACILITY SERVICES LTD FCO OP,Unscheduled repairs to building infrastructure
FCO,FCO,08-May-13,4279068,169.89,ISS FACILITY SERVICES LTD FCO OP,Residential Property Services
FCO,FCO,08-May-13,4287010,219.84,ISS FACILITY SERVICES LTD FCO OP,FM Interserve Cleaning
FCO,FCO,08-May-13,4287010,332.4,ISS FACILITY SERVICES LTD FCO OP,FM Interserve BES Maintenance
FCO,FCO,08-May-13,4287010,"14,594.61",ISS FACILITY SERVICES LTD FCO OP,FM Interserve BES Maintenance
FCO,FCO,08-May-13,4287010,211.37,ISS FACILITY SERVICES LTD FCO OP,FM Interserve BES Maintenance
FCO,FCO,08-May-13,4287010,232.68,ISS FACILITY SERVICES LTD FCO OP,FM Interserve BES Maintenance
FCO,FCO,08-May-13,4287010,"7,880.34",ISS FACILITY SERVICES LTD FCO OP,FM Interserve BES Maintenance
FCO,FCO,08-May-13,4287010,202.15,ISS FACILITY SERVICES LTD FCO OP,FM Interserve Cleaning
FCO,FCO,08-May-13,4287010,209.73,ISS FACILITY SERVICES LTD FCO OP,FM Interserve Cleaning
FCO,FCO,08-May-13,4287010,"5,340.49",ISS FACILITY SERVICES LTD FCO OP,FM Interserve BES Maintenance
FCO,FCO,08-May-13,4287010,209.73,ISS FACILITY SERVICES LTD FCO OP,FM Interserve Cleaning
FCO,FCO,08-May-13,4287010,287.22,ISS FACILITY SERVICES LTD FCO OP,FM Interserve Cleaning
FCO,FCO,08-May-13,4287010,"1,905.64",ISS FACILITY SERVICES LTD FCO OP,FM Interserve BES Maintenance
FCO,FCO,08-May-13,4287010,409.1,ISS FACILITY SERVICES LTD FCO OP,FM Interserve BES Maintenance
FCO,FCO,08-May-13,4287010,"4,619.45",ISS FACILITY SERVICES LTD FCO OP,FM Interserve BES Maintenance
FCO,FCO,08-May-13,4287010,562.52,ISS FACILITY SERVICES LTD FCO OP,FM Interserve BES Maintenance
FCO,FCO,08-May-13,4287010,"26,807.81",ISS FACILITY SERVICES LTD FCO OP,FM Interserve BES Maintenance
FCO,FCO,08-May-13,4287010,"1,039.80",ISS FACILITY SERVICES LTD FCO OP,FM Interserve BES Maintenance
FCO,FCO,08-May-13,4287010,"1,329.58",ISS FACILITY SERVICES LTD FCO OP,FM Interserve BES Maintenance
FCO,FCO,08-May-13,4287010,"1,610.84",ISS FACILITY SERVICES LTD FCO OP,FM Interserve BES Maintenance
FCO,FCO,08-May-13,4287010,"76,432.29",ISS FACILITY SERVICES LTD FCO OP,FM Interserve BES Maintenance
FCO,FCO,08-May-13,4287010,473.02,ISS FACILITY SERVICES LTD FCO OP,FM Interserve BES Maintenance
FCO,FCO,08-May-13,4287010,137.58,ISS FACILITY SERVICES LTD FCO OP,FM Interserve BES Maintenance
FCO,FCO,08-May-13,4287010,"13,777.21",ISS FACILITY SERVICES LTD FCO OP,FM Interserve BES Maintenance
FCO,FCO,08-May-13,4287010,"47,332.92",ISS FACILITY SERVICES LTD FCO OP,FM Interserve BES Maintenance
FCO,FCO,08-May-13,4287010,"1,491.52",ISS FACILITY SERVICES LTD FCO OP,FM Interserve BES Maintenance
FCO,FCO,08-May-13,4287010,"1,943.24",ISS FACILITY SERVICES LTD FCO OP,FM Interserve BES Maintenance
FCO,FCO,08-May-13,4287010,"1,835.25",ISS FACILITY SERVICES LTD FCO OP,FM Interserve BES Maintenance
FCO,FCO,08-May-13,4287011,"4,414.56",ISS FACILITY SERVICES LTD FCO OP,FM Interserve BES Maintenance
FCO,FCO,08-May-13,4287011,"14,995.42",ISS FACILITY SERVICES LTD FCO OP,FM Interserve BES Maintenance
FCO,FCO,08-May-13,4287011,764.91,ISS FACILITY SERVICES LTD FCO OP,FM Interserve BES Maintenance
FCO,FCO,08-May-13,4287011,"2,424.17",ISS FACILITY SERVICES LTD FCO OP,FM Interserve BES Maintenance
FCO,FCO,08-May-13,4287011,366.76,ISS FACILITY SERVICES LTD FCO OP,FM Interserve BES Maintenance
FCO,FCO,08-May-13,4287011,75.59,ISS FACILITY SERVICES LTD FCO OP,FM Interserve BES Maintenance
FCO,FCO,08-May-13,4287011,330.88,ISS FACILITY SERVICES LTD FCO OP,FM Interserve BES Maintenance
FCO,FCO,08-May-13,4287011,"2,692.11",ISS FACILITY SERVICES LTD FCO OP,FM Interserve BES Maintenance
FCO,FCO,08-May-13,4287011,"66,727.36",ISS FACILITY SERVICES LTD FCO OP,FM Interserve BES Maintenance
FCO,FCO,08-May-13,4287011,"4,185.78",ISS FACILITY SERVICES LTD FCO OP,FM Interserve BES Maintenance
FCO,FCO,08-May-13,4287011,73.69,ISS FACILITY SERVICES LTD FCO OP,FM Interserve BES Maintenance
FCO,FCO,08-May-13,4287011,162.13,ISS FACILITY SERVICES LTD FCO OP,FM Interserve BES Maintenance
FCO,FCO,08-May-13,4287011,82.5,ISS FACILITY SERVICES LTD FCO OP,FM Interserve BES Maintenance
FCO,FCO,08-May-13,4287011,150.23,ISS FACILITY SERVICES LTD FCO OP,FM Interserve BES Maintenance
FCO,FCO,08-May-13,4287011,"9,774.41",ISS FACILITY SERVICES LTD FCO OP,FM Interserve BES Maintenance
FCO,FCO,08-May-13,4287011,279.29,ISS FACILITY SERVICES LTD FCO OP,FM Interserve BES Maintenance
FCO,FCO,08-May-13,4287011,97.11,ISS FACILITY SERVICES LTD FCO OP,FM Interserve Cleaning
FCO,FCO,08-May-13,4287011,106.16,ISS FACILITY SERVICES LTD FCO OP,FM Interserve Cleaning
FCO,FCO,08-May-13,4287011,892.79,ISS FACILITY SERVICES LTD FCO OP,FM Interserve BES Maintenance
FCO,FCO,08-May-13,4287011,"1,045.95",ISS FACILITY SERVICES LTD FCO OP,FM Interserve BES Maintenance
FCO,FCO,08-May-13,4287011,349.85,ISS FACILITY SERVICES LTD FCO OP,FM Interserve BES Maintenance
FCO,FCO,08-May-13,4287011,640.27,ISS FACILITY SERVICES LTD FCO OP,FM Interserve BES Maintenance
FCO,FCO,08-May-13,4287011,574.54,ISS FACILITY SERVICES LTD FCO OP,FM Interserve BES Maintenance
FCO,FCO,08-May-13,4287011,156.46,ISS FACILITY SERVICES LTD FCO OP,FM Interserve BES Maintenance
FCO,FCO,08-May-13,4287011,"2,409.55",ISS FACILITY SERVICES LTD FCO OP,FM Interserve BES Maintenance
FCO,FCO,08-May-13,4287011,"2,963.73",ISS FACILITY SERVICES LTD FCO OP,FM Interserve BES Maintenance
FCO,FCO,08-May-13,4287011,158.27,ISS FACILITY SERVICES LTD FCO OP,FM Interserve Cleaning
FCO,FCO,08-May-13,4287011,"4,114.50",ISS FACILITY SERVICES LTD FCO OP,FM Interserve BES Maintenance
FCO,FCO,08-May-13,4287011,"4,076.65",ISS FACILITY SERVICES LTD FCO OP,FM Interserve BES Maintenance
FCO,FCO,08-May-13,4287011,"68,412.52",ISS FACILITY SERVICES LTD FCO OP,FM Interserve BES Maintenance
FCO,FCO,08-May-13,4287011,"20,688.50",ISS FACILITY SERVICES LTD FCO OP,FM Interserve BES Maintenance
FCO,FCO,08-May-13,4287011,"3,704.46",ISS FACILITY SERVICES LTD FCO OP,FM Interserve BES Maintenance
FCO,FCO,08-May-13,4287011,182.23,ISS FACILITY SERVICES LTD FCO OP,FM Interserve BES Maintenance
FCO,FCO,08-May-13,4287011,150.22,ISS FACILITY SERVICES LTD FCO OP,FM Interserve BES Maintenance
FCO,FCO,08-May-13,4287011,701.26,ISS FACILITY SERVICES LTD FCO OP,FM Interserve BES Maintenance
FCO,FCO,08-May-13,4287011,"1,001.28",ISS FACILITY SERVICES LTD FCO OP,FM Interserve BES Maintenance
FCO,FCO,08-May-13,4287011,"1,948.90",ISS FACILITY SERVICES LTD FCO OP,FM Interserve BES Maintenance
FCO,FCO,08-May-13,4287011,719.27,ISS FACILITY SERVICES LTD FCO OP,FM Interserve BES Maintenance
FCO,FCO,08-May-13,4287011,220.73,ISS FACILITY SERVICES LTD FCO OP,FM Interserve BES Maintenance
FCO,FCO,08-May-13,4287011,749.77,ISS FACILITY SERVICES LTD FCO OP,FM Interserve BES Maintenance
FCO,FCO,08-May-13,4287011,38.24,ISS FACILITY SERVICES LTD FCO OP,FM Interserve BES Maintenance
FCO,FCO,08-May-13,4287011,121.21,ISS FACILITY SERVICES LTD FCO OP,FM Interserve BES Maintenance
FCO,FCO,08-May-13,4287011,18.34,ISS FACILITY SERVICES LTD FCO OP,FM Interserve BES Maintenance
FCO,FCO,08-May-13,4287011,3.78,ISS FACILITY SERVICES LTD FCO OP,FM Interserve BES Maintenance
FCO,FCO,08-May-13,4287011,16.54,ISS FACILITY SERVICES LTD FCO OP,FM Interserve BES Maintenance
FCO,FCO,08-May-13,4287011,134.6,ISS FACILITY SERVICES LTD FCO OP,FM Interserve BES Maintenance
FCO,FCO,08-May-13,4287011,"3,336.37",ISS FACILITY SERVICES LTD FCO OP,FM Interserve BES Maintenance
FCO,FCO,08-May-13,4287011,209.29,ISS FACILITY SERVICES LTD FCO OP,FM Interserve BES Maintenance
FCO,FCO,08-May-13,4287011,3.69,ISS FACILITY SERVICES LTD FCO OP,FM Interserve BES Maintenance
FCO,FCO,08-May-13,4287011,8.11,ISS FACILITY SERVICES LTD FCO OP,FM Interserve BES Maintenance
FCO,FCO,08-May-13,4287011,4.12,ISS FACILITY SERVICES LTD FCO OP,FM Interserve BES Maintenance
FCO,FCO,08-May-13,4287011,7.51,ISS FACILITY SERVICES LTD FCO OP,FM Interserve BES Maintenance
FCO,FCO,08-May-13,4287011,488.72,ISS FACILITY SERVICES LTD FCO OP,FM Interserve BES Maintenance
FCO,FCO,08-May-13,4287011,13.96,ISS FACILITY SERVICES LTD FCO OP,FM Interserve BES Maintenance
FCO,FCO,08-May-13,4287011,4.86,ISS FACILITY SERVICES LTD FCO OP,FM Interserve Cleaning
FCO,FCO,08-May-13,4287011,5.31,ISS FACILITY SERVICES LTD FCO OP,FM Interserve Cleaning
FCO,FCO,08-May-13,4287011,44.64,ISS FACILITY SERVICES LTD FCO OP,FM Interserve BES Maintenance
FCO,FCO,08-May-13,4287011,52.3,ISS FACILITY SERVICES LTD FCO OP,FM Interserve BES Maintenance
FCO,FCO,08-May-13,4287011,17.49,ISS FACILITY SERVICES LTD FCO OP,FM Interserve BES Maintenance
FCO,FCO,08-May-13,4287011,32.02,ISS FACILITY SERVICES LTD FCO OP,FM Interserve BES Maintenance
FCO,FCO,08-May-13,4287011,28.73,ISS FACILITY SERVICES LTD FCO OP,FM Interserve BES Maintenance
FCO,FCO,08-May-13,4287011,7.82,ISS FACILITY SERVICES LTD FCO OP,FM Interserve BES Maintenance
FCO,FCO,08-May-13,4287011,120.47,ISS FACILITY SERVICES LTD FCO OP,FM Interserve BES Maintenance
FCO,FCO,08-May-13,4287011,148.19,ISS FACILITY SERVICES LTD FCO OP,FM Interserve BES Maintenance
FCO,FCO,08-May-13,4287011,7.91,ISS FACILITY SERVICES LTD FCO OP,FM Interserve Cleaning
FCO,FCO,08-May-13,4287011,205.72,ISS FACILITY SERVICES LTD FCO OP,FM Interserve BES Maintenance
FCO,FCO,08-May-13,4287011,203.83,ISS FACILITY SERVICES LTD FCO OP,FM Interserve BES Maintenance
FCO,FCO,08-May-13,4287011,"3,420.62",ISS FACILITY SERVICES LTD FCO OP,FM Interserve BES Maintenance
FCO,FCO,08-May-13,4287011,"1,034.43",ISS FACILITY SERVICES LTD FCO OP,FM Interserve BES Maintenance
FCO,FCO,08-May-13,4287011,185.22,ISS FACILITY SERVICES LTD FCO OP,FM Interserve BES Maintenance
FCO,FCO,08-May-13,4287011,9.11,ISS FACILITY SERVICES LTD FCO OP,FM Interserve BES Maintenance
FCO,FCO,08-May-13,4287011,7.51,ISS FACILITY SERVICES LTD FCO OP,FM Interserve BES Maintenance
FCO,FCO,08-May-13,4287011,35.06,ISS FACILITY SERVICES LTD FCO OP,FM Interserve BES Maintenance
FCO,FCO,08-May-13,4287011,50.07,ISS FACILITY SERVICES LTD FCO OP,FM Interserve BES Maintenance
FCO,FCO,08-May-13,4287011,97.44,ISS FACILITY SERVICES LTD FCO OP,FM Interserve BES Maintenance
FCO,FCO,08-May-13,4287011,35.96,ISS FACILITY SERVICES LTD FCO OP,FM Interserve BES Maintenance
FCO,FCO,08-May-13,4287012,"2,227.30",ISS FACILITY SERVICES LTD FCO OP,FM Interserve BES Maintenance
FCO,FCO,08-May-13,4287012,308.04,ISS FACILITY SERVICES LTD FCO OP,FM Interserve BES Maintenance
FCO,FCO,08-May-13,4287012,"4,498.46",ISS FACILITY SERVICES LTD FCO OP,FM Interserve BES Maintenance
FCO,FCO,08-May-13,4287012,248.87,ISS FACILITY SERVICES LTD FCO OP,FM Interserve BES Maintenance
FCO,FCO,08-May-13,4287012,"7,619.51",ISS FACILITY SERVICES LTD FCO OP,FM Interserve BES Maintenance
FCO,FCO,08-May-13,4287012,"2,534.01",ISS FACILITY SERVICES LTD FCO OP,FM Interserve BES Maintenance
FCO,FCO,08-May-13,4287012,"7,265.57",ISS FACILITY SERVICES LTD FCO OP,FM Interserve BES Maintenance
FCO,FCO,08-May-13,4287012,"3,162.48",ISS FACILITY SERVICES LTD FCO OP,FM Interserve BES Maintenance
FCO,FCO,08-May-13,4287012,"19,788.76",ISS FACILITY SERVICES LTD FCO OP,FM Interserve BES Maintenance
FCO,FCO,08-May-13,4287012,"11,091.69",ISS FACILITY SERVICES LTD FCO OP,FM Interserve BES Maintenance
FCO,FCO,08-May-13,4287012,157.62,ISS FACILITY SERVICES LTD FCO OP,FM Interserve BES Maintenance
FCO,FCO,08-May-13,4287012,"1,004.04",ISS FACILITY SERVICES LTD FCO OP,FM Interserve BES Maintenance
FCO,FCO,08-May-13,4287012,"1,547.09",ISS FACILITY SERVICES LTD FCO OP,FM Interserve BES Maintenance
FCO,FCO,08-May-13,4287012,"6,082.29",ISS FACILITY SERVICES LTD FCO OP,FM Interserve BES Maintenance
FCO,FCO,08-May-13,4287012,864.73,ISS FACILITY SERVICES LTD FCO OP,FM Interserve BES Maintenance
FCO,FCO,08-May-13,4287012,453.76,ISS FACILITY SERVICES LTD FCO OP,FM Interserve BES Maintenance
FCO,FCO,08-May-13,4287012,"2,571.64",ISS FACILITY SERVICES LTD FCO OP,FM Interserve BES Maintenance
FCO,FCO,08-May-13,4287012,"2,626.94",ISS FACILITY SERVICES LTD FCO OP,FM Interserve BES Maintenance
FCO,FCO,08-May-13,4287012,"2,378.06",ISS FACILITY SERVICES LTD FCO OP,FM Interserve BES Maintenance
FCO,FCO,08-May-13,4287012,"1,388.67",ISS FACILITY SERVICES LTD FCO OP,FM Interserve BES Maintenance
FCO,FCO,08-May-13,4287012,"1,216.68",ISS FACILITY SERVICES LTD FCO OP,FM Interserve BES Maintenance
FCO,FCO,08-May-13,4287012,"1,057.98",ISS FACILITY SERVICES LTD FCO OP,FM Interserve BES Maintenance
FCO,FCO,08-May-13,4287012,298.16,ISS FACILITY SERVICES LTD FCO OP,FM Interserve BES Maintenance
FCO,FCO,08-May-13,4287012,443.29,ISS FACILITY SERVICES LTD FCO OP,FM Interserve BES Maintenance
FCO,FCO,08-May-13,4287012,140.46,ISS FACILITY SERVICES LTD FCO OP,FM Interserve BES Maintenance
FCO,FCO,08-May-13,4287012,"1,638.74",ISS FACILITY SERVICES LTD FCO OP,FM Interserve BES Maintenance
FCO,FCO,08-May-13,4287012,52.54,ISS FACILITY SERVICES LTD FCO OP,FM Interserve BES Maintenance
FCO,FCO,08-May-13,4287012,25.3,ISS FACILITY SERVICES LTD FCO OP,FM Interserve BES Maintenance
FCO,FCO,08-May-13,4287012,199.37,ISS FACILITY SERVICES LTD FCO OP,FM Interserve BES Maintenance
FCO,FCO,08-May-13,4287012,41.48,ISS FACILITY SERVICES LTD FCO OP,FM Interserve BES Maintenance
FCO,FCO,08-May-13,4287012,325.82,ISS FACILITY SERVICES LTD FCO OP,FM Interserve BES Maintenance
FCO,FCO,08-May-13,4287012,49.77,ISS FACILITY SERVICES LTD FCO OP,FM Interserve BES Maintenance
FCO,FCO,08-May-13,4287012,647.05,ISS FACILITY SERVICES LTD FCO OP,FM Interserve BES Maintenance
FCO,FCO,08-May-13,4287012,78.81,ISS FACILITY SERVICES LTD FCO OP,FM Interserve BES Maintenance
FCO,FCO,08-May-13,4287012,189.95,ISS FACILITY SERVICES LTD FCO OP,FM Interserve BES Maintenance
FCO,FCO,08-May-13,4287012,142.72,ISS FACILITY SERVICES LTD FCO OP,FM Interserve BES Maintenance
FCO,FCO,08-May-13,4287012,445.03,ISS FACILITY SERVICES LTD FCO OP,FM Interserve BES Maintenance
FCO,FCO,08-May-13,4287012,"1,048.00",ISS FACILITY SERVICES LTD FCO OP,FM Interserve BES Maintenance
FCO,FCO,08-May-13,4287012,"31,139.39",ISS FACILITY SERVICES LTD FCO OP,FM Interserve BES Maintenance
FCO,FCO,08-May-13,4287012,"219,559.32",ISS FACILITY SERVICES LTD FCO OP,FM Interserve BES Maintenance
FCO,FCO,08-May-13,4287012,82.66,ISS FACILITY SERVICES LTD FCO OP,FM Interserve BES Maintenance
FCO,FCO,08-May-13,4287012,334.09,ISS FACILITY SERVICES LTD FCO OP,FM Interserve BES Maintenance
FCO,FCO,08-May-13,4287012,46.21,ISS FACILITY SERVICES LTD FCO OP,FM Interserve BES Maintenance
FCO,FCO,08-May-13,4287012,674.77,ISS FACILITY SERVICES LTD FCO OP,FM Interserve BES Maintenance
FCO,FCO,08-May-13,4287012,37.33,ISS FACILITY SERVICES LTD FCO OP,FM Interserve BES Maintenance
FCO,FCO,08-May-13,4287012,"1,142.93",ISS FACILITY SERVICES LTD FCO OP,FM Interserve BES Maintenance
FCO,FCO,08-May-13,4287012,380.1,ISS FACILITY SERVICES LTD FCO OP,FM Interserve BES Maintenance
FCO,FCO,08-May-13,4287012,"1,089.84",ISS FACILITY SERVICES LTD FCO OP,FM Interserve BES Maintenance
FCO,FCO,08-May-13,4287012,474.37,ISS FACILITY SERVICES LTD FCO OP,FM Interserve BES Maintenance
FCO,FCO,08-May-13,4287012,"2,968.31",ISS FACILITY SERVICES LTD FCO OP,FM Interserve BES Maintenance
FCO,FCO,08-May-13,4287012,"1,663.75",ISS FACILITY SERVICES LTD FCO OP,FM Interserve BES Maintenance
FCO,FCO,08-May-13,4287012,23.64,ISS FACILITY SERVICES LTD FCO OP,FM Interserve BES Maintenance
FCO,FCO,08-May-13,4287012,150.61,ISS FACILITY SERVICES LTD FCO OP,FM Interserve BES Maintenance
FCO,FCO,08-May-13,4287012,232.07,ISS FACILITY SERVICES LTD FCO OP,FM Interserve BES Maintenance
FCO,FCO,08-May-13,4287012,912.34,ISS FACILITY SERVICES LTD FCO OP,FM Interserve BES Maintenance
FCO,FCO,08-May-13,4287012,129.71,ISS FACILITY SERVICES LTD FCO OP,FM Interserve BES Maintenance
FCO,FCO,08-May-13,4287012,68.06,ISS FACILITY SERVICES LTD FCO OP,FM Interserve BES Maintenance
FCO,FCO,08-May-13,4287012,385.75,ISS FACILITY SERVICES LTD FCO OP,FM Interserve BES Maintenance
FCO,FCO,08-May-13,4287012,394.04,ISS FACILITY SERVICES LTD FCO OP,FM Interserve BES Maintenance
FCO,FCO,08-May-13,4287012,356.71,ISS FACILITY SERVICES LTD FCO OP,FM Interserve BES Maintenance
FCO,FCO,08-May-13,4287012,208.3,ISS FACILITY SERVICES LTD FCO OP,FM Interserve BES Maintenance
FCO,FCO,08-May-13,4287012,182.5,ISS FACILITY SERVICES LTD FCO OP,FM Interserve BES Maintenance
FCO,FCO,08-May-13,4287012,158.7,ISS FACILITY SERVICES LTD FCO OP,FM Interserve BES Maintenance
FCO,FCO,08-May-13,4287012,44.72,ISS FACILITY SERVICES LTD FCO OP,FM Interserve BES Maintenance
FCO,FCO,08-May-13,4287012,66.49,ISS FACILITY SERVICES LTD FCO OP,FM Interserve BES Maintenance
FCO,FCO,08-May-13,4287012,21.07,ISS FACILITY SERVICES LTD FCO OP,FM Interserve BES Maintenance
FCO,FCO,08-May-13,4287012,245.81,ISS FACILITY SERVICES LTD FCO OP,FM Interserve BES Maintenance
FCO,FCO,08-May-13,4287012,7.88,ISS FACILITY SERVICES LTD FCO OP,FM Interserve BES Maintenance
FCO,FCO,08-May-13,4287012,3.79,ISS FACILITY SERVICES LTD FCO OP,FM Interserve BES Maintenance
FCO,FCO,08-May-13,4287012,29.91,ISS FACILITY SERVICES LTD FCO OP,FM Interserve BES Maintenance
FCO,FCO,08-May-13,4287012,6.22,ISS FACILITY SERVICES LTD FCO OP,FM Interserve BES Maintenance
FCO,FCO,08-May-13,4287012,48.87,ISS FACILITY SERVICES LTD FCO OP,FM Interserve BES Maintenance
FCO,FCO,08-May-13,4287012,7.47,ISS FACILITY SERVICES LTD FCO OP,FM Interserve BES Maintenance
FCO,FCO,08-May-13,4287012,97.06,ISS FACILITY SERVICES LTD FCO OP,FM Interserve BES Maintenance
FCO,FCO,08-May-13,4287012,11.82,ISS FACILITY SERVICES LTD FCO OP,FM Interserve BES Maintenance
FCO,FCO,08-May-13,4287012,28.49,ISS FACILITY SERVICES LTD FCO OP,FM Interserve BES Maintenance
FCO,FCO,08-May-13,4287012,21.41,ISS FACILITY SERVICES LTD FCO OP,FM Interserve BES Maintenance
FCO,FCO,08-May-13,4287012,66.76,ISS FACILITY SERVICES LTD FCO OP,FM Interserve BES Maintenance
FCO,FCO,08-May-13,4287012,157.2,ISS FACILITY SERVICES LTD FCO OP,FM Interserve BES Maintenance
FCO,FCO,08-May-13,4287012,"4,670.91",ISS FACILITY SERVICES LTD FCO OP,FM Interserve BES Maintenance
FCO,FCO,08-May-13,4287012,"32,933.90",ISS FACILITY SERVICES LTD FCO OP,FM Interserve BES Maintenance
FCO,FCO,08-May-13,4287012,12.4,ISS FACILITY SERVICES LTD FCO OP,FM Interserve BES Maintenance
FCO,FCO,08-May-13,4287013,"74,636.87",ISS FACILITY SERVICES LTD FCO OP,FM Interserve BES Maintenance
FCO,FCO,08-May-13,4287013,233.05,ISS FACILITY SERVICES LTD FCO OP,FM Interserve BES Maintenance
FCO,FCO,08-May-13,4287013,137.27,ISS FACILITY SERVICES LTD FCO OP,FM Interserve BES Maintenance
FCO,FCO,08-May-13,4287013,423.58,ISS FACILITY SERVICES LTD FCO OP,FM Interserve BES Maintenance
FCO,FCO,08-May-13,4287013,"7,481.94",ISS FACILITY SERVICES LTD FCO OP,Unscheduled repairs to building infrastructure
FCO,FCO,08-May-13,4287013,483.16,ISS FACILITY SERVICES LTD FCO OP,FM Interserve BES Maintenance
FCO,FCO,08-May-13,4287013,"3,139.63",ISS FACILITY SERVICES LTD FCO OP,FM Interserve BES Maintenance
FCO,FCO,08-May-13,4287013,"13,995.32",ISS FACILITY SERVICES LTD FCO OP,FM Interserve BES Maintenance
FCO,FCO,08-May-13,4287013,110.66,ISS FACILITY SERVICES LTD FCO OP,FM Interserve BES Maintenance
FCO,FCO,08-May-13,4287013,162.85,ISS FACILITY SERVICES LTD FCO OP,FM Interserve BES Maintenance
FCO,FCO,08-May-13,4287013,"5,214.99",ISS FACILITY SERVICES LTD FCO OP,FM Interserve BES Maintenance
FCO,FCO,08-May-13,4287013,"16,581.56",ISS FACILITY SERVICES LTD FCO OP,FM Interserve BES Maintenance
FCO,FCO,08-May-13,4287013,7.38,ISS FACILITY SERVICES LTD FCO OP,FM Interserve Cleaning
FCO,FCO,08-May-13,4287013,"7,104.09",ISS FACILITY SERVICES LTD FCO OP,FM Interserve BES Maintenance
FCO,FCO,08-May-13,4287013,157.89,ISS FACILITY SERVICES LTD FCO OP,FM Interserve BES Maintenance
FCO,FCO,08-May-13,4287013,"1,079.98",ISS FACILITY SERVICES LTD FCO OP,FM Interserve BES Maintenance
FCO,FCO,08-May-13,4287013,"20,214.18",ISS FACILITY SERVICES LTD FCO OP,FM Interserve BES Maintenance
FCO,FCO,08-May-13,4287013,12.29,ISS FACILITY SERVICES LTD FCO OP,FM Interserve Cleaning
FCO,FCO,08-May-13,4287013,"1,887.21",ISS FACILITY SERVICES LTD FCO OP,Unscheduled repairs to building infrastructure
FCO,FCO,08-May-13,4287013,"1,887.21",ISS FACILITY SERVICES LTD FCO OP,Unscheduled repairs to building infrastructure
FCO,FCO,08-May-13,4287013,"1,887.21",ISS FACILITY SERVICES LTD FCO OP,Unscheduled repairs to building infrastructure
FCO,FCO,08-May-13,4287013,"2,499.28",ISS FACILITY SERVICES LTD FCO OP,Unscheduled repairs to building infrastructure
FCO,FCO,08-May-13,4287013,"18,732.97",ISS FACILITY SERVICES LTD FCO OP,FM Interserve BES Maintenance
FCO,FCO,08-May-13,4287013,"1,438.35",ISS FACILITY SERVICES LTD FCO OP,FM Interserve BES Maintenance
FCO,FCO,08-May-13,4287013,798.21,ISS FACILITY SERVICES LTD FCO OP,FM Interserve BES Maintenance
FCO,FCO,08-May-13,4287013,403.34,ISS FACILITY SERVICES LTD FCO OP,FM Interserve BES Maintenance
FCO,FCO,08-May-13,4287013,"3,778.20",ISS FACILITY SERVICES LTD FCO OP,FM Interserve BES Maintenance
FCO,FCO,08-May-13,4287013,350.12,ISS FACILITY SERVICES LTD FCO OP,FM Interserve BES Maintenance
FCO,FCO,08-May-13,4287013,129.83,ISS FACILITY SERVICES LTD FCO OP,Unscheduled repairs to building infrastructure
FCO,FCO,08-May-13,4287013,217.09,ISS FACILITY SERVICES LTD FCO OP,FM Interserve BES Maintenance
FCO,FCO,08-May-13,4287013,"2,554.28",ISS FACILITY SERVICES LTD FCO OP,FM Interserve BES Maintenance
FCO,FCO,08-May-13,4287013,52.79,ISS FACILITY SERVICES LTD FCO OP,FM Interserve Cleaning
FCO,FCO,08-May-13,4287013,84.05,ISS FACILITY SERVICES LTD FCO OP,FM Interserve BES Maintenance
FCO,FCO,08-May-13,4287013,12.29,ISS FACILITY SERVICES LTD FCO OP,FM Interserve Cleaning
FCO,FCO,08-May-13,4287013,186.25,ISS FACILITY SERVICES LTD FCO OP,FM Interserve BES Maintenance
FCO,FCO,08-May-13,4287013,"1,223.93",ISS FACILITY SERVICES LTD FCO OP,FM Interserve BES Maintenance
FCO,FCO,08-May-13,4287013,35.19,ISS FACILITY SERVICES LTD FCO OP,FM Interserve Cleaning
FCO,FCO,08-May-13,4287013,510.86,ISS FACILITY SERVICES LTD FCO OP,FM Interserve BES Maintenance
FCO,FCO,08-May-13,4287013,"1,596.42",ISS FACILITY SERVICES LTD FCO OP,FM Interserve BES Maintenance
FCO,FCO,08-May-13,4287013,904.64,ISS FACILITY SERVICES LTD FCO OP,FM Interserve BES Maintenance
FCO,FCO,08-May-13,4287013,"2,171.14",ISS FACILITY SERVICES LTD FCO OP,FM Interserve BES Maintenance
FCO,FCO,08-May-13,4287013,589.59,ISS FACILITY SERVICES LTD FCO OP,FM Interserve BES Maintenance
FCO,FCO,08-May-13,4287013,"3,774.41",ISS FACILITY SERVICES LTD FCO OP,Unscheduled repairs to building infrastructure
FCO,FCO,08-May-13,4287013,"5,224.58",ISS FACILITY SERVICES LTD FCO OP,FM Interserve BES Maintenance
FCO,FCO,08-May-13,4287013,16.32,ISS FACILITY SERVICES LTD FCO OP,FM Interserve BES Maintenance
FCO,FCO,08-May-13,4287013,9.61,ISS FACILITY SERVICES LTD FCO OP,FM Interserve BES Maintenance
FCO,FCO,08-May-13,4287013,29.65,ISS FACILITY SERVICES LTD FCO OP,FM Interserve BES Maintenance
FCO,FCO,08-May-13,4287013,523.73,ISS FACILITY SERVICES LTD FCO OP,Unscheduled repairs to building infrastructure
FCO,FCO,08-May-13,4287013,33.82,ISS FACILITY SERVICES LTD FCO OP,FM Interserve BES Maintenance
FCO,FCO,08-May-13,4287013,219.77,ISS FACILITY SERVICES LTD FCO OP,FM Interserve BES Maintenance
FCO,FCO,08-May-13,4287013,979.67,ISS FACILITY SERVICES LTD FCO OP,FM Interserve BES Maintenance
FCO,FCO,08-May-13,4287013,7.75,ISS FACILITY SERVICES LTD FCO OP,FM Interserve BES Maintenance
FCO,FCO,08-May-13,4287013,11.4,ISS FACILITY SERVICES LTD FCO OP,FM Interserve BES Maintenance
FCO,FCO,08-May-13,4287013,365.05,ISS FACILITY SERVICES LTD FCO OP,FM Interserve BES Maintenance
FCO,FCO,08-May-13,4287013,"1,160.71",ISS FACILITY SERVICES LTD FCO OP,FM Interserve BES Maintenance
FCO,FCO,08-May-13,4287013,0.52,ISS FACILITY SERVICES LTD FCO OP,FM Interserve Cleaning
FCO,FCO,08-May-13,4287013,497.29,ISS FACILITY SERVICES LTD FCO OP,FM Interserve BES Maintenance
FCO,FCO,08-May-13,4287013,11.05,ISS FACILITY SERVICES LTD FCO OP,FM Interserve BES Maintenance
FCO,FCO,08-May-13,4287013,75.6,ISS FACILITY SERVICES LTD FCO OP,FM Interserve BES Maintenance
FCO,FCO,08-May-13,4287013,"1,414.99",ISS FACILITY SERVICES LTD FCO OP,FM Interserve BES Maintenance
FCO,FCO,08-May-13,4287013,0.86,ISS FACILITY SERVICES LTD FCO OP,FM Interserve Cleaning
FCO,FCO,08-May-13,4287013,132.1,ISS FACILITY SERVICES LTD FCO OP,Unscheduled repairs to building infrastructure
FCO,FCO,08-May-13,4287013,132.1,ISS FACILITY SERVICES LTD FCO OP,Unscheduled repairs to building infrastructure
FCO,FCO,08-May-13,4287013,132.1,ISS FACILITY SERVICES LTD FCO OP,Unscheduled repairs to building infrastructure
FCO,FCO,08-May-13,4287013,174.95,ISS FACILITY SERVICES LTD FCO OP,Unscheduled repairs to building infrastructure
FCO,FCO,08-May-13,4287013,"1,311.31",ISS FACILITY SERVICES LTD FCO OP,FM Interserve BES Maintenance
FCO,FCO,08-May-13,4287013,100.69,ISS FACILITY SERVICES LTD FCO OP,FM Interserve BES Maintenance
FCO,FCO,08-May-13,4287013,55.87,ISS FACILITY SERVICES LTD FCO OP,FM Interserve BES Maintenance
FCO,FCO,08-May-13,4287013,28.24,ISS FACILITY SERVICES LTD FCO OP,FM Interserve BES Maintenance
FCO,FCO,08-May-13,4287013,264.47,ISS FACILITY SERVICES LTD FCO OP,FM Interserve BES Maintenance
FCO,FCO,08-May-13,4287013,24.51,ISS FACILITY SERVICES LTD FCO OP,FM Interserve BES Maintenance
FCO,FCO,08-May-13,4287013,9.09,ISS FACILITY SERVICES LTD FCO OP,Unscheduled repairs to building infrastructure
FCO,FCO,08-May-13,4287013,15.2,ISS FACILITY SERVICES LTD FCO OP,FM Interserve BES Maintenance
FCO,FCO,08-May-13,4287013,178.8,ISS FACILITY SERVICES LTD FCO OP,FM Interserve BES Maintenance
FCO,FCO,08-May-13,4287013,3.69,ISS FACILITY SERVICES LTD FCO OP,FM Interserve Cleaning
FCO,FCO,08-May-13,4287013,5.89,ISS FACILITY SERVICES LTD FCO OP,FM Interserve BES Maintenance
FCO,FCO,08-May-13,4287013,0.86,ISS FACILITY SERVICES LTD FCO OP,FM Interserve Cleaning
FCO,FCO,08-May-13,4287013,13.04,ISS FACILITY SERVICES LTD FCO OP,FM Interserve BES Maintenance
FCO,FCO,08-May-13,4287013,85.67,ISS FACILITY SERVICES LTD FCO OP,FM Interserve BES Maintenance
FCO,FCO,08-May-13,4287013,2.46,ISS FACILITY SERVICES LTD FCO OP,FM Interserve Cleaning
FCO,FCO,08-May-13,4287013,35.76,ISS FACILITY SERVICES LTD FCO OP,FM Interserve BES Maintenance
FCO,FCO,08-May-13,4287013,111.75,ISS FACILITY SERVICES LTD FCO OP,FM Interserve BES Maintenance
FCO,FCO,08-May-13,4287013,63.32,ISS FACILITY SERVICES LTD FCO OP,FM Interserve BES Maintenance
FCO,FCO,08-May-13,4287013,151.98,ISS FACILITY SERVICES LTD FCO OP,FM Interserve BES Maintenance
FCO,FCO,08-May-13,4287013,41.27,ISS FACILITY SERVICES LTD FCO OP,FM Interserve BES Maintenance
FCO,FCO,08-May-13,4287013,264.21,ISS FACILITY SERVICES LTD FCO OP,Unscheduled repairs to building infrastructure
FCO,FCO,08-May-13,4287014,"25,508.70",ISS FACILITY SERVICES LTD FCO OP,FM Interserve BES Maintenance
FCO,FCO,08-May-13,4287014,"21,228.22",ISS FACILITY SERVICES LTD FCO OP,FM Interserve BES Maintenance
FCO,FCO,08-May-13,4287014,"1,174.28",ISS FACILITY SERVICES LTD FCO OP,FM Interserve BES Maintenance
FCO,FCO,08-May-13,4287014,"1,605.95",ISS FACILITY SERVICES LTD FCO OP,FM Interserve BES Maintenance
FCO,FCO,08-May-13,4287014,87.27,ISS FACILITY SERVICES LTD FCO OP,FM Interserve BES Maintenance
FCO,FCO,08-May-13,4287014,270.99,ISS FACILITY SERVICES LTD FCO OP,FM Interserve BES Maintenance
FCO,FCO,08-May-13,4287014,158.08,ISS FACILITY SERVICES LTD FCO OP,FM Interserve BES Maintenance
FCO,FCO,08-May-13,4287014,320.67,ISS FACILITY SERVICES LTD FCO OP,FM Interserve BES Maintenance
FCO,FCO,08-May-13,4287014,432.52,ISS FACILITY SERVICES LTD FCO OP,FM Interserve BES Maintenance
FCO,FCO,08-May-13,4287014,"5,505.55",ISS FACILITY SERVICES LTD FCO OP,FM Interserve BES Maintenance
FCO,FCO,08-May-13,4287014,"60,317.14",ISS FACILITY SERVICES LTD FCO OP,FM Interserve BES Maintenance
FCO,FCO,08-May-13,4287014,"32,649.39",ISS FACILITY SERVICES LTD FCO OP,FM Interserve BES Maintenance
FCO,FCO,08-May-13,4295673,"44,286.47",DA NAWEED NOORI CONSTRUCTION COMPANY,Programme Spend (Oracle Projects Control Account)
FCO,FCO,08-May-13,4295677,"44,286.47",DA NAWEED NOORI CONSTRUCTION COMPANY,Programme Spend (Oracle Projects Control Account)
FCO,FCO,08-May-13,4298447,"55,645.49",LV31 EHT,Rental Payments - non residential
FCO,FCO,08-May-13,4275192,"49,170.45",IDENTITY CENTER,Programme Spend (Oracle Projects Control Account)
FCO,FCO,09-May-13,4298734,"33,626.00",CROWN AGENTS,Programme Spend (Oracle Projects Control Account)
FCO,FCO,09-May-13,4299178,"40,183.63",FIELD FISHER WATERHOUSE,Specialist Contractors
FCO,FCO,09-May-13,4265412,"30,000.00",GLEEDS BUILDING SURVEYING LTD,Estates Management Services
FCO,FCO,09-May-13,4265412,"-30,000.00",GLEEDS BUILDING SURVEYING LTD,Estates Management Services
FCO,FCO,09-May-13,4265412,"30,000.00",GLEEDS BUILDING SURVEYING LTD,Estates Management Services
FCO,FCO,09-May-13,4265412,"6,000.00",GLEEDS BUILDING SURVEYING LTD,Estates Management Services
FCO,FCO,09-May-13,4299069,"30,000.00",GLEEDS BUILDING SURVEYING LTD,Estates Management Services
FCO,FCO,09-May-13,4271661,318.35,HAYS SPECIALIST RECRUITMENT LTD,Hays: Exams and Assessments
FCO,FCO,09-May-13,4271661,356.53,HAYS SPECIALIST RECRUITMENT LTD,Language Exams (excl Hays)
FCO,FCO,09-May-13,4271661,140.06,HAYS SPECIALIST RECRUITMENT LTD,Language Exams (excl Hays)
FCO,FCO,09-May-13,4271661,191,HAYS SPECIALIST RECRUITMENT LTD,Hays: Exams and Assessments
FCO,FCO,09-May-13,4271661,"15,939.00",HAYS SPECIALIST RECRUITMENT LTD,Specialist Contractors
FCO,FCO,09-May-13,4271661,"12,236.00",HAYS SPECIALIST RECRUITMENT LTD,Specialist Contractors
FCO,FCO,09-May-13,4271661,93.24,HAYS SPECIALIST RECRUITMENT LTD,Specialist Contractors
FCO,FCO,09-May-13,4271661,751.29,HAYS SPECIALIST RECRUITMENT LTD,Hays: Exams and Assessments
FCO,FCO,09-May-13,4271661,356.53,HAYS SPECIALIST RECRUITMENT LTD,Language Exams (excl Hays)
FCO,FCO,09-May-13,4271661,401.11,HAYS SPECIALIST RECRUITMENT LTD,Hays: Exams and Assessments
FCO,FCO,09-May-13,4271661,89.14,HAYS SPECIALIST RECRUITMENT LTD,Language Exams (excl Hays)
FCO,FCO,09-May-13,4271661,"2,833.18",HAYS SPECIALIST RECRUITMENT LTD,Casual staff (E Dyn. Mig.)
FCO,FCO,09-May-13,4271661,337.41,HAYS SPECIALIST RECRUITMENT LTD,Language Exams (excl Hays)
FCO,FCO,09-May-13,4271661,89.14,HAYS SPECIALIST RECRUITMENT LTD,Language Exams (excl Hays)
FCO,FCO,09-May-13,4271661,585.75,HAYS SPECIALIST RECRUITMENT LTD,Hays: Exams and Assessments
FCO,FCO,09-May-13,4271661,401.11,HAYS SPECIALIST RECRUITMENT LTD,Hays: Exams and Assessments
FCO,FCO,09-May-13,4271661,44.56,HAYS SPECIALIST RECRUITMENT LTD,Language Exams (excl Hays)
FCO,FCO,09-May-13,4271661,"2,364.58",HAYS SPECIALIST RECRUITMENT LTD,Fee Paid Officers
FCO,FCO,09-May-13,4271661,"2,039.96",HAYS SPECIALIST RECRUITMENT LTD,Casual staff (E Dyn. Mig.)
FCO,FCO,09-May-13,4271661,"8,250.00",HAYS SPECIALIST RECRUITMENT LTD,Specialist Contractors
FCO,FCO,09-May-13,4271661,86.69,HAYS SPECIALIST RECRUITMENT LTD,Hays: Exams and Assessments
FCO,FCO,09-May-13,4271661,89.14,HAYS SPECIALIST RECRUITMENT LTD,Hays: Exams and Assessments
FCO,FCO,09-May-13,4271661,471.15,HAYS SPECIALIST RECRUITMENT LTD,Hays: Exams and Assessments
FCO,FCO,09-May-13,4271661,751.29,HAYS SPECIALIST RECRUITMENT LTD,Hays: Exams and Assessments
FCO,FCO,09-May-13,4271661,89.14,HAYS SPECIALIST RECRUITMENT LTD,Hays: Exams and Assessments
FCO,FCO,09-May-13,4271661,"21,797.10",HAYS SPECIALIST RECRUITMENT LTD,Specialist Contractors
FCO,FCO,09-May-13,4271661,127.34,HAYS SPECIALIST RECRUITMENT LTD,Language Exams (excl Hays)
FCO,FCO,09-May-13,4271661,50.94,HAYS SPECIALIST RECRUITMENT LTD,Hays: Exams and Assessments
FCO,FCO,09-May-13,4271661,127.34,HAYS SPECIALIST RECRUITMENT LTD,Language Exams (excl Hays)
FCO,FCO,09-May-13,4271661,401.11,HAYS SPECIALIST RECRUITMENT LTD,Hays: Exams and Assessments
FCO,FCO,09-May-13,4271661,"1,363.48",HAYS SPECIALIST RECRUITMENT LTD,Technical Consultancy
FCO,FCO,09-May-13,4271661,"1,120.57",HAYS SPECIALIST RECRUITMENT LTD,Hays: Exams and Assessments
FCO,FCO,09-May-13,4271661,198.14,HAYS SPECIALIST RECRUITMENT LTD,Hays: Exams and Assessments
FCO,FCO,09-May-13,4271661,254.63,HAYS SPECIALIST RECRUITMENT LTD,Hays: Exams and Assessments
FCO,FCO,09-May-13,4271661,318.35,HAYS SPECIALIST RECRUITMENT LTD,Hays: Exams and Assessments
FCO,FCO,09-May-13,4271661,127.34,HAYS SPECIALIST RECRUITMENT LTD,Language Exams (excl Hays)
FCO,FCO,09-May-13,4271661,178.27,HAYS SPECIALIST RECRUITMENT LTD,Hays: Exams and Assessments
FCO,FCO,09-May-13,4271661,331.07,HAYS SPECIALIST RECRUITMENT LTD,Hays: Exams and Assessments
FCO,FCO,09-May-13,4271661,356.53,HAYS SPECIALIST RECRUITMENT LTD,Language Exams (excl Hays)
FCO,FCO,09-May-13,4271661,"6,983.58",HAYS SPECIALIST RECRUITMENT LTD,Finance Consultancy
FCO,FCO,09-May-13,4271661,203.74,HAYS SPECIALIST RECRUITMENT LTD,Hays: Exams and Assessments
FCO,FCO,09-May-13,4271661,"2,038.99",HAYS SPECIALIST RECRUITMENT LTD,Misc Security Payments
FCO,FCO,09-May-13,4271661,"7,425.00",HAYS SPECIALIST RECRUITMENT LTD,Finance Consultancy
FCO,FCO,09-May-13,4271661,"7,866.00",HAYS SPECIALIST RECRUITMENT LTD,Specialist Contractors
FCO,FCO,09-May-13,4271661,"19,561.50",HAYS SPECIALIST RECRUITMENT LTD,Residential Property Services
FCO,FCO,09-May-13,4271661,"1,707.75",HAYS SPECIALIST RECRUITMENT LTD,Assets Under Construction (Oracle PA Control Account)
FCO,FCO,09-May-13,4271661,"2,484.00",HAYS SPECIALIST RECRUITMENT LTD,Assets Under Construction (Oracle PA Control Account)
FCO,FCO,09-May-13,4271661,89.14,HAYS SPECIALIST RECRUITMENT LTD,Language Exams (excl Hays)
FCO,FCO,09-May-13,4271661,127.34,HAYS SPECIALIST RECRUITMENT LTD,Hays: Exams and Assessments
FCO,FCO,09-May-13,4271661,89.14,HAYS SPECIALIST RECRUITMENT LTD,Language Exams (excl Hays)
FCO,FCO,09-May-13,4271661,356.55,HAYS SPECIALIST RECRUITMENT LTD,Hays: Exams and Assessments
FCO,FCO,09-May-13,4271661,89.14,HAYS SPECIALIST RECRUITMENT LTD,Hays: Exams and Assessments
FCO,FCO,09-May-13,4271661,"11,669.62",HAYS SPECIALIST RECRUITMENT LTD,Specialist Contractors
FCO,FCO,09-May-13,4271661,"10,580.00",HAYS SPECIALIST RECRUITMENT LTD,Finance Consultancy
FCO,FCO,09-May-13,4271661,522.05,HAYS SPECIALIST RECRUITMENT LTD,Language Exams (excl Hays)
FCO,FCO,09-May-13,4271661,89.14,HAYS SPECIALIST RECRUITMENT LTD,Language Exams (excl Hays)
FCO,FCO,09-May-13,4271661,210.16,HAYS SPECIALIST RECRUITMENT LTD,Hays: Exams and Assessments
FCO,FCO,09-May-13,4271661,101.87,HAYS SPECIALIST RECRUITMENT LTD,Hays: Exams and Assessments
FCO,FCO,09-May-13,4271661,"6,643.47",HAYS SPECIALIST RECRUITMENT LTD,Specialist Contractors
FCO,FCO,09-May-13,4271661,"-2,038.99",HAYS SPECIALIST RECRUITMENT LTD,Misc Security Payments
FCO,FCO,09-May-13,4271661,"2,038.98",HAYS SPECIALIST RECRUITMENT LTD,Misc Security Payments
FCO,FCO,09-May-13,4271661,33.12,HAYS SPECIALIST RECRUITMENT LTD,Temporary Staff (Admin and Clerical Only)
FCO,FCO,09-May-13,4271661,-93.24,HAYS SPECIALIST RECRUITMENT LTD,Specialist Contractors
FCO,FCO,09-May-13,4271661,93.24,HAYS SPECIALIST RECRUITMENT LTD,Specialist Contractors
FCO,FCO,09-May-13,4271661,7,HAYS SPECIALIST RECRUITMENT LTD,Specialist Contractors
FCO,FCO,09-May-13,4271661,"3,912.30",HAYS SPECIALIST RECRUITMENT LTD,Residential Property Services
FCO,FCO,09-May-13,4271661,407.8,HAYS SPECIALIST RECRUITMENT LTD,Misc Security Payments
FCO,FCO,09-May-13,4271661,407.99,HAYS SPECIALIST RECRUITMENT LTD,Casual staff (E Dyn. Mig.)
FCO,FCO,09-May-13,4271661,472.92,HAYS SPECIALIST RECRUITMENT LTD,Fee Paid Officers
FCO,FCO,09-May-13,4271661,"1,328.69",HAYS SPECIALIST RECRUITMENT LTD,Specialist Contractors
FCO,FCO,09-May-13,4271661,"-6,643.47",HAYS SPECIALIST RECRUITMENT LTD,Specialist Contractors
FCO,FCO,09-May-13,4271661,"6,643.47",HAYS SPECIALIST RECRUITMENT LTD,Specialist Contractors
FCO,FCO,09-May-13,4271661,"1,328.69",HAYS SPECIALIST RECRUITMENT LTD,Specialist Contractors
FCO,FCO,09-May-13,4271661,"-1,328.69",HAYS SPECIALIST RECRUITMENT LTD,Specialist Contractors
FCO,FCO,09-May-13,4271661,"-2,038.98",HAYS SPECIALIST RECRUITMENT LTD,Misc Security Payments
FCO,FCO,09-May-13,4271661,"2,038.98",HAYS SPECIALIST RECRUITMENT LTD,Misc Security Payments
FCO,FCO,09-May-13,4271661,-407.8,HAYS SPECIALIST RECRUITMENT LTD,Misc Security Payments
FCO,FCO,09-May-13,4271661,407.8,HAYS SPECIALIST RECRUITMENT LTD,Misc Security Payments
FCO,FCO,09-May-13,4271661,-101.87,HAYS SPECIALIST RECRUITMENT LTD,Hays: Exams and Assessments
FCO,FCO,09-May-13,4271661,20,HAYS SPECIALIST RECRUITMENT LTD,Hays: Exams and Assessments
FCO,FCO,09-May-13,4271661,20,HAYS SPECIALIST RECRUITMENT LTD,Hays: Exams and Assessments
FCO,FCO,09-May-13,4271661,61.87,HAYS SPECIALIST RECRUITMENT LTD,Hays: Exams and Assessments
FCO,FCO,09-May-13,4291939,"68,983.05",NEWSPAPER LICENCING AGENCY(NLA) LTD,Publications
FCO,FCO,09-May-13,4291939,549.69,NEWSPAPER LICENCING AGENCY(NLA) LTD,Publications
FCO,FCO,09-May-13,4298680,"1,211,691.62",UNITED NATIONS,Programme Spend (Oracle Projects Control Account)
FCO,FCO,09-May-13,4298712,"858,705.95",UNITED NATIONS,Programme Spend (Oracle Projects Control Account)
FCO,FCO,09-May-13,4298720,"248,052.79",UNITED NATIONS,Programme Spend (Oracle Projects Control Account)
FCO,FCO,09-May-13,4298959,"37,516.63",N A MOVING SERVICES LTD,Heavy Baggage
FCO,FCO,09-May-13,4298959,"1,776.00",N A MOVING SERVICES LTD,Heavy Baggage
FCO,FCO,09-May-13,4298963,"25,100.32",N A MOVING SERVICES LTD,Heavy Baggage
FCO,FCO,09-May-13,4298963,"1,184.00",N A MOVING SERVICES LTD,Heavy Baggage
FCO,FCO,09-May-13,4298556,"5,840,056.65",INTERNATIONAL CRIMINAL COURT,Programme Spend (Oracle Projects Control Account)
FCO,FCO,09-May-13,4299123,"117,529.31",HEALIX INTERNATIONAL LTD,FCO Healthcare Scheme
FCO,FCO,09-May-13,4299123,"23,505.86",HEALIX INTERNATIONAL LTD,FCO Healthcare Scheme
FCO,FCO,09-May-13,4298088,"48,261.90",VFS BUSINESS INFORMATION CONSULTING (SHANGHAI) CO LTD,Commercial Partners (Visa)
FCO,FCO,09-May-13,4298106,"97,887.31",VFS BUSINESS INFORMATION CONSULTING (SHANGHAI) CO LTD,Commercial Partners (Visa)
FCO,FCO,09-May-13,4298106,"40,653.41",VFS BUSINESS INFORMATION CONSULTING (SHANGHAI) CO LTD,Commercial Partners (Visa)
FCO,FCO,09-May-13,4298144,"69,581.75",VFS BUSINESS INFORMATION CONSULTING (SHANGHAI) CO LTD,Commercial Partners (Visa)
FCO,FCO,09-May-13,4298152,"36,537.76",VFS BUSINESS INFORMATION CONSULTING (SHANGHAI) CO LTD,Commercial Partners (Visa)
FCO,FCO,09-May-13,4299092,"64,925.00",HRG HOGG ROBINSON TRAVEL LTD,Ministerial Visits
FCO,FCO,09-May-13,4300735,"26,625.81",ASSOCIACAO CULTURA INGLESA SAO PAULO,Rental Payments - non residential
FCO,FCO,09-May-13,4298449,"239,012.11",UNISPACE,Assets Under Construction (Oracle PA Control Account)
FCO,FCO,09-May-13,4298715,"31,385.00",CORPORATE TELEVISION NETWORK LTD,Information Service Film and TV
FCO,FCO,10-May-13,4300255,"194,169.02",LONDON ENERGY,Electricity Non-Residential
FCO,FCO,10-May-13,4300255,136.83,LONDON ENERGY,Electricity Non-Residential
FCO,FCO,10-May-13,4300255,"38,833.80",LONDON ENERGY,Electricity Non-Residential
FCO,FCO,10-May-13,4300346,"33,000.00",ROYAL UNITED SERVICES INSTITUTE FOR DEFENCE & SECURITY STUDIES,Programme Spend (Oracle Projects Control Account)
FCO,FCO,10-May-13,4299959,"69,793.00",RTKL-UK LTD,Assets Under Construction (Oracle PA Control Account)
FCO,FCO,10-May-13,4300142,"300,000.00",WESTMINSTER FOUNDATION FOR DEMOCRACY,Programme Spend (Oracle Projects Control Account)
FCO,FCO,10-May-13,4300268,"26,054.00",PACE FUELCARE LIMITED,Fuel Oil Non-Residential
FCO,FCO,10-May-13,4300268,"5,210.80",PACE FUELCARE LIMITED,Fuel Oil Non-Residential
FCO,FCO,10-May-13,4300270,"26,054.00",PACE FUELCARE LIMITED,Fuel Oil Non-Residential
FCO,FCO,10-May-13,4300270,"5,210.80",PACE FUELCARE LIMITED,Fuel Oil Non-Residential
FCO,FCO,10-May-13,4300275,"26,054.00",PACE FUELCARE LIMITED,Fuel Oil Non-Residential
FCO,FCO,10-May-13,4300275,"5,210.80",PACE FUELCARE LIMITED,Fuel Oil Non-Residential
FCO,FCO,10-May-13,4299927,"58,051.00",ECOFYS UK LTD,Programme Spend (Oracle Projects Control Account)
FCO,FCO,10-May-13,4301134,190.88,SSK,Programme Spend (Oracle Projects Control Account)
FCO,FCO,10-May-13,4301134,190.88,SSK,Programme Spend (Oracle Projects Control Account)
FCO,FCO,10-May-13,4301134,381.77,SSK,Programme Spend (Oracle Projects Control Account)
FCO,FCO,10-May-13,4301134,381.77,SSK,Programme Spend (Oracle Projects Control Account)
FCO,FCO,10-May-13,4301134,381.77,SSK,Programme Spend (Oracle Projects Control Account)
FCO,FCO,10-May-13,4299814,"1,875.83",ALPHA BANK,Fuel Oil Residential
FCO,FCO,10-May-13,4299814,389.69,ALPHA BANK,Fuel Oil Residential
FCO,FCO,10-May-13,4299814,684.87,ALPHA BANK,Learning and Development for overseas staff
FCO,FCO,10-May-13,4299814,798.71,ALPHA BANK,Office Support Services
FCO,FCO,10-May-13,4299814,6.45,ALPHA BANK,Telephone Call Charges
FCO,FCO,10-May-13,4299814,561.28,ALPHA BANK,Learning and Development for overseas staff
FCO,FCO,10-May-13,4299814,321.3,ALPHA BANK,Programme Spend (Oracle Projects Control Account)
FCO,FCO,10-May-13,4299814,164.88,ALPHA BANK,Learning and Development for overseas staff
FCO,FCO,10-May-13,4299814,352.56,ALPHA BANK,Programme Spend (Oracle Projects Control Account)
FCO,FCO,10-May-13,4299814,549.64,ALPHA BANK,Fuel Oil Residential
FCO,FCO,10-May-13,4299814,376.26,ALPHA BANK,Learning and Development for overseas staff
FCO,FCO,10-May-13,4299814,253.66,ALPHA BANK,Learning and Development for overseas staff
FCO,FCO,10-May-13,4299814,191.93,ALPHA BANK,Programme Spend (Oracle Projects Control Account)
FCO,FCO,10-May-13,4299814,253.66,ALPHA BANK,Post - Air Travel
FCO,FCO,10-May-13,4299814,126.83,ALPHA BANK,Post - Air Travel
FCO,FCO,10-May-13,4299814,338.21,ALPHA BANK,Programme Spend (Oracle Projects Control Account)
FCO,FCO,10-May-13,4299814,126.83,ALPHA BANK,Post - Air Travel
FCO,FCO,10-May-13,4299814,535.6,ALPHA BANK,Local Guards
FCO,FCO,10-May-13,4299814,487.88,ALPHA BANK,Accommodation
FCO,FCO,10-May-13,4299814,38.25,ALPHA BANK,Post - Air Travel
FCO,FCO,10-May-13,4299814,414.31,ALPHA BANK,Post - Air Travel
FCO,FCO,10-May-13,4299814,19.72,ALPHA BANK,Rail Travel
FCO,FCO,10-May-13,4299814,439.67,ALPHA BANK,Post - Air Travel
FCO,FCO,10-May-13,4299814,278.58,ALPHA BANK,Post - Air Travel
FCO,FCO,10-May-13,4299814,100.62,ALPHA BANK,Minor New Works <10K
FCO,FCO,10-May-13,4299814,50.73,ALPHA BANK,Post - Air Travel
FCO,FCO,10-May-13,4299814,397.28,ALPHA BANK,Purchase Of Uniforms
FCO,FCO,10-May-13,4299814,355.94,ALPHA BANK,Purchase Of Uniforms
FCO,FCO,10-May-13,4299814,152.19,ALPHA BANK,Purchase Of Uniforms
FCO,FCO,10-May-13,4299814,133.59,ALPHA BANK,Post - Air Travel
FCO,FCO,10-May-13,4299814,114.15,ALPHA BANK,Post - Air Travel
FCO,FCO,10-May-13,4299814,94.28,ALPHA BANK,Accommodation
FCO,FCO,10-May-13,4299814,94.28,ALPHA BANK,Accommodation
FCO,FCO,10-May-13,4299814,"1,521.92",ALPHA BANK,Purchase Of Uniforms
FCO,FCO,10-May-13,4299814,84.53,ALPHA BANK,Purchase Of Uniforms
FCO,FCO,10-May-13,4299814,530.73,ALPHA BANK,Representation of the FCO
FCO,FCO,10-May-13,4299814,62.95,ALPHA BANK,Business Hospitality (former DEE)
FCO,FCO,10-May-13,4299814,80.32,ALPHA BANK,Business Hospitality (former DEE)
FCO,FCO,10-May-13,4299814,51.58,ALPHA BANK,Business Hospitality (former DEE)
FCO,FCO,10-May-13,4299814,"1,575.94",ALPHA BANK,Estates - Other Machinery and Equipment
FCO,FCO,10-May-13,4299814,"2,513.66",ALPHA BANK,Estates - Other Machinery and Equipment
FCO,FCO,10-May-13,4299814,299.81,ALPHA BANK,Estates - Other Machinery and Equipment
FCO,FCO,10-May-13,4299814,344.48,ALPHA BANK,Learning and Development for overseas staff
FCO,FCO,10-May-13,4299814,842.39,ALPHA BANK,Recruitment - Adverts
FCO,FCO,10-May-13,4299814,11.16,ALPHA BANK,Learning and Development for overseas staff
FCO,FCO,10-May-13,4299814,10.99,ALPHA BANK,Learning and Development for overseas staff
FCO,FCO,10-May-13,4299814,378.79,ALPHA BANK,Purchase Of Uniforms
FCO,FCO,10-May-13,4299814,21.14,ALPHA BANK,Estates - Other Machinery and Equipment
FCO,FCO,10-May-13,4299814,45.66,ALPHA BANK,Office Support Services
FCO,FCO,10-May-13,4299814,45.66,ALPHA BANK,Office Support Services
FCO,FCO,10-May-13,4299814,104.42,ALPHA BANK,Post - Air Travel
FCO,FCO,10-May-13,4299814,100.32,ALPHA BANK,Post - Air Travel
FCO,FCO,10-May-13,4299814,130.43,ALPHA BANK,Post - Air Travel
FCO,FCO,10-May-13,4299814,"2,536.57",ALPHA BANK,Estates - Other Machinery and Equipment
FCO,FCO,10-May-13,4299814,364.25,ALPHA BANK,Programme Spend (Oracle Projects Control Account)
FCO,FCO,10-May-13,4299814,3.38,ALPHA BANK,Programme Spend (Oracle Projects Control Account)
FCO,FCO,10-May-13,4299814,59.91,ALPHA BANK,Programme Spend (Oracle Projects Control Account)
FCO,FCO,10-May-13,4299814,36.82,ALPHA BANK,Programme Spend (Oracle Projects Control Account)
FCO,FCO,10-May-13,4299814,228.29,ALPHA BANK,Accommodation
FCO,FCO,10-May-13,4299814,32.13,ALPHA BANK,Meals
FCO,FCO,10-May-13,4299814,280.71,ALPHA BANK,Post - Air Travel
FCO,FCO,10-May-13,4299814,18.6,ALPHA BANK,Meals
FCO,FCO,10-May-13,4299814,16.06,ALPHA BANK,Post - Air Travel
FCO,FCO,10-May-13,4299814,16.91,ALPHA BANK,Post - Air Travel
FCO,FCO,10-May-13,4299814,680.65,ALPHA BANK,Accommodation
FCO,FCO,10-May-13,4299814,84.55,ALPHA BANK,Taxi
FCO,FCO,10-May-13,4299814,33.36,ALPHA BANK,Meals
FCO,FCO,10-May-13,4299814,185.17,ALPHA BANK,Post - Air Travel
FCO,FCO,10-May-13,4299814,127.67,ALPHA BANK,Business Hospitality (former DEE)
FCO,FCO,10-May-13,4299814,57.66,ALPHA BANK,Business Hospitality (former DEE)
FCO,FCO,10-May-13,4299814,10.99,ALPHA BANK,Business Hospitality (former DEE)
FCO,FCO,10-May-13,4299814,"1,457.31",ALPHA BANK,Mobile Telephone Equipment
FCO,FCO,10-May-13,4299814,27.48,ALPHA BANK,Mobile Telephone Equipment
FCO,FCO,10-May-13,4299814,139.51,ALPHA BANK,Purchase Of Uniforms
FCO,FCO,10-May-13,4299814,50.73,ALPHA BANK,Purchase Of Uniforms
FCO,FCO,10-May-13,4299814,16.91,ALPHA BANK,Purchase Of Uniforms
FCO,FCO,10-May-13,4299814,708.62,ALPHA BANK,Vehicles: Petrol Oil Etc.
FCO,FCO,10-May-13,4299814,369.24,ALPHA BANK,Vehicles: Petrol Oil Etc.
FCO,FCO,10-May-13,4299814,405.01,ALPHA BANK,Purchase Of Uniforms
FCO,FCO,10-May-13,4299814,306.77,ALPHA BANK,Post - Air Travel
FCO,FCO,10-May-13,4299814,151.35,ALPHA BANK,Training Courses
FCO,FCO,10-May-13,4299814,34.32,ALPHA BANK,Rail Travel
FCO,FCO,10-May-13,4299814,194.17,ALPHA BANK,Training Courses
FCO,FCO,10-May-13,4299814,78.46,ALPHA BANK,Property Maintenance Overseas Non Residential
FCO,FCO,10-May-13,4299814,116.17,ALPHA BANK,Property Maintenance Overseas Residential
FCO,FCO,10-May-13,4299814,312.84,ALPHA BANK,Property Maintenance Overseas Non Residential
FCO,FCO,10-May-13,4299814,175.87,ALPHA BANK,Fuel Oil Residential
FCO,FCO,10-May-13,4299814,275.56,ALPHA BANK,Purchase Of Uniforms
FCO,FCO,10-May-13,4299814,503.97,ALPHA BANK,Library And Information Services
FCO,FCO,10-May-13,4299814,77.47,ALPHA BANK,Business Hospitality (former DEE)
FCO,FCO,10-May-13,4299814,152.19,ALPHA BANK,Library And Information Services
FCO,FCO,10-May-13,4299814,133.59,ALPHA BANK,Library And Information Services
FCO,FCO,10-May-13,4299814,139.26,ALPHA BANK,Purchase Of Uniforms
FCO,FCO,10-May-13,4299814,92.69,ALPHA BANK,Vehicle Maintenance
FCO,FCO,10-May-13,4299814,139.51,ALPHA BANK,Post - Air Travel
FCO,FCO,10-May-13,4299814,312,ALPHA BANK,Purchase Of Uniforms
FCO,FCO,10-May-13,4299814,365.5,ALPHA BANK,Vehicle Maintenance
FCO,FCO,10-May-13,4299814,750.82,ALPHA BANK,Purchase Of Uniforms
FCO,FCO,10-May-13,4299814,858.03,ALPHA BANK,Business Hospitality (former DEE)
FCO,FCO,10-May-13,4299814,378.79,ALPHA BANK,"Purchase of Furniture, Fittings and Domestic Appliances"
FCO,FCO,10-May-13,4299814,46.42,ALPHA BANK,Purchase Of Uniforms
FCO,FCO,10-May-13,4299814,61.64,ALPHA BANK,Purchase Of Uniforms
FCO,FCO,10-May-13,4299814,33.82,ALPHA BANK,Purchase Of Uniforms
FCO,FCO,10-May-13,4299814,104.42,ALPHA BANK,Purchase Of Uniforms
FCO,FCO,10-May-13,4299814,312,ALPHA BANK,"Purchase of Furniture, Fittings and Domestic Appliances"
FCO,FCO,10-May-13,4299814,275.15,ALPHA BANK,Grounds Maintenance
FCO,FCO,10-May-13,4299814,25.37,ALPHA BANK,Purchase Of Uniforms
FCO,FCO,10-May-13,4299814,33.82,ALPHA BANK,Post - Air Travel
FCO,FCO,10-May-13,4299814,33.82,ALPHA BANK,Post - Air Travel
FCO,FCO,10-May-13,4299814,150.41,ALPHA BANK,Cleaning & Waste
FCO,FCO,10-May-13,4299814,"1,198.95",ALPHA BANK,"Purchase of Furniture, Fittings and Domestic Appliances"
FCO,FCO,10-May-13,4299814,125.98,ALPHA BANK,"Purchase of Furniture, Fittings and Domestic Appliances"
FCO,FCO,10-May-13,4299814,34.67,ALPHA BANK,"Purchase of Furniture, Fittings and Domestic Appliances"
FCO,FCO,10-May-13,4299814,57.5,ALPHA BANK,Repair and maintenance of furniture and fittings
FCO,FCO,10-May-13,4299814,152.19,ALPHA BANK,Unscheduled repairs to building infrastructure
FCO,FCO,10-May-13,4299814,588.32,ALPHA BANK,Business Hospitality (former DEE)
FCO,FCO,10-May-13,4299814,864.12,ALPHA BANK,Purchase Of Uniforms
FCO,FCO,10-May-13,4299814,101.46,ALPHA BANK,Purchase Of Uniforms
FCO,FCO,10-May-13,4299814,126.57,ALPHA BANK,Purchase Of Uniforms
FCO,FCO,10-May-13,4299814,146.06,ALPHA BANK,Training Course: Journeys
FCO,FCO,10-May-13,4299814,32.98,ALPHA BANK,Post - Air Travel
FCO,FCO,10-May-13,4299814,18.35,ALPHA BANK,Post - Air Travel
FCO,FCO,10-May-13,4299814,189.4,ALPHA BANK,Post - Air Travel
FCO,FCO,10-May-13,4299814,325.53,ALPHA BANK,Post - Air Travel
FCO,FCO,10-May-13,4299814,21.14,ALPHA BANK,Miscellaneous Expenditure: inc subscriptions and equipment maintenance
FCO,FCO,10-May-13,4299814,39.13,ALPHA BANK,Business Hospitality (former DEE)
FCO,FCO,10-May-13,4299814,-19.72,ALPHA BANK,Rail Travel
FCO,FCO,10-May-13,4299814,-439.67,ALPHA BANK,Post - Air Travel
FCO,FCO,10-May-13,4299814,19.72,ALPHA BANK,Sea Ferry Journeys
FCO,FCO,10-May-13,4299814,439.67,ALPHA BANK,Post - Air Travel
FCO,FCO,10-May-13,4300560,"90,792.00",KNOCK TRAVEL,Accommodation
FCO,FCO,10-May-13,4301886,378.62,SISTEMA INTEGRADO MULTIPLE DE PAGOS,Programme Spend (Oracle Projects Control Account)
FCO,FCO,10-May-13,4301886,381.37,SISTEMA INTEGRADO MULTIPLE DE PAGOS,Programme Spend (Oracle Projects Control Account)
FCO,FCO,10-May-13,4301886,260.46,SISTEMA INTEGRADO MULTIPLE DE PAGOS,Programme Spend (Oracle Projects Control Account)
FCO,FCO,10-May-13,4291977,"87,264.20",GARDA WORLD LTD,Specialist Contractors
FCO,FCO,10-May-13,4300138,"154,555.91",MSECURE LTD,Assets Under Construction (Oracle PA Control Account)
FCO,FCO,10-May-13,4292726,"41,030.57",BK SHRESTHA AND BUILDERS PVT LTD,Assets Under Construction (Oracle PA Control Account)
FCO,FCO,10-May-13,4299948,"29,316.70",NERA UK LTD,Programme Spend (Oracle Projects Control Account)
FCO,FCO,10-May-13,4300229,"46,103.00",EIC LTD,Assets Under Construction (Oracle PA Control Account)
FCO,FCO,10-May-13,4300229,"3,746.87",EIC LTD,Assets Under Construction (Oracle PA Control Account)
FCO,FCO,10-May-13,4297606,"25,555.21",SHIFT,Programme Spend (Oracle Projects Control Account)
FCO,FCO,10-May-13,4300605,"884,126.26",CORPORATE TELEVISION NETWORK LTD,Inward visits to the UK and UK Conferences
FCO,FCO,13-May-13,4299982,"400,000.00",BBC  BRITISH BROADCASTING CORPORATION,Programme Spend (Oracle Projects Control Account)
FCO,FCO,13-May-13,4299997,"18,400,000.00",BBC  BRITISH BROADCASTING CORPORATION,Programme Spend (Oracle Projects Control Account)
FCO,FCO,13-May-13,4295484,"2,525.53",LIBERTY LIFE PROPERTIES,Electricity Non-Residential
FCO,FCO,13-May-13,4295484,515.41,LIBERTY LIFE PROPERTIES,Rates Taxes Non-Residential
FCO,FCO,13-May-13,4295484,50.35,LIBERTY LIFE PROPERTIES,Waste Disposal
FCO,FCO,13-May-13,4295484,"27,097.69",LIBERTY LIFE PROPERTIES,Rental Payments - non residential
FCO,FCO,13-May-13,4295484,90.11,LIBERTY LIFE PROPERTIES,Water Non-Residential
FCO,FCO,13-May-13,4295478,549.89,GARANTI BANKASI,Business Hospitality (former DEE)
FCO,FCO,13-May-13,4295478,90.01,GARANTI BANKASI,Vehicle Hire
FCO,FCO,13-May-13,4295478,27.54,GARANTI BANKASI,Meals
FCO,FCO,13-May-13,4295478,49.5,GARANTI BANKASI,Meals
FCO,FCO,13-May-13,4295478,118.09,GARANTI BANKASI,Fuel
FCO,FCO,13-May-13,4295478,36,GARANTI BANKASI,Fuel
FCO,FCO,13-May-13,4295478,132.41,GARANTI BANKASI,Fuel
FCO,FCO,13-May-13,4295478,110.55,GARANTI BANKASI,Fuel
FCO,FCO,13-May-13,4295478,3.78,GARANTI BANKASI,Meals
FCO,FCO,13-May-13,4295478,77.41,GARANTI BANKASI,Meals
FCO,FCO,13-May-13,4295478,151.22,GARANTI BANKASI,Accommodation
FCO,FCO,13-May-13,4295478,25.92,GARANTI BANKASI,Meals
FCO,FCO,13-May-13,4295478,3.4,GARANTI BANKASI,Local Courier Fares
FCO,FCO,13-May-13,4295478,154.64,GARANTI BANKASI,Security: Works Non-Residential
FCO,FCO,13-May-13,4295478,76.69,GARANTI BANKASI,Training Courses
FCO,FCO,13-May-13,4295478,12.6,GARANTI BANKASI,Training Courses
FCO,FCO,13-May-13,4295478,172.82,GARANTI BANKASI,Business Hospitality (former DEE)
FCO,FCO,13-May-13,4295478,35.32,GARANTI BANKASI,Local Courier Fares
FCO,FCO,13-May-13,4295478,84.61,GARANTI BANKASI,Office Support Services
FCO,FCO,13-May-13,4295478,5.76,GARANTI BANKASI,Training Courses
FCO,FCO,13-May-13,4295478,30.79,GARANTI BANKASI,Training Courses
FCO,FCO,13-May-13,4295478,131.95,GARANTI BANKASI,Training Courses
FCO,FCO,13-May-13,4295478,12.48,GARANTI BANKASI,Meals
FCO,FCO,13-May-13,4295478,11.88,GARANTI BANKASI,Business Hospitality (former DEE)
FCO,FCO,13-May-13,4295478,518.11,GARANTI BANKASI,Accommodation
FCO,FCO,13-May-13,4295478,515.46,GARANTI BANKASI,Learning and Development for overseas staff
FCO,FCO,13-May-13,4295478,98.29,GARANTI BANKASI,Post - Air Travel
FCO,FCO,13-May-13,4295478,20.88,GARANTI BANKASI,Miscellaneous Expenditure: inc subscriptions and equipment maintenance
FCO,FCO,13-May-13,4295478,171.38,GARANTI BANKASI,Post - Air Travel
FCO,FCO,13-May-13,4295478,77.05,GARANTI BANKASI,Post - Air Travel
FCO,FCO,13-May-13,4295478,44.64,GARANTI BANKASI,Post - Air Travel
FCO,FCO,13-May-13,4295478,87.13,GARANTI BANKASI,Post - Air Travel
FCO,FCO,13-May-13,4295478,7.2,GARANTI BANKASI,Post - Air Travel
FCO,FCO,13-May-13,4295478,95.05,GARANTI BANKASI,Post - Air Travel
FCO,FCO,13-May-13,4295478,158.06,GARANTI BANKASI,Post - Air Travel
FCO,FCO,13-May-13,4295478,44.23,GARANTI BANKASI,Accommodation
FCO,FCO,13-May-13,4295478,136.81,GARANTI BANKASI,Meals
FCO,FCO,13-May-13,4295478,3.15,GARANTI BANKASI,Meals
FCO,FCO,13-May-13,4295478,36,GARANTI BANKASI,Vehicles Miscellaneous
FCO,FCO,13-May-13,4295478,341.22,GARANTI BANKASI,Vehicle Hire
FCO,FCO,13-May-13,4295478,84.97,GARANTI BANKASI,Estates - Other Machinery and Equipment
FCO,FCO,13-May-13,4295478,80.38,GARANTI BANKASI,Accommodation
FCO,FCO,13-May-13,4295478,18.26,GARANTI BANKASI,Meals
FCO,FCO,13-May-13,4295478,16.82,GARANTI BANKASI,Meals
FCO,FCO,13-May-13,4295478,7.02,GARANTI BANKASI,Meals
FCO,FCO,13-May-13,4295478,6.73,GARANTI BANKASI,Meals
FCO,FCO,13-May-13,4295478,50.77,GARANTI BANKASI,Meals
FCO,FCO,13-May-13,4295478,207.06,GARANTI BANKASI,Accommodation
FCO,FCO,13-May-13,4295478,84.97,GARANTI BANKASI,Meals
FCO,FCO,13-May-13,4295478,44.64,GARANTI BANKASI,Business Hospitality (former DEE)
FCO,FCO,13-May-13,4295478,23.49,GARANTI BANKASI,Miscellaneous Expenditure: inc subscriptions and equipment maintenance
FCO,FCO,13-May-13,4295478,18,GARANTI BANKASI,Vehicles Miscellaneous
FCO,FCO,13-May-13,4295478,93.61,GARANTI BANKASI,Technical Supplies (Maint)
FCO,FCO,13-May-13,4295478,355.58,GARANTI BANKASI,Accommodation
FCO,FCO,13-May-13,4295478,30.6,GARANTI BANKASI,Meals
FCO,FCO,13-May-13,4295478,28.24,GARANTI BANKASI,Meals
FCO,FCO,13-May-13,4295478,31.73,GARANTI BANKASI,Meals
FCO,FCO,13-May-13,4295478,6.68,GARANTI BANKASI,Meals
FCO,FCO,13-May-13,4295478,5.1,GARANTI BANKASI,Meals
FCO,FCO,13-May-13,4295478,14.43,GARANTI BANKASI,Meals
FCO,FCO,13-May-13,4295478,15.37,GARANTI BANKASI,Meals
FCO,FCO,13-May-13,4295478,4.54,GARANTI BANKASI,Meals
FCO,FCO,13-May-13,4295478,13.68,GARANTI BANKASI,Meals
FCO,FCO,13-May-13,4295478,262.38,GARANTI BANKASI,Post - Air Travel
FCO,FCO,13-May-13,4295478,207.02,GARANTI BANKASI,Accommodation
FCO,FCO,13-May-13,4295478,17.28,GARANTI BANKASI,Meals
FCO,FCO,13-May-13,4295478,8.26,GARANTI BANKASI,Meals
FCO,FCO,13-May-13,4295478,250.66,GARANTI BANKASI,Property Maintenance Overseas Non Residential
FCO,FCO,13-May-13,4295478,326.96,GARANTI BANKASI,Training Courses
FCO,FCO,13-May-13,4295478,412.1,GARANTI BANKASI,Information Systems Maintenance
FCO,FCO,13-May-13,4295478,161.66,GARANTI BANKASI,Post - Air Travel
FCO,FCO,13-May-13,4295478,69.12,GARANTI BANKASI,Post - Air Travel
FCO,FCO,13-May-13,4295478,-112.33,GARANTI BANKASI,Post - Air Travel
FCO,FCO,13-May-13,4295478,17.58,GARANTI BANKASI,Office Support Services
FCO,FCO,13-May-13,4295478,10.8,GARANTI BANKASI,Meals
FCO,FCO,13-May-13,4295478,81.45,GARANTI BANKASI,Office Support Services
FCO,FCO,13-May-13,4295478,14.1,GARANTI BANKASI,Meals
FCO,FCO,13-May-13,4295478,91.61,GARANTI BANKASI,Accommodation
FCO,FCO,13-May-13,4295478,105.85,GARANTI BANKASI,Post - Air Travel
FCO,FCO,13-May-13,4295478,25.2,GARANTI BANKASI,Post - Air Travel
FCO,FCO,13-May-13,4295478,11.7,GARANTI BANKASI,Meals
FCO,FCO,13-May-13,4295478,563.65,GARANTI BANKASI,Accommodation
FCO,FCO,13-May-13,4295478,2.52,GARANTI BANKASI,Meals
FCO,FCO,13-May-13,4295478,20.55,GARANTI BANKASI,Post - Air Travel
FCO,FCO,13-May-13,4295478,20.55,GARANTI BANKASI,Taxi
FCO,FCO,13-May-13,4295478,4.62,GARANTI BANKASI,Meals
FCO,FCO,13-May-13,4295478,10.27,GARANTI BANKASI,Post - Air Travel
FCO,FCO,13-May-13,4295478,10.27,GARANTI BANKASI,Post - Air Travel
FCO,FCO,13-May-13,4295478,3.5,GARANTI BANKASI,Accommodation
FCO,FCO,13-May-13,4295478,5.07,GARANTI BANKASI,Accommodation
FCO,FCO,13-May-13,4295478,5.47,GARANTI BANKASI,Accommodation
FCO,FCO,13-May-13,4295478,20.7,GARANTI BANKASI,Post - Air Travel
FCO,FCO,13-May-13,4295478,492.89,GARANTI BANKASI,Accommodation
FCO,FCO,13-May-13,4295478,5.58,GARANTI BANKASI,Meals
FCO,FCO,13-May-13,4295478,40.39,GARANTI BANKASI,Meals
FCO,FCO,13-May-13,4295478,14.04,GARANTI BANKASI,Mileage
FCO,FCO,13-May-13,4295478,"1,011.93",GARANTI BANKASI,Post - Air Travel
FCO,FCO,13-May-13,4295478,324.51,GARANTI BANKASI,Post - Air Travel
FCO,FCO,13-May-13,4295478,14.22,GARANTI BANKASI,Meals
FCO,FCO,13-May-13,4295478,4.68,GARANTI BANKASI,Mileage
FCO,FCO,13-May-13,4295478,33.05,GARANTI BANKASI,Vehicle Maintenance
FCO,FCO,13-May-13,4295478,126.55,GARANTI BANKASI,Postal Services
FCO,FCO,13-May-13,4295478,277.23,GARANTI BANKASI,Vehicles Miscellaneous
FCO,FCO,13-May-13,4295478,77.4,GARANTI BANKASI,Electricity Residential
FCO,FCO,13-May-13,4295478,477.7,GARANTI BANKASI,Programme Spend (Oracle Projects Control Account)
FCO,FCO,13-May-13,4295478,380.27,GARANTI BANKASI,Post - Air Travel
FCO,FCO,13-May-13,4295478,207.28,GARANTI BANKASI,Programme Spend (Oracle Projects Control Account)
FCO,FCO,13-May-13,4295478,188.3,GARANTI BANKASI,Post - Air Travel
FCO,FCO,13-May-13,4295478,111.48,GARANTI BANKASI,The Stationery Office
FCO,FCO,13-May-13,4295478,111.48,GARANTI BANKASI,The Stationery Office
FCO,FCO,13-May-13,4295478,102.74,GARANTI BANKASI,Training Courses
FCO,FCO,13-May-13,4295478,"1,148.87",GARANTI BANKASI,Business Hospitality (former DEE)
FCO,FCO,13-May-13,4295478,43.2,GARANTI BANKASI,Training Courses
FCO,FCO,13-May-13,4295478,415.82,GARANTI BANKASI,Post - Air Travel
FCO,FCO,13-May-13,4295478,601.97,GARANTI BANKASI,Post - Air Travel
FCO,FCO,13-May-13,4295478,917.66,GARANTI BANKASI,Post - Air Travel
FCO,FCO,13-May-13,4295478,"1,063.10",GARANTI BANKASI,Post - Air Travel
FCO,FCO,13-May-13,4295478,172.35,GARANTI BANKASI,Post - Air Travel
FCO,FCO,13-May-13,4295478,278.92,GARANTI BANKASI,Post - Air Travel
FCO,FCO,13-May-13,4295478,3.05,GARANTI BANKASI,Post - Air Travel
FCO,FCO,13-May-13,4295478,365.04,GARANTI BANKASI,Post - Air Travel
FCO,FCO,13-May-13,4295478,309.89,GARANTI BANKASI,Post - Air Travel
FCO,FCO,13-May-13,4295478,21.6,GARANTI BANKASI,Programme Spend (Oracle Projects Control Account)
FCO,FCO,13-May-13,4295478,233.66,GARANTI BANKASI,Representation of the FCO
FCO,FCO,13-May-13,4295478,483.59,GARANTI BANKASI,Meals
FCO,FCO,13-May-13,4295478,85.44,GARANTI BANKASI,Accommodation
FCO,FCO,13-May-13,4295478,244.49,GARANTI BANKASI,Accommodation
FCO,FCO,13-May-13,4295478,2.61,GARANTI BANKASI,Meals
FCO,FCO,13-May-13,4295478,5.76,GARANTI BANKASI,Meals
FCO,FCO,13-May-13,4295478,75.61,GARANTI BANKASI,Fuel
FCO,FCO,13-May-13,4295478,10.8,GARANTI BANKASI,Vehicles: Materials and Parts
FCO,FCO,13-May-13,4295478,69.85,GARANTI BANKASI,Vehicle Maintenance
FCO,FCO,13-May-13,4295478,28.8,GARANTI BANKASI,Property Maintenance Overseas Non Residential
FCO,FCO,13-May-13,4295478,113.7,GARANTI BANKASI,Property Maintenance Overseas Residential
FCO,FCO,13-May-13,4295478,423.69,GARANTI BANKASI,Property Maintenance Overseas Non Residential
FCO,FCO,13-May-13,4295478,79.96,GARANTI BANKASI,Property Maintenance Overseas Residential
FCO,FCO,13-May-13,4295478,503.69,GARANTI BANKASI,Property Maintenance Overseas Residential
FCO,FCO,13-May-13,4295478,118.96,GARANTI BANKASI,Property Maintenance Overseas Residential
FCO,FCO,13-May-13,4295478,28.8,GARANTI BANKASI,Property Maintenance Overseas Residential
FCO,FCO,13-May-13,4295478,187.22,GARANTI BANKASI,Property Maintenance Overseas Residential
FCO,FCO,13-May-13,4295478,35.47,GARANTI BANKASI,Property Maintenance Overseas Residential
FCO,FCO,13-May-13,4295478,196.49,GARANTI BANKASI,Property Maintenance Overseas Residential
FCO,FCO,13-May-13,4295478,4.32,GARANTI BANKASI,Property Maintenance Overseas Non Residential
FCO,FCO,13-May-13,4295478,181.83,GARANTI BANKASI,Security: Works Non-Residential
FCO,FCO,13-May-13,4295478,488.57,GARANTI BANKASI,Property Maintenance Overseas Residential
FCO,FCO,13-May-13,4295478,367.06,GARANTI BANKASI,Property Maintenance Overseas Non Residential
FCO,FCO,13-May-13,4295478,181.62,GARANTI BANKASI,Property Maintenance Overseas Non Residential
FCO,FCO,13-May-13,4295478,47.16,GARANTI BANKASI,Property Maintenance Overseas Non Residential
FCO,FCO,13-May-13,4295478,426.97,GARANTI BANKASI,Property Maintenance Overseas Residential
FCO,FCO,13-May-13,4295478,115.56,GARANTI BANKASI,Security: Works Residential
FCO,FCO,13-May-13,4295478,12.6,GARANTI BANKASI,Property Maintenance Overseas Non Residential
FCO,FCO,13-May-13,4295478,14.4,GARANTI BANKASI,Property Maintenance Overseas Non Residential
FCO,FCO,13-May-13,4295478,97.21,GARANTI BANKASI,Property Maintenance Overseas Non Residential
FCO,FCO,13-May-13,4295478,154.64,GARANTI BANKASI,Security: Works Non-Residential
FCO,FCO,13-May-13,4295478,430.6,GARANTI BANKASI,Estates - Other Machinery and Equipment
FCO,FCO,13-May-13,4295478,55.45,GARANTI BANKASI,Telephone Call Charges
FCO,FCO,13-May-13,4295478,127.45,GARANTI BANKASI,Estates - Other Machinery and Equipment
FCO,FCO,13-May-13,4295478,741.5,GARANTI BANKASI,Post - Air Travel
FCO,FCO,13-May-13,4295478,635.11,GARANTI BANKASI,Post - Air Travel
FCO,FCO,13-May-13,4295478,409.19,GARANTI BANKASI,Accommodation
FCO,FCO,13-May-13,4295478,85.39,GARANTI BANKASI,Rail Travel
FCO,FCO,13-May-13,4295478,"1,127.29",GARANTI BANKASI,Programme Spend (Oracle Projects Control Account)
FCO,FCO,13-May-13,4295478,774.5,GARANTI BANKASI,Accommodation
FCO,FCO,13-May-13,4295478,199.79,GARANTI BANKASI,Business Hospitality (former DEE)
FCO,FCO,13-May-13,4295478,"1,104.26",GARANTI BANKASI,Accommodation
FCO,FCO,13-May-13,4295478,224.32,GARANTI BANKASI,Cleaning & Waste
FCO,FCO,13-May-13,4295478,38.7,GARANTI BANKASI,Business Hospitality (former DEE)
FCO,FCO,13-May-13,4295478,248.42,GARANTI BANKASI,Learning and Development for overseas staff
FCO,FCO,13-May-13,4295478,"1,332.31",GARANTI BANKASI,"Purchase of Furniture, Fittings and Domestic Appliances"
FCO,FCO,13-May-13,4295478,217.09,GARANTI BANKASI,"Purchase of Furniture, Fittings and Domestic Appliances"
FCO,FCO,13-May-13,4295478,"1,543.45",GARANTI BANKASI,"Purchase of Furniture, Fittings and Domestic Appliances"
FCO,FCO,13-May-13,4295478,"1,052.93",GARANTI BANKASI,Water Non-Residential
FCO,FCO,13-May-13,4295478,36,GARANTI BANKASI,Vehicles: Petrol Oil Etc.
FCO,FCO,13-May-13,4295478,73.08,GARANTI BANKASI,Grounds Maintenance
FCO,FCO,13-May-13,4295478,93.25,GARANTI BANKASI,Property Maintenance Overseas Residential
FCO,FCO,13-May-13,4295478,9.36,GARANTI BANKASI,Grounds Maintenance
FCO,FCO,13-May-13,4295478,169.58,GARANTI BANKASI,Property Maintenance Overseas Non Residential
FCO,FCO,13-May-13,4295478,8.28,GARANTI BANKASI,Property Maintenance Overseas Non Residential
FCO,FCO,13-May-13,4295478,14.4,GARANTI BANKASI,Property Maintenance Overseas Residential
FCO,FCO,13-May-13,4295478,77.53,GARANTI BANKASI,Property Maintenance Overseas Residential
FCO,FCO,13-May-13,4295478,194.47,GARANTI BANKASI,Property Maintenance Overseas Non Residential
FCO,FCO,13-May-13,4295478,108.33,GARANTI BANKASI,Property Maintenance Overseas Residential
FCO,FCO,13-May-13,4295478,108.33,GARANTI BANKASI,Property Maintenance Overseas Residential
FCO,FCO,13-May-13,4295478,36,GARANTI BANKASI,Property Maintenance Overseas Non Residential
FCO,FCO,13-May-13,4295478,7.2,GARANTI BANKASI,Property Maintenance Overseas Residential
FCO,FCO,13-May-13,4295478,6.3,GARANTI BANKASI,Repairs And Refurbishment: Works Residential
FCO,FCO,13-May-13,4295478,5.4,GARANTI BANKASI,Property Maintenance Overseas Residential
FCO,FCO,13-May-13,4295478,4.5,GARANTI BANKASI,Property Maintenance Overseas Residential
FCO,FCO,13-May-13,4295478,19.44,GARANTI BANKASI,Grounds Maintenance
FCO,FCO,13-May-13,4295478,17.1,GARANTI BANKASI,Property Maintenance Overseas Residential
FCO,FCO,13-May-13,4295478,29.52,GARANTI BANKASI,Repairs And Refurbishment: Works Residential
FCO,FCO,13-May-13,4295478,127.45,GARANTI BANKASI,Property Maintenance Overseas Residential
FCO,FCO,13-May-13,4295478,62.93,GARANTI BANKASI,Property Maintenance Overseas Residential
FCO,FCO,13-May-13,4295478,356.91,GARANTI BANKASI,Post - Air Travel
FCO,FCO,13-May-13,4295478,152.3,GARANTI BANKASI,Post - Air Travel
FCO,FCO,13-May-13,4295478,152.3,GARANTI BANKASI,Post - Air Travel
FCO,FCO,13-May-13,4295478,137.89,GARANTI BANKASI,UK - Air Travel
FCO,FCO,13-May-13,4295478,98.29,GARANTI BANKASI,Post - Air Travel
FCO,FCO,13-May-13,4295478,337.34,GARANTI BANKASI,Post - Air Travel
FCO,FCO,13-May-13,4295478,188.3,GARANTI BANKASI,Post - Air Travel
FCO,FCO,13-May-13,4295478,284.24,GARANTI BANKASI,Post - Air Travel
FCO,FCO,13-May-13,4295478,130.69,GARANTI BANKASI,Training Courses
FCO,FCO,13-May-13,4295478,171.57,GARANTI BANKASI,Post - Air Travel
FCO,FCO,13-May-13,4295478,188.3,GARANTI BANKASI,Post - Air Travel
FCO,FCO,13-May-13,4295478,188.3,GARANTI BANKASI,Post - Air Travel
FCO,FCO,13-May-13,4295478,141.49,GARANTI BANKASI,Post - Air Travel
FCO,FCO,13-May-13,4295478,130.69,GARANTI BANKASI,Post - Air Travel
FCO,FCO,13-May-13,4295478,28.08,GARANTI BANKASI,Post - Air Travel
FCO,FCO,13-May-13,4295478,173.18,GARANTI BANKASI,Post - Air Travel
FCO,FCO,13-May-13,4295478,139.31,GARANTI BANKASI,Training Courses
FCO,FCO,13-May-13,4295478,609.07,GARANTI BANKASI,Training Courses
FCO,FCO,13-May-13,4295478,27,GARANTI BANKASI,Taxi
FCO,FCO,13-May-13,4295478,43.2,GARANTI BANKASI,Taxi
FCO,FCO,13-May-13,4295478,144.01,GARANTI BANKASI,Purchase Of Uniforms
FCO,FCO,13-May-13,4295478,0.86,GARANTI BANKASI,Mobile Telephone Equipment
FCO,FCO,13-May-13,4295478,504.05,GARANTI BANKASI,Mobile Telephone Equipment
FCO,FCO,13-May-13,4295478,0.43,GARANTI BANKASI,Mobile Telephone Equipment
FCO,FCO,13-May-13,4295478,"1,437.62",GARANTI BANKASI,General Information Services
FCO,FCO,13-May-13,4295478,21.24,GARANTI BANKASI,Printing
FCO,FCO,13-May-13,4295478,21.24,GARANTI BANKASI,Printing
FCO,FCO,13-May-13,4295478,84.97,GARANTI BANKASI,Printing
FCO,FCO,13-May-13,4295478,637.26,GARANTI BANKASI,Business Hospitality (former DEE)
FCO,FCO,13-May-13,4295478,180.02,GARANTI BANKASI,Office Support Services
FCO,FCO,13-May-13,4295478,"2,863.79",GARANTI BANKASI,Business Hospitality (former DEE)
FCO,FCO,13-May-13,4295478,774.67,GARANTI BANKASI,Accommodation
FCO,FCO,13-May-13,4295478,5.04,GARANTI BANKASI,Meals
FCO,FCO,13-May-13,4295478,3.61,GARANTI BANKASI,Meals
FCO,FCO,13-May-13,4295478,23.54,GARANTI BANKASI,Meals
FCO,FCO,13-May-13,4295478,26.6,GARANTI BANKASI,Meals
FCO,FCO,13-May-13,4295478,15.04,GARANTI BANKASI,Meals
FCO,FCO,13-May-13,4295478,4.45,GARANTI BANKASI,Meals
FCO,FCO,13-May-13,4295478,15.57,GARANTI BANKASI,Meals
FCO,FCO,13-May-13,4295478,30.83,GARANTI BANKASI,Meals
FCO,FCO,13-May-13,4295478,25.7,GARANTI BANKASI,Meals
FCO,FCO,13-May-13,4295478,7.69,GARANTI BANKASI,Meals
FCO,FCO,13-May-13,4295478,20.6,GARANTI BANKASI,Meals
FCO,FCO,13-May-13,4295478,20.46,GARANTI BANKASI,Meals
FCO,FCO,13-May-13,4295478,20.46,GARANTI BANKASI,Meals
FCO,FCO,13-May-13,4295478,9.27,GARANTI BANKASI,Meals
FCO,FCO,13-May-13,4295478,6.32,GARANTI BANKASI,Meals
FCO,FCO,13-May-13,4295478,506.54,GARANTI BANKASI,Meals
FCO,FCO,13-May-13,4295478,796.63,GARANTI BANKASI,Post - Air Travel
FCO,FCO,13-May-13,4295478,65.53,GARANTI BANKASI,Post - Air Travel
FCO,FCO,13-May-13,4295478,152.12,GARANTI BANKASI,Post - Air Travel
FCO,FCO,13-May-13,4295478,203.78,GARANTI BANKASI,Post - Air Travel
FCO,FCO,13-May-13,4295478,"1,956.14",GARANTI BANKASI,Property Maintenance Overseas Non Residential
FCO,FCO,13-May-13,4295478,"1,430.00",GARANTI BANKASI,Meals
FCO,FCO,13-May-13,4295478,25.2,GARANTI BANKASI,Property Maintenance Overseas Non Residential
FCO,FCO,13-May-13,4295478,"2,846.08",GARANTI BANKASI,Property Maintenance Overseas Non Residential
FCO,FCO,13-May-13,4295478,"2,097.65",GARANTI BANKASI,Post - Air Travel
FCO,FCO,13-May-13,4295478,267.79,GARANTI BANKASI,Post - Air Travel
FCO,FCO,13-May-13,4295478,477.25,GARANTI BANKASI,Post - Air Travel
FCO,FCO,13-May-13,4295478,205.22,GARANTI BANKASI,Post - Air Travel
FCO,FCO,13-May-13,4295478,82.33,GARANTI BANKASI,Post - Air Travel
FCO,FCO,13-May-13,4295478,-82.33,GARANTI BANKASI,Post - Air Travel
FCO,FCO,13-May-13,4295478,82.27,GARANTI BANKASI,Meals
FCO,FCO,13-May-13,4295478,-267.79,GARANTI BANKASI,Post - Air Travel
FCO,FCO,13-May-13,4295478,267.79,GARANTI BANKASI,Post - Air Travel
FCO,FCO,13-May-13,4301788,72.65,AETNA,Programme Spend (Oracle Projects Control Account)
FCO,FCO,13-May-13,4301788,32.08,AETNA,IT/IS Consultancy
FCO,FCO,14-May-13,4303124,"119,083.50",THE ASSOCIATION OF COMMONWEALTH UNIVERSITIES,Programme Spend (Oracle Projects Control Account)
FCO,FCO,14-May-13,4303124,"23,816.70",THE ASSOCIATION OF COMMONWEALTH UNIVERSITIES,Programme Spend (Oracle Projects Control Account)
FCO,FCO,14-May-13,4303127,"900,000.00",THE ASSOCIATION OF COMMONWEALTH UNIVERSITIES,Programme Spend (Oracle Projects Control Account)
FCO,FCO,14-May-13,4303033,"158,232.19",VODAFONE LTD-CABLE & WIRELESS UK,FTN Unitary Payment
FCO,FCO,14-May-13,4304250,"4,104,760.00",CITY OF WESTMINSTER,Rates Taxes Non-Residential
FCO,FCO,14-May-13,4302854,"12,355.07",LONDON ENERGY,Electricity Non-Residential
FCO,FCO,14-May-13,4302854,"55,137.76",LONDON ENERGY,Electricity Non-Residential
FCO,FCO,14-May-13,4302854,"2,471.01",LONDON ENERGY,Electricity Non-Residential
FCO,FCO,14-May-13,4303384,"169,683.39",LONDON ENERGY,Electricity Non-Residential
FCO,FCO,14-May-13,4303384,"33,936.68",LONDON ENERGY,Electricity Non-Residential
FCO,FCO,14-May-13,4302927,"24,744.21",FORME UK,Construction Project more than 10k
FCO,FCO,14-May-13,4302927,"4,948.84",FORME UK,Construction Project more than 10k
FCO,FCO,14-May-13,4300730,"284,754.32",GARDA WORLD LTD,UK Guarding Contracts Overseas
FCO,FCO,14-May-13,4300730,"-284,754.32",GARDA WORLD LTD,UK Guarding Contracts Overseas
FCO,FCO,14-May-13,4300730,"284,754.32",GARDA WORLD LTD,UK Guarding Contracts Overseas
FCO,FCO,14-May-13,4300732,"745,351.54",GARDA WORLD LTD,UK Mobile Guarding Contract overseas
FCO,FCO,14-May-13,4300732,"-745,351.54",GARDA WORLD LTD,UK Mobile Guarding Contract overseas
FCO,FCO,14-May-13,4300732,"745,351.54",GARDA WORLD LTD,UK Mobile Guarding Contract overseas
FCO,FCO,14-May-13,4300734,"127,893.90",GARDA WORLD LTD,UK Mobile Guarding Contract overseas
FCO,FCO,14-May-13,4300734,"-127,893.90",GARDA WORLD LTD,UK Mobile Guarding Contract overseas
FCO,FCO,14-May-13,4300734,"127,893.90",GARDA WORLD LTD,UK Mobile Guarding Contract overseas
FCO,FCO,14-May-13,4301496,"35,480.00",CONSUMER UNITY & TRUST SOCIETY,Programme Spend (Oracle Projects Control Account)
FCO,FCO,14-May-13,4304063,"29,502.40",Jiangsu Province Blue Star Center for Low Carbon Research,Programme Spend (Oracle Projects Control Account)
FCO,FCO,14-May-13,4294538,"25,103.64",PICK EVERARD,Residential Property Services
FCO,FCO,14-May-13,4294538,"5,020.73",PICK EVERARD,Residential Property Services
FCO,FCO,14-May-13,4301657,"132,993.94",ISG ASIA M SDN BHDBM,Assets Under Construction (Oracle PA Control Account)
FCO,FCO,14-May-13,4301795,"1,088,444.04",CORPORATE TELEVISION NETWORK LTD,Inward visits to the UK and UK Conferences
FCO,FCO,14-May-13,4302800,"1,129.28",SOMA 2010 LOCACAO CENOGRAFICA E EVENTOS LTDA,General Information Services
FCO,FCO,14-May-13,4302800,"1,115.69",SOMA 2010 LOCACAO CENOGRAFICA E EVENTOS LTDA,Business Hospitality (former DEE)
FCO,FCO,15-May-13,4292666,"123,625.72",ADAM SMITH INTERNATIONAL,Programme Spend (Oracle Projects Control Account)
FCO,FCO,15-May-13,4304711,"115,109.53",CAPGEMINI UK PLC,IT/IS Consultancy
FCO,FCO,15-May-13,4304719,"32,990.97",CAPGEMINI UK PLC,IT/IS Consultancy
FCO,FCO,15-May-13,4304724,"71,302.38",CAPGEMINI UK PLC,IT/IS Consultancy
FCO,FCO,15-May-13,4303223,"58,527.66",CHARITY COMMISSION ENGLAND & WALES,Programme Spend (Oracle Projects Control Account)
FCO,FCO,15-May-13,4304898,"60,551.42",MOD MINISTRY OF DEFENCE,Programme Spend (Oracle Projects Control Account)
FCO,FCO,15-May-13,4304901,"58,754.84",MOD MINISTRY OF DEFENCE,Programme Spend (Oracle Projects Control Account)
FCO,FCO,15-May-13,4304907,"816,895.62",MOD MINISTRY OF DEFENCE,Programme Spend (Oracle Projects Control Account)
FCO,FCO,15-May-13,4298837,"33,670.89",THE TREASURY SOLICITOR,Legal Consultancy
FCO,FCO,15-May-13,4298837,23.6,THE TREASURY SOLICITOR,Legal Consultancy
FCO,FCO,15-May-13,4298837,"-33,670.89",THE TREASURY SOLICITOR,Legal Consultancy
FCO,FCO,15-May-13,4298837,-23.6,THE TREASURY SOLICITOR,Legal Consultancy
FCO,FCO,15-May-13,4298837,"9,261.90",THE TREASURY SOLICITOR,Legal Consultancy
FCO,FCO,15-May-13,4298837,23.6,THE TREASURY SOLICITOR,Legal Consultancy
FCO,FCO,15-May-13,4298837,"24,408.99",THE TREASURY SOLICITOR,Legal Consultancy
FCO,FCO,15-May-13,4298837,-23.6,THE TREASURY SOLICITOR,Legal Consultancy
FCO,FCO,15-May-13,4298837,23.6,THE TREASURY SOLICITOR,Legal Consultancy
FCO,FCO,15-May-13,4298925,"12,788.90",THE TREASURY SOLICITOR,Legal Consultancy
FCO,FCO,15-May-13,4298925,"18,503.00",THE TREASURY SOLICITOR,Legal Consultancy
FCO,FCO,15-May-13,4300080,"7,430.12",THE TREASURY SOLICITOR,Legal Consultancy
FCO,FCO,15-May-13,4300080,35.28,THE TREASURY SOLICITOR,Legal Consultancy
FCO,FCO,15-May-13,4300080,"17,577.80",THE TREASURY SOLICITOR,Legal Consultancy
FCO,FCO,15-May-13,4300146,"11,237.90",THE TREASURY SOLICITOR,Legal Consultancy
FCO,FCO,15-May-13,4300146,46.8,THE TREASURY SOLICITOR,Legal Consultancy
FCO,FCO,15-May-13,4300146,"23,643.60",THE TREASURY SOLICITOR,Legal Consultancy
FCO,FCO,15-May-13,4250745,"32,611.45",FCO SERVICES,Assets Under Construction (Oracle PA Control Account)
FCO,FCO,15-May-13,4258417,"20,045.74",FCO SERVICES,Construction Project more than 10k
FCO,FCO,15-May-13,4258417,"51,936.67",FCO SERVICES,Construction Project more than 10k
FCO,FCO,15-May-13,4258417,171.04,FCO SERVICES,Construction Project more than 10k
FCO,FCO,15-May-13,4258417,"-20,045.74",FCO SERVICES,Construction Project more than 10k
FCO,FCO,15-May-13,4258417,-171.04,FCO SERVICES,Construction Project more than 10k
FCO,FCO,15-May-13,4258417,"20,045.74",FCO SERVICES,Construction Project more than 10k
FCO,FCO,15-May-13,4258417,"-51,936.67",FCO SERVICES,Construction Project more than 10k
FCO,FCO,15-May-13,4258417,"52,107.71",FCO SERVICES,Construction Project more than 10k
FCO,FCO,15-May-13,4275732,"223,465.00",FCO SERVICES,Assets Under Construction (Oracle PA Control Account)
FCO,FCO,15-May-13,4275743,"77,465.49",FCO SERVICES,Assets Under Construction (Oracle PA Control Account)
FCO,FCO,15-May-13,4299048,"30,385.08",FCO SERVICES,IT/IS Consultancy
FCO,FCO,15-May-13,4304909,"111,284.27",FCO SERVICES,Assets Under Construction (Oracle PA Control Account)
FCO,FCO,15-May-13,4295793,"45,080.16",G4S SECURITY SERVICES,Despatch Charges
FCO,FCO,15-May-13,4295793,"-45,080.16",G4S SECURITY SERVICES,Despatch Charges
FCO,FCO,15-May-13,4295793,"45,080.16",G4S SECURITY SERVICES,Local Guards
FCO,FCO,15-May-13,4304878,"483,500.00",GREENACRE ASSOCIATES LTD,Programme Spend (Oracle Projects Control Account)
FCO,FCO,15-May-13,4304568,"51,933.16",CARBON TRUST ADVISORY SERVICES LIMITED,Programme Spend (Oracle Projects Control Account)
FCO,FCO,16-May-13,4305807,"4,573.27",INTERSERVE FM LTD,Building Mechanical and Engineering Services
FCO,FCO,16-May-13,4305807,155.02,INTERSERVE FM LTD,Building Fabric Services
FCO,FCO,16-May-13,4305807,"1,866.14",INTERSERVE FM LTD,Minor New Works <10K
FCO,FCO,16-May-13,4305807,23.25,INTERSERVE FM LTD,Grounds Maintenance
FCO,FCO,16-May-13,4305807,"4,682.09",INTERSERVE FM LTD,Cleaning & Waste
FCO,FCO,16-May-13,4305807,203.24,INTERSERVE FM LTD,Cleaning & Waste
FCO,FCO,16-May-13,4305807,167.87,INTERSERVE FM LTD,Miscellaneous Expenditure: inc subscriptions and equipment maintenance
FCO,FCO,16-May-13,4305807,158.49,INTERSERVE FM LTD,Waste Disposal
FCO,FCO,16-May-13,4305807,"2,045.99",INTERSERVE FM LTD,Reception Services
FCO,FCO,16-May-13,4305807,"2,630.57",INTERSERVE FM LTD,Mail & Porterage Services
FCO,FCO,16-May-13,4305807,510.34,INTERSERVE FM LTD,Office Support Services
FCO,FCO,16-May-13,4305807,351.92,INTERSERVE FM LTD,Estates Management Services
FCO,FCO,16-May-13,4305807,"4,732.41",INTERSERVE FM LTD,Residential Property Services
FCO,FCO,16-May-13,4305807,"5,211.45",INTERSERVE FM LTD,Contract Fees
FCO,FCO,16-May-13,4305807,203.03,INTERSERVE FM LTD,Contract Fees
FCO,FCO,16-May-13,4305807,25.65,INTERSERVE FM LTD,Cleaning & Waste
FCO,FCO,16-May-13,4305810,"26,602.53",INTERSERVE FM LTD,Construction Project more than 10k
FCO,FCO,16-May-13,4305810,"5,320.50",INTERSERVE FM LTD,Construction Project more than 10k
FCO,FCO,16-May-13,4305855,"7,147.09",INTERSERVE FM LTD,Building Mechanical and Engineering Services
FCO,FCO,16-May-13,4305855,"2,732.92",INTERSERVE FM LTD,Minor New Works <10K
FCO,FCO,16-May-13,4305855,"1,053.14",INTERSERVE FM LTD,Grounds Maintenance
FCO,FCO,16-May-13,4305855,"5,675.44",INTERSERVE FM LTD,Cleaning & Waste
FCO,FCO,16-May-13,4305855,426.58,INTERSERVE FM LTD,Cleaning & Waste
FCO,FCO,16-May-13,4305855,430.67,INTERSERVE FM LTD,Miscellaneous Expenditure: inc subscriptions and equipment maintenance
FCO,FCO,16-May-13,4305855,530.26,INTERSERVE FM LTD,Waste Disposal
FCO,FCO,16-May-13,4305855,"3,568.86",INTERSERVE FM LTD,Reception Services
FCO,FCO,16-May-13,4305855,"4,405.72",INTERSERVE FM LTD,Mail & Porterage Services
FCO,FCO,16-May-13,4305855,892.21,INTERSERVE FM LTD,Office Support Services
FCO,FCO,16-May-13,4305855,236.43,INTERSERVE FM LTD,Estates Management Services
FCO,FCO,16-May-13,4305855,"11,039.33",INTERSERVE FM LTD,Residential Property Services
FCO,FCO,16-May-13,4305855,"10,227.78",INTERSERVE FM LTD,Contract Fees
FCO,FCO,16-May-13,4305856,"84,198.92",INTERSERVE FM LTD,Construction Project more than 10k
FCO,FCO,16-May-13,4305858,366.18,INTERSERVE FM LTD,Building Mechanical and Engineering Services
FCO,FCO,16-May-13,4305858,"1,062.64",INTERSERVE FM LTD,Minor New Works <10K
FCO,FCO,16-May-13,4305858,534.64,INTERSERVE FM LTD,Grounds Maintenance
FCO,FCO,16-May-13,4305858,"4,317.49",INTERSERVE FM LTD,Cleaning & Waste
FCO,FCO,16-May-13,4305858,366.18,INTERSERVE FM LTD,Cleaning & Waste
FCO,FCO,16-May-13,4305858,73.06,INTERSERVE FM LTD,Miscellaneous Expenditure: inc subscriptions and equipment maintenance
FCO,FCO,16-May-13,4305858,403.75,INTERSERVE FM LTD,Waste Disposal
FCO,FCO,16-May-13,4305858,"7,418.74",INTERSERVE FM LTD,Reception Services
FCO,FCO,16-May-13,4305858,"5,294.83",INTERSERVE FM LTD,Mail & Porterage Services
FCO,FCO,16-May-13,4305858,"1,854.69",INTERSERVE FM LTD,Office Support Services
FCO,FCO,16-May-13,4305858,"1,109.97",INTERSERVE FM LTD,Residential Property Services
FCO,FCO,16-May-13,4305858,784.83,INTERSERVE FM LTD,Rematching / Reinstatement
FCO,FCO,16-May-13,4305858,"5,739.66",INTERSERVE FM LTD,Contract Fees
FCO,FCO,16-May-13,4305858,59.67,INTERSERVE FM LTD,Cleaning & Waste
FCO,FCO,16-May-13,4305861,"4,189.93",INTERSERVE FM LTD,Building Mechanical and Engineering Services
FCO,FCO,16-May-13,4305861,73.91,INTERSERVE FM LTD,Building Fabric Services
FCO,FCO,16-May-13,4305861,573.48,INTERSERVE FM LTD,Minor New Works <10K
FCO,FCO,16-May-13,4305861,132.38,INTERSERVE FM LTD,Grounds Maintenance
FCO,FCO,16-May-13,4305861,"3,760.29",INTERSERVE FM LTD,Cleaning & Waste
FCO,FCO,16-May-13,4305861,155.91,INTERSERVE FM LTD,Cleaning & Waste
FCO,FCO,16-May-13,4305861,177.62,INTERSERVE FM LTD,Miscellaneous Expenditure: inc subscriptions and equipment maintenance
FCO,FCO,16-May-13,4305861,428.6,INTERSERVE FM LTD,Waste Disposal
FCO,FCO,16-May-13,4305861,"6,692.61",INTERSERVE FM LTD,Reception Services
FCO,FCO,16-May-13,4305861,"5,211.10",INTERSERVE FM LTD,Mail & Porterage Services
FCO,FCO,16-May-13,4305861,"1,673.15",INTERSERVE FM LTD,Office Support Services
FCO,FCO,16-May-13,4305861,94.22,INTERSERVE FM LTD,Estates Management Services
FCO,FCO,16-May-13,4305861,477.29,INTERSERVE FM LTD,Residential Property Services
FCO,FCO,16-May-13,4305861,531.52,INTERSERVE FM LTD,Rematching / Reinstatement
FCO,FCO,16-May-13,4305861,"4,227.91",INTERSERVE FM LTD,Contract Fees
FCO,FCO,16-May-13,4305872,"6,144.40",INTERSERVE FM LTD,Building Mechanical and Engineering Services
FCO,FCO,16-May-13,4305872,303.56,INTERSERVE FM LTD,Building Fabric Services
FCO,FCO,16-May-13,4305872,"1,718.40",INTERSERVE FM LTD,Minor New Works <10K
FCO,FCO,16-May-13,4305872,271.84,INTERSERVE FM LTD,Grounds Maintenance
FCO,FCO,16-May-13,4305872,"11,948.81",INTERSERVE FM LTD,Cleaning & Waste
FCO,FCO,16-May-13,4305872,388.98,INTERSERVE FM LTD,Cleaning & Waste
FCO,FCO,16-May-13,4305872,134.95,INTERSERVE FM LTD,Miscellaneous Expenditure: inc subscriptions and equipment maintenance
FCO,FCO,16-May-13,4305872,303.94,INTERSERVE FM LTD,Waste Disposal
FCO,FCO,16-May-13,4305872,"8,117.05",INTERSERVE FM LTD,Reception Services
FCO,FCO,16-May-13,4305872,"6,360.19",INTERSERVE FM LTD,Mail & Porterage Services
FCO,FCO,16-May-13,4305872,"2,029.26",INTERSERVE FM LTD,Office Support Services
FCO,FCO,16-May-13,4305872,175.77,INTERSERVE FM LTD,Estates Management Services
FCO,FCO,16-May-13,4305872,"13,694.59",INTERSERVE FM LTD,Residential Property Services
FCO,FCO,16-May-13,4305872,207.54,INTERSERVE FM LTD,Rematching / Reinstatement
FCO,FCO,16-May-13,4305872,"7,163.44",INTERSERVE FM LTD,Contract Fees
FCO,FCO,16-May-13,4305946,"4,521.36",INTERSERVE FM LTD,Building Mechanical and Engineering Services
FCO,FCO,16-May-13,4305946,"2,607.19",INTERSERVE FM LTD,Minor New Works <10K
FCO,FCO,16-May-13,4305946,392.25,INTERSERVE FM LTD,Cleaning & Waste
FCO,FCO,16-May-13,4305946,81.77,INTERSERVE FM LTD,Cleaning & Waste
FCO,FCO,16-May-13,4305946,125.05,INTERSERVE FM LTD,Miscellaneous Expenditure: inc subscriptions and equipment maintenance
FCO,FCO,16-May-13,4305946,18.83,INTERSERVE FM LTD,Waste Disposal
FCO,FCO,16-May-13,4305946,87.52,INTERSERVE FM LTD,Office Support Services
FCO,FCO,16-May-13,4305946,"36,695.30",INTERSERVE FM LTD,Residential Property Services
FCO,FCO,16-May-13,4305946,"5,238.69",INTERSERVE FM LTD,Rematching / Reinstatement
FCO,FCO,16-May-13,4305946,"8,140.42",INTERSERVE FM LTD,Contract Fees
FCO,FCO,16-May-13,4305946,195.59,INTERSERVE FM LTD,Contract Fees
FCO,FCO,16-May-13,4305948,"4,221.80",INTERSERVE FM LTD,Building Mechanical and Engineering Services
FCO,FCO,16-May-13,4305948,"3,650.05",INTERSERVE FM LTD,Minor New Works <10K
FCO,FCO,16-May-13,4305948,195.59,INTERSERVE FM LTD,Grounds Maintenance
FCO,FCO,16-May-13,4305948,"11,512.03",INTERSERVE FM LTD,Cleaning & Waste
FCO,FCO,16-May-13,4305948,110.27,INTERSERVE FM LTD,Miscellaneous Expenditure: inc subscriptions and equipment maintenance
FCO,FCO,16-May-13,4305948,18.83,INTERSERVE FM LTD,Waste Disposal
FCO,FCO,16-May-13,4305948,"5,631.09",INTERSERVE FM LTD,Reception Services
FCO,FCO,16-May-13,4305948,"3,409.84",INTERSERVE FM LTD,Mail & Porterage Services
FCO,FCO,16-May-13,4305948,"1,381.85",INTERSERVE FM LTD,Office Support Services
FCO,FCO,16-May-13,4305948,650.01,INTERSERVE FM LTD,Rematching / Reinstatement
FCO,FCO,16-May-13,4305948,"1,010.06",INTERSERVE FM LTD,Contract Fees
FCO,FCO,16-May-13,4305949,"2,457.46",INTERSERVE FM LTD,Building Mechanical and Engineering Services
FCO,FCO,16-May-13,4305949,"4,231.44",INTERSERVE FM LTD,Minor New Works <10K
FCO,FCO,16-May-13,4305949,195.59,INTERSERVE FM LTD,Grounds Maintenance
FCO,FCO,16-May-13,4305949,"3,639.99",INTERSERVE FM LTD,Cleaning & Waste
FCO,FCO,16-May-13,4305949,528.01,INTERSERVE FM LTD,Miscellaneous Expenditure: inc subscriptions and equipment maintenance
FCO,FCO,16-May-13,4305949,391.6,INTERSERVE FM LTD,Waste Disposal
FCO,FCO,16-May-13,4305949,"5,644.00",INTERSERVE FM LTD,Reception Services
FCO,FCO,16-May-13,4305949,"2,883.64",INTERSERVE FM LTD,Mail & Porterage Services
FCO,FCO,16-May-13,4305949,"1,628.56",INTERSERVE FM LTD,Office Support Services
FCO,FCO,16-May-13,4305949,247.52,INTERSERVE FM LTD,Residential Property Services
FCO,FCO,16-May-13,4305949,"1,757.08",INTERSERVE FM LTD,Rematching / Reinstatement
FCO,FCO,16-May-13,4305949,"2,730.35",INTERSERVE FM LTD,Contract Fees
FCO,FCO,16-May-13,4305950,"8,791.15",INTERSERVE FM LTD,Building Mechanical and Engineering Services
FCO,FCO,16-May-13,4305950,"3,053.89",INTERSERVE FM LTD,Minor New Works <10K
FCO,FCO,16-May-13,4305950,"13,955.69",INTERSERVE FM LTD,Cleaning & Waste
FCO,FCO,16-May-13,4305950,11.71,INTERSERVE FM LTD,Miscellaneous Expenditure: inc subscriptions and equipment maintenance
FCO,FCO,16-May-13,4305950,691.78,INTERSERVE FM LTD,Mail & Porterage Services
FCO,FCO,16-May-13,4305950,"1,230.36",INTERSERVE FM LTD,Rematching / Reinstatement
FCO,FCO,16-May-13,4300367,"14,400.00",TFPL LTD,Specialist Contractors
FCO,FCO,16-May-13,4300367,"5,735.00",TFPL LTD,Specialist Contractors
FCO,FCO,16-May-13,4300367,"2,385.00",TFPL LTD,Specialist Contractors
FCO,FCO,16-May-13,4300367,"2,880.00",TFPL LTD,Specialist Contractors
FCO,FCO,16-May-13,4300367,"1,147.00",TFPL LTD,Specialist Contractors
FCO,FCO,16-May-13,4300367,477,TFPL LTD,Specialist Contractors
FCO,FCO,16-May-13,4300367,"-2,385.00",TFPL LTD,Specialist Contractors
FCO,FCO,16-May-13,4300367,"2,385.00",TFPL LTD,Specialist Contractors
FCO,FCO,16-May-13,4306641,"24,995.00",SUPPLY 999 LTD TODD RESEARCH LTD,Assets Under Construction (Oracle PA Control Account)
FCO,FCO,16-May-13,4306641,"4,508.00",SUPPLY 999 LTD TODD RESEARCH LTD,Assets Under Construction (Oracle PA Control Account)
FCO,FCO,16-May-13,4306641,484,SUPPLY 999 LTD TODD RESEARCH LTD,Assets Under Construction (Oracle PA Control Account)
FCO,FCO,16-May-13,4305147,"36,945.27",IOM INTERNATIONAL ORGANIZATION FOR MIGRATION,Programme Spend (Oracle Projects Control Account)
FCO,FCO,16-May-13,4305140,"67,997.33",IFES,Programme Spend (Oracle Projects Control Account)
FCO,FCO,16-May-13,4305678,"34,469.99",INSTITUTE FOR PUBLIC POLICY IN BISHKEK,Programme Spend (Oracle Projects Control Account)
FCO,FCO,16-May-13,4306441,"262,210.83",CHURCH WORLD SERVICE-PAKISTAN,Programme Spend (Oracle Projects Control Account)
FCO,FCO,16-May-13,4305076,"58,868.59",CIVIC CAMPAIGN FOR INNOCENT VICTIMS IN CONFLICT,Programme Spend (Oracle Projects Control Account)
FCO,FCO,16-May-13,4306587,"20,138.68",BABOYAN SATENIK SEMENOVNA,Rental Payments - non residential
FCO,FCO,16-May-13,4306587,"40,277.37",BABOYAN SATENIK SEMENOVNA,Rental Payments - non residential
FCO,FCO,16-May-13,4306587,"-20,138.68",BABOYAN SATENIK SEMENOVNA,Rental Payments - non residential
FCO,FCO,16-May-13,4306587,"15,028.87",BABOYAN SATENIK SEMENOVNA,Rental Payments - non residential
FCO,FCO,17-May-13,4308573,"34,072.84",GREAT BRITAIN-CHINA CENTRE,Programme Spend (Oracle Projects Control Account)
FCO,FCO,17-May-13,4304756,"250,000.00",UNITED NATIONS,Programme Spend (Oracle Projects Control Account)
FCO,FCO,17-May-13,4308425,560.18,ARTEOS GMBH,Estates - Other Machinery and Equipment
FCO,FCO,17-May-13,4308425,"14,285.35",ARTEOS GMBH,Pfi : Public/Private Partnership Consultants Fees Non-Residential
FCO,FCO,17-May-13,4308425,"35,879.97",ARTEOS GMBH,Electricity Non-Residential
FCO,FCO,17-May-13,4308425,"9,990.57",ARTEOS GMBH,Electricity Non-Residential
FCO,FCO,17-May-13,4308425,"463,003.88",ARTEOS GMBH,Pfi : Public/Private Partnership Consultants Fees Non-Residential
FCO,FCO,17-May-13,4308425,276.63,ARTEOS GMBH,Waste Disposal
FCO,FCO,17-May-13,4308425,504.69,ARTEOS GMBH,Water Residential
FCO,FCO,17-May-13,4308425,551.75,ARTEOS GMBH,Water Residential
FCO,FCO,17-May-13,4308425,904.19,ARTEOS GMBH,Estates - Other Machinery and Equipment
FCO,FCO,17-May-13,4308184,"25,153.00",IOM INTERNATIONAL ORGANIZATION FOR MIGRATION,Programme Spend (Oracle Projects Control Account)
FCO,FCO,17-May-13,4309031,"79,637.19",BBC WORLD SERVICE TRUST,Programme Spend (Oracle Projects Control Account)
FCO,FCO,17-May-13,4309031,"9,935.40",BBC WORLD SERVICE TRUST,Programme Spend (Oracle Projects Control Account)
FCO,FCO,17-May-13,4308135,"81,465.00",ALBANY ASSOCIATES INTERNATIONAL LTD,Programme Spend (Oracle Projects Control Account)
FCO,FCO,17-May-13,4307667,"49,998.00",KANTAR MEDIA INTELLIGENCE LTD,General Information Services
FCO,FCO,17-May-13,4307667,"9,999.60",KANTAR MEDIA INTELLIGENCE LTD,General Information Services
FCO,FCO,17-May-13,4304774,"28,810.25",MARCHER INTERNATIONAL LLC,Programme Spend (Oracle Projects Control Account)
FCO,FCO,17-May-13,4304774,"-28,810.25",MARCHER INTERNATIONAL LLC,Programme Spend (Oracle Projects Control Account)
FCO,FCO,17-May-13,4304774,"28,810.85",MARCHER INTERNATIONAL LLC,Programme Spend (Oracle Projects Control Account)
FCO,FCO,17-May-13,4307756,"18,170.00",N D HEARNDEN CONSULTING LIMITED,Programme Spend (Oracle Projects Control Account)
FCO,FCO,17-May-13,4307756,"4,420.00",N D HEARNDEN CONSULTING LIMITED,Programme Spend (Oracle Projects Control Account)
FCO,FCO,17-May-13,4307756,"2,446.85",N D HEARNDEN CONSULTING LIMITED,Programme Spend (Oracle Projects Control Account)
FCO,FCO,17-May-13,4307756,293.28,N D HEARNDEN CONSULTING LIMITED,Programme Spend (Oracle Projects Control Account)
FCO,FCO,17-May-13,4307756,108,N D HEARNDEN CONSULTING LIMITED,Programme Spend (Oracle Projects Control Account)
FCO,FCO,20-May-13,4309795,"984,113.11",EUROPEAN CENTRE FOR MEDIUM,Protocol - General VAT Refunds to Other Organisations
FCO,FCO,20-May-13,4299871,"3,124.64",HAYS SPECIALIST RECRUITMENT LTD,Training
FCO,FCO,20-May-13,4299871,"19,793.48",HAYS SPECIALIST RECRUITMENT LTD,Specialist Contractors
FCO,FCO,20-May-13,4299871,546.25,HAYS SPECIALIST RECRUITMENT LTD,Specialist Contractors
FCO,FCO,20-May-13,4299871,"1,700.00",HAYS SPECIALIST RECRUITMENT LTD,Recruitment - Fast Stream
FCO,FCO,20-May-13,4299871,"1,696.00",HAYS SPECIALIST RECRUITMENT LTD,Recruitment - Fast Stream
FCO,FCO,20-May-13,4299871,"15,425.64",HAYS SPECIALIST RECRUITMENT LTD,Specialist Contractors
FCO,FCO,20-May-13,4299871,"4,603.50",HAYS SPECIALIST RECRUITMENT LTD,Fee Paid Officers
FCO,FCO,20-May-13,4299871,161.19,HAYS SPECIALIST RECRUITMENT LTD,Fee Paid Officers
FCO,FCO,20-May-13,4299871,"3,592.48",HAYS SPECIALIST RECRUITMENT LTD,Recruitment - Fast Stream
FCO,FCO,20-May-13,4299871,896,HAYS SPECIALIST RECRUITMENT LTD,Recruitment - Fast Stream
FCO,FCO,20-May-13,4299871,"1,792.00",HAYS SPECIALIST RECRUITMENT LTD,Recruitment - Fast Stream
FCO,FCO,20-May-13,4299871,475.5,HAYS SPECIALIST RECRUITMENT LTD,Recruitment - Fast Stream
FCO,FCO,20-May-13,4299871,"2,853.00",HAYS SPECIALIST RECRUITMENT LTD,Recruitment - Fast Stream
FCO,FCO,20-May-13,4299871,"4,755.00",HAYS SPECIALIST RECRUITMENT LTD,Pilot Assessment Centre
FCO,FCO,20-May-13,4299871,"3,350.00",HAYS SPECIALIST RECRUITMENT LTD,Assets Under Construction (Oracle PA Control Account)
FCO,FCO,20-May-13,4299871,"12,096.00",HAYS SPECIALIST RECRUITMENT LTD,IT/IS Consultancy
FCO,FCO,20-May-13,4299871,"7,590.00",HAYS SPECIALIST RECRUITMENT LTD,Procurement Consultancy
FCO,FCO,20-May-13,4299871,"2,200.00",HAYS SPECIALIST RECRUITMENT LTD,Pilot Assessment Centre
FCO,FCO,20-May-13,4299871,660,HAYS SPECIALIST RECRUITMENT LTD,Pilot Assessment Centre
FCO,FCO,20-May-13,4299871,"3,300.00",HAYS SPECIALIST RECRUITMENT LTD,Recruitment - Fast Stream
FCO,FCO,20-May-13,4299871,"3,312.00",HAYS SPECIALIST RECRUITMENT LTD,Recruitment - Fast Stream
FCO,FCO,20-May-13,4299871,"1,100.00",HAYS SPECIALIST RECRUITMENT LTD,Recruitment - Fast Stream
FCO,FCO,20-May-13,4299871,951,HAYS SPECIALIST RECRUITMENT LTD,Recruitment - Fast Stream
FCO,FCO,20-May-13,4299871,621,HAYS SPECIALIST RECRUITMENT LTD,Recruitment - Fast Stream
FCO,FCO,20-May-13,4299871,"1,552.50",HAYS SPECIALIST RECRUITMENT LTD,Recruitment - Fast Stream
FCO,FCO,20-May-13,4299871,828,HAYS SPECIALIST RECRUITMENT LTD,Recruitment - Fast Stream
FCO,FCO,20-May-13,4299871,"9,832.60",HAYS SPECIALIST RECRUITMENT LTD,Specialist Contractors
FCO,FCO,20-May-13,4299871,"3,208.64",HAYS SPECIALIST RECRUITMENT LTD,Programme Spend (Oracle Projects Control Account)
FCO,FCO,20-May-13,4299871,"12,171.60",HAYS SPECIALIST RECRUITMENT LTD,IT/IS Consultancy
FCO,FCO,20-May-13,4299871,"12,209.00",HAYS SPECIALIST RECRUITMENT LTD,Specialist Contractors
FCO,FCO,20-May-13,4299871,"1,000.00",HAYS SPECIALIST RECRUITMENT LTD,Pilot Assessment Centre
FCO,FCO,20-May-13,4299871,"10,091.25",HAYS SPECIALIST RECRUITMENT LTD,Programme Spend (Oracle Projects Control Account)
FCO,FCO,20-May-13,4299871,"3,344.85",HAYS SPECIALIST RECRUITMENT LTD,Specialist Training (Devolved)
FCO,FCO,20-May-13,4299871,"2,277.00",HAYS SPECIALIST RECRUITMENT LTD,Programme Spend (Oracle Projects Control Account)
FCO,FCO,20-May-13,4299871,"-3,344.85",HAYS SPECIALIST RECRUITMENT LTD,Specialist Training (Devolved)
FCO,FCO,20-May-13,4299871,929.13,HAYS SPECIALIST RECRUITMENT LTD,Specialist Training (Devolved)
FCO,FCO,20-May-13,4299871,"2,415.72",HAYS SPECIALIST RECRUITMENT LTD,Specialist Training (Devolved)
FCO,FCO,20-May-13,4299871,862.5,HAYS SPECIALIST RECRUITMENT LTD,Specialist Training (Devolved)
FCO,FCO,20-May-13,4299871,"2,242.50",HAYS SPECIALIST RECRUITMENT LTD,Specialist Training (Devolved)
FCO,FCO,20-May-13,4299871,"3,500.00",HAYS SPECIALIST RECRUITMENT LTD,Recruitment - Fast Stream
FCO,FCO,20-May-13,4299871,"1,000.00",HAYS SPECIALIST RECRUITMENT LTD,Pilot Assessment Centre
FCO,FCO,20-May-13,4299871,300,HAYS SPECIALIST RECRUITMENT LTD,Pilot Assessment Centre
FCO,FCO,20-May-13,4299871,"4,066.04",HAYS SPECIALIST RECRUITMENT LTD,Recruitment - Fast Stream
FCO,FCO,20-May-13,4299871,828,HAYS SPECIALIST RECRUITMENT LTD,Recruitment - Fast Stream
FCO,FCO,20-May-13,4299871,"2,277.00",HAYS SPECIALIST RECRUITMENT LTD,Recruitment - Fast Stream
FCO,FCO,20-May-13,4299871,"9,418.50",HAYS SPECIALIST RECRUITMENT LTD,Specialist Contractors
FCO,FCO,20-May-13,4299871,"2,173.50",HAYS SPECIALIST RECRUITMENT LTD,Specialist Contractors
FCO,FCO,20-May-13,4299871,"13,910.40",HAYS SPECIALIST RECRUITMENT LTD,IT/IS Consultancy
FCO,FCO,20-May-13,4299871,"7,700.00",HAYS SPECIALIST RECRUITMENT LTD,Recruitment - Fast Stream
FCO,FCO,20-May-13,4299871,"5,500.00",HAYS SPECIALIST RECRUITMENT LTD,Pilot Assessment Centre
FCO,FCO,20-May-13,4299871,"3,312.00",HAYS SPECIALIST RECRUITMENT LTD,Recruitment - Fast Stream
FCO,FCO,20-May-13,4299871,"4,461.48",HAYS SPECIALIST RECRUITMENT LTD,Specialist Contractors
FCO,FCO,20-May-13,4299871,"42,124.50",HAYS SPECIALIST RECRUITMENT LTD,IT/IS Consultancy
FCO,FCO,20-May-13,4299871,"4,400.00",HAYS SPECIALIST RECRUITMENT LTD,Recruitment - Fast Stream
FCO,FCO,20-May-13,4299871,"3,312.00",HAYS SPECIALIST RECRUITMENT LTD,Recruitment - Fast Stream
FCO,FCO,20-May-13,4299871,"2,200.00",HAYS SPECIALIST RECRUITMENT LTD,Pilot Assessment Centre
FCO,FCO,20-May-13,4299871,660,HAYS SPECIALIST RECRUITMENT LTD,Pilot Assessment Centre
FCO,FCO,20-May-13,4299871,"10,800.00",HAYS SPECIALIST RECRUITMENT LTD,Specialist Contractors
FCO,FCO,20-May-13,4299871,"8,970.00",HAYS SPECIALIST RECRUITMENT LTD,Assets Under Construction (Oracle PA Control Account)
FCO,FCO,20-May-13,4299871,"14,655.60",HAYS SPECIALIST RECRUITMENT LTD,IT/IS Consultancy
FCO,FCO,20-May-13,4299871,"10,815.75",HAYS SPECIALIST RECRUITMENT LTD,UK - Air Travel
FCO,FCO,20-May-13,4299871,"1,796.24",HAYS SPECIALIST RECRUITMENT LTD,Pilot Assessment Centre
FCO,FCO,20-May-13,4299871,538.87,HAYS SPECIALIST RECRUITMENT LTD,Pilot Assessment Centre
FCO,FCO,20-May-13,4299871,"1,000.00",HAYS SPECIALIST RECRUITMENT LTD,Pilot Assessment Centre
FCO,FCO,20-May-13,4299871,"5,485.39",HAYS SPECIALIST RECRUITMENT LTD,Temporary Staff (Admin and Clerical Only)
FCO,FCO,20-May-13,4299871,"2,101.88",HAYS SPECIALIST RECRUITMENT LTD,Temporary Staff (Admin and Clerical Only)
FCO,FCO,20-May-13,4299871,"12,075.00",HAYS SPECIALIST RECRUITMENT LTD,Assets Under Construction (Oracle PA Control Account)
FCO,FCO,20-May-13,4299871,"5,299.20",HAYS SPECIALIST RECRUITMENT LTD,Specialist Contractors
FCO,FCO,20-May-13,4299871,"9,936.00",HAYS SPECIALIST RECRUITMENT LTD,Specialist Contractors
FCO,FCO,20-May-13,4299871,"4,737.60",HAYS SPECIALIST RECRUITMENT LTD,IT/IS Consultancy
FCO,FCO,20-May-13,4299871,"4,737.60",HAYS SPECIALIST RECRUITMENT LTD,IT/IS Consultancy
FCO,FCO,20-May-13,4299871,"9,108.00",HAYS SPECIALIST RECRUITMENT LTD,Assets Under Construction (Oracle PA Control Account)
FCO,FCO,20-May-13,4299871,"2,415.00",HAYS SPECIALIST RECRUITMENT LTD,Assets Under Construction (Oracle PA Control Account)
FCO,FCO,20-May-13,4299871,"1,821.60",HAYS SPECIALIST RECRUITMENT LTD,Assets Under Construction (Oracle PA Control Account)
FCO,FCO,20-May-13,4299871,"1,794.00",HAYS SPECIALIST RECRUITMENT LTD,Assets Under Construction (Oracle PA Control Account)
FCO,FCO,20-May-13,4299871,670,HAYS SPECIALIST RECRUITMENT LTD,Assets Under Construction (Oracle PA Control Account)
FCO,FCO,20-May-13,4299871,947.52,HAYS SPECIALIST RECRUITMENT LTD,IT/IS Consultancy
FCO,FCO,20-May-13,4299871,455.4,HAYS SPECIALIST RECRUITMENT LTD,Programme Spend (Oracle Projects Control Account)
FCO,FCO,20-May-13,4299871,947.52,HAYS SPECIALIST RECRUITMENT LTD,IT/IS Consultancy
FCO,FCO,20-May-13,4299871,352.94,HAYS SPECIALIST RECRUITMENT LTD,Temporary Staff (Admin and Clerical Only)
FCO,FCO,20-May-13,4299871,172.5,HAYS SPECIALIST RECRUITMENT LTD,Specialist Training (Devolved)
FCO,FCO,20-May-13,4299871,185.83,HAYS SPECIALIST RECRUITMENT LTD,Specialist Training (Devolved)
FCO,FCO,20-May-13,4299871,892.3,HAYS SPECIALIST RECRUITMENT LTD,Specialist Contractors
FCO,FCO,20-May-13,4299871,624.93,HAYS SPECIALIST RECRUITMENT LTD,Training
FCO,FCO,20-May-13,4299871,440,HAYS SPECIALIST RECRUITMENT LTD,Pilot Assessment Centre
FCO,FCO,20-May-13,4299871,132,HAYS SPECIALIST RECRUITMENT LTD,Pilot Assessment Centre
FCO,FCO,20-May-13,4299871,440,HAYS SPECIALIST RECRUITMENT LTD,Pilot Assessment Centre
FCO,FCO,20-May-13,4299871,132,HAYS SPECIALIST RECRUITMENT LTD,Pilot Assessment Centre
FCO,FCO,20-May-13,4299871,200,HAYS SPECIALIST RECRUITMENT LTD,Pilot Assessment Centre
FCO,FCO,20-May-13,4299871,200,HAYS SPECIALIST RECRUITMENT LTD,Pilot Assessment Centre
FCO,FCO,20-May-13,4299871,448.5,HAYS SPECIALIST RECRUITMENT LTD,Specialist Training (Devolved)
FCO,FCO,20-May-13,4299871,483.14,HAYS SPECIALIST RECRUITMENT LTD,Specialist Training (Devolved)
FCO,FCO,20-May-13,4299871,"-3,312.00",HAYS SPECIALIST RECRUITMENT LTD,Recruitment - Fast Stream
FCO,FCO,20-May-13,4299871,"3,312.00",HAYS SPECIALIST RECRUITMENT LTD,Recruitment - Fast Stream
FCO,FCO,20-May-13,4299871,"-1,100.00",HAYS SPECIALIST RECRUITMENT LTD,Recruitment - Fast Stream
FCO,FCO,20-May-13,4299871,"1,100.00",HAYS SPECIALIST RECRUITMENT LTD,Recruitment - Fast Stream
FCO,FCO,20-May-13,4299871,-828,HAYS SPECIALIST RECRUITMENT LTD,Recruitment - Fast Stream
FCO,FCO,20-May-13,4299871,"-2,277.00",HAYS SPECIALIST RECRUITMENT LTD,Recruitment - Fast Stream
FCO,FCO,20-May-13,4299871,828,HAYS SPECIALIST RECRUITMENT LTD,Recruitment - Fast Stream
FCO,FCO,20-May-13,4299871,"2,277.00",HAYS SPECIALIST RECRUITMENT LTD,Recruitment - Fast Stream
FCO,FCO,20-May-13,4299871,"-1,696.00",HAYS SPECIALIST RECRUITMENT LTD,Recruitment - Fast Stream
FCO,FCO,20-May-13,4299871,"1,696.00",HAYS SPECIALIST RECRUITMENT LTD,Recruitment - Fast Stream
FCO,FCO,20-May-13,4299871,"-3,312.00",HAYS SPECIALIST RECRUITMENT LTD,Recruitment - Fast Stream
FCO,FCO,20-May-13,4299871,"3,312.00",HAYS SPECIALIST RECRUITMENT LTD,Recruitment - Fast Stream
FCO,FCO,20-May-13,4299871,"-3,592.48",HAYS SPECIALIST RECRUITMENT LTD,Recruitment - Fast Stream
FCO,FCO,20-May-13,4299871,-896,HAYS SPECIALIST RECRUITMENT LTD,Recruitment - Fast Stream
FCO,FCO,20-May-13,4299871,"3,592.48",HAYS SPECIALIST RECRUITMENT LTD,Recruitment - Fast Stream
FCO,FCO,20-May-13,4299871,"-1,792.00",HAYS SPECIALIST RECRUITMENT LTD,Recruitment - Fast Stream
FCO,FCO,20-May-13,4299871,"1,792.00",HAYS SPECIALIST RECRUITMENT LTD,Recruitment - Fast Stream
FCO,FCO,20-May-13,4299871,896,HAYS SPECIALIST RECRUITMENT LTD,Recruitment - Fast Stream
FCO,FCO,20-May-13,4299871,-828,HAYS SPECIALIST RECRUITMENT LTD,Recruitment - Fast Stream
FCO,FCO,20-May-13,4299871,828,HAYS SPECIALIST RECRUITMENT LTD,Recruitment - Fast Stream
FCO,FCO,20-May-13,4299871,-621,HAYS SPECIALIST RECRUITMENT LTD,Recruitment - Fast Stream
FCO,FCO,20-May-13,4299871,621,HAYS SPECIALIST RECRUITMENT LTD,Recruitment - Fast Stream
FCO,FCO,20-May-13,4299871,"-1,100.00",HAYS SPECIALIST RECRUITMENT LTD,Recruitment - Fast Stream
FCO,FCO,20-May-13,4299871,"1,100.00",HAYS SPECIALIST RECRUITMENT LTD,Recruitment - Fast Stream
FCO,FCO,20-May-13,4299871,"-4,737.60",HAYS SPECIALIST RECRUITMENT LTD,IT/IS Consultancy
FCO,FCO,20-May-13,4299871,"-4,737.60",HAYS SPECIALIST RECRUITMENT LTD,IT/IS Consultancy
FCO,FCO,20-May-13,4299871,"2,895.20",HAYS SPECIALIST RECRUITMENT LTD,IT/IS Consultancy
FCO,FCO,20-May-13,4299871,"6,580.00",HAYS SPECIALIST RECRUITMENT LTD,IT/IS Consultancy
FCO,FCO,20-May-13,4299871,-368.48,HAYS SPECIALIST RECRUITMENT LTD,IT/IS Consultancy
FCO,FCO,20-May-13,4299871,368.48,HAYS SPECIALIST RECRUITMENT LTD,IT/IS Consultancy
FCO,FCO,20-May-13,4309663,"48,999.00",IISS - INTERNATIONAL INSTITUTE FOR STRATEGIC STUDIES,Programme Spend (Oracle Projects Control Account)
FCO,FCO,20-May-13,4309061,"134,975.56",INTERSERVE FM LTD,Building Mechanical and Engineering Services
FCO,FCO,20-May-13,4309061,"2,629.30",INTERSERVE FM LTD,Building Fabric Services
FCO,FCO,20-May-13,4309061,"65,470.95",INTERSERVE FM LTD,Minor New Works <10K
FCO,FCO,20-May-13,4309061,"8,816.65",INTERSERVE FM LTD,Grounds Maintenance
FCO,FCO,20-May-13,4309061,"154,041.39",INTERSERVE FM LTD,Cleaning & Waste
FCO,FCO,20-May-13,4309061,"2,778.07",INTERSERVE FM LTD,Miscellaneous Expenditure: inc subscriptions and equipment maintenance
FCO,FCO,20-May-13,4309061,"6,702.94",INTERSERVE FM LTD,Waste Disposal
FCO,FCO,20-May-13,4309061,"46,504.72",INTERSERVE FM LTD,Mail & Porterage Services
FCO,FCO,20-May-13,4309061,"5,107.72",INTERSERVE FM LTD,Office Support Services
FCO,FCO,20-May-13,4309061,"2,898.08",INTERSERVE FM LTD,Estates Management Services
FCO,FCO,20-May-13,4309061,"11,609.92",INTERSERVE FM LTD,Rematching / Reinstatement
FCO,FCO,20-May-13,4309061,"54,475.81",INTERSERVE FM LTD,Contract Fees
FCO,FCO,20-May-13,4309061,"43,636.83",INTERSERVE FM LTD,Interim Helpdesk
FCO,FCO,20-May-13,4309067,"24,995.69",INTERSERVE FM LTD,FM Interserve BES Maintenance
FCO,FCO,20-May-13,4309109,"43,710.57",INTERSERVE FM LTD,Construction Project more than 10k
FCO,FCO,20-May-13,4309110,"36,121.98",INTERSERVE FM LTD,FM Interserve BES Maintenance
FCO,FCO,20-May-13,4309119,"21,392.50",INTERSERVE FM LTD,Dilapidations Non-Residential
FCO,FCO,20-May-13,4309119,"4,278.50",INTERSERVE FM LTD,Dilapidations Non-Residential
FCO,FCO,20-May-13,4281528,"3,907.42",ORACLE CORPORATION (UK) LTD,Information Systems Maintenance
FCO,FCO,20-May-13,4281528,"3,907.53",ORACLE CORPORATION (UK) LTD,Information Systems Maintenance
FCO,FCO,20-May-13,4309403,"148,000.00",ELECTORAL REFORM INTERNATIONAL SERVICES LTD,Programme Spend (Oracle Projects Control Account)
FCO,FCO,20-May-13,4309406,"77,330.00",ELECTORAL REFORM INTERNATIONAL SERVICES LTD,Programme Spend (Oracle Projects Control Account)
FCO,FCO,20-May-13,4309738,"25,751.00",SEARCH FOR COMMON GROUND,Programme Spend (Oracle Projects Control Account)
FCO,FCO,20-May-13,4307008,"45,176.17",CONSTRUCCIONES MORBLANCA,Consular Special Projects Fund
FCO,FCO,20-May-13,4307008,"1,329.96",CONSTRUCCIONES MORBLANCA,Unscheduled repairs to building infrastructure
FCO,FCO,20-May-13,4310188,"41,162.39",BRITISH EMBASSY,Programme Spend (Oracle Projects Control Account)
FCO,FCO,20-May-13,4309818,"58,047.49",COGENT ELECTRICAL SERVICES LTD (FORM WES),Assets Under Construction (Oracle PA Control Account)
FCO,FCO,20-May-13,4310304,"25,441.00",THE EURASIA PARTNERSHIP FOUNDATION,Programme Spend (Oracle Projects Control Account)
FCO,FCO,20-May-13,4309841,"72,427.66",ALCIS LIMITED,Programme Spend (Oracle Projects Control Account)
FCO,FCO,20-May-13,4308207,"25,670.84",ARDA CONSTRUCTION COMPANY,Programme Spend (Oracle Projects Control Account)
FCO,FCO,20-May-13,4308200,"35,147.44",NEW BOST CONSTRUCTION COMPANY,Programme Spend (Oracle Projects Control Account)
FCO,FCO,20-May-13,4308036,"71,591.54",HAYAT HELMANDWAL CONSTRUCTION COMPANY,Programme Spend (Oracle Projects Control Account)
FCO,FCO,20-May-13,4304530,"232,616.82",NEW BOST COMPANY LIITED,Programme Spend (Oracle Projects Control Account)
FCO,FCO,21-May-13,4311398,"12,410,000.00",BRITISH COUNCIL,Programme Spend (Oracle Projects Control Account)
FCO,FCO,21-May-13,4311400,"70,000.00",BRITISH COUNCIL,Programme Spend (Oracle Projects Control Account)
FCO,FCO,21-May-13,4310985,"5,891.74",JORDAN & BATEMAN ARCHITECTS,Assets Under Construction (Oracle PA Control Account)
FCO,FCO,21-May-13,4310985,"37,232.50",JORDAN & BATEMAN ARCHITECTS,Assets Under Construction (Oracle PA Control Account)
FCO,FCO,21-May-13,4310985,31.46,JORDAN & BATEMAN ARCHITECTS,Assets Under Construction (Oracle PA Control Account)
FCO,FCO,21-May-13,4310985,6.29,JORDAN & BATEMAN ARCHITECTS,Assets Under Construction (Oracle PA Control Account)
FCO,FCO,21-May-13,4310985,"1,178.35",JORDAN & BATEMAN ARCHITECTS,Assets Under Construction (Oracle PA Control Account)
FCO,FCO,21-May-13,4310985,"7,446.50",JORDAN & BATEMAN ARCHITECTS,Assets Under Construction (Oracle PA Control Account)
FCO,FCO,21-May-13,4311204,"24,538.83",LONDON ENERGY,Electricity Non-Residential
FCO,FCO,21-May-13,4311204,"4,907.77",LONDON ENERGY,Electricity Non-Residential
FCO,FCO,21-May-13,4311204,"-24,538.83",LONDON ENERGY,Electricity Non-Residential
FCO,FCO,21-May-13,4311204,"-4,907.77",LONDON ENERGY,Electricity Non-Residential
FCO,FCO,21-May-13,4311204,"24,522.46",LONDON ENERGY,Electricity Non-Residential
FCO,FCO,21-May-13,4311204,16.37,LONDON ENERGY,Electricity Non-Residential
FCO,FCO,21-May-13,4311204,"4,904.49",LONDON ENERGY,Electricity Non-Residential
FCO,FCO,21-May-13,4310700,"48,782.72",N A MOVING SERVICES LTD,Heavy Baggage
FCO,FCO,21-May-13,4310700,888,N A MOVING SERVICES LTD,Heavy Baggage
FCO,FCO,21-May-13,4309842,"38,724.67",WILLIS OF MARYLAND INC,Vehicle Insurance
FCO,FCO,21-May-13,4309842,"5,770.10",WILLIS OF MARYLAND INC,Vehicle Insurance
FCO,FCO,21-May-13,4311386,"26,666.00",BULLET MARKETING LTD,General Information Services
FCO,FCO,21-May-13,4311386,"5,333.20",BULLET MARKETING LTD,General Information Services
FCO,FCO,21-May-13,4294391,"89,202.06",GRAEBECK CONSTRUCTION LTD,Assets Under Construction (Oracle PA Control Account)
FCO,FCO,21-May-13,4310772,"35,413.76",RENAISSANCE HOTEL,Catering Services
FCO,FCO,22-May-13,4308075,"40,000.00",CABINET OFFICE,Misc Security Payments
FCO,FCO,22-May-13,4306833,"55,241.31",DEFENCE BUSINESS SERVICES FINANCE,Programme Spend (Oracle Projects Control Account)
FCO,FCO,22-May-13,4310951,"40,482.01",DEFENCE BUSINESS SERVICES FINANCE,Programme Spend (Oracle Projects Control Account)
FCO,FCO,22-May-13,4308557,"38,944.55",GREAT BRITAIN-CHINA CENTRE,Programme Spend (Oracle Projects Control Account)
FCO,FCO,22-May-13,4312807,"38,859.62",GREAT BRITAIN-CHINA CENTRE,Programme Spend (Oracle Projects Control Account)
FCO,FCO,22-May-13,4313624,"18,900,000.00",THE TREASURY SOLICITOR,Legal Charges
FCO,FCO,22-May-13,4254238,"4,500.00",FCO SERVICES,Assets Under Construction (Oracle PA Control Account)
FCO,FCO,22-May-13,4254238,"1,520.00",FCO SERVICES,Assets Under Construction (Oracle PA Control Account)
FCO,FCO,22-May-13,4254238,"2,240.00",FCO SERVICES,Assets Under Construction (Oracle PA Control Account)
FCO,FCO,22-May-13,4254238,"2,814.90",FCO SERVICES,UK - Air Travel
FCO,FCO,22-May-13,4254238,"11,250.00",FCO SERVICES,Assets Under Construction (Oracle PA Control Account)
FCO,FCO,22-May-13,4254238,"6,080.00",FCO SERVICES,Assets Under Construction (Oracle PA Control Account)
FCO,FCO,22-May-13,4254238,"6,300.00",FCO SERVICES,Assets Under Construction (Oracle PA Control Account)
FCO,FCO,22-May-13,4254238,"1,441.42",FCO SERVICES,UK - Air Travel
FCO,FCO,22-May-13,4254238,528,FCO SERVICES,UK - Air Travel
FCO,FCO,22-May-13,4254238,"2,250.00",FCO SERVICES,Assets Under Construction (Oracle PA Control Account)
FCO,FCO,22-May-13,4254238,105.6,FCO SERVICES,UK - Air Travel
FCO,FCO,22-May-13,4254238,"-4,500.00",FCO SERVICES,Assets Under Construction (Oracle PA Control Account)
FCO,FCO,22-May-13,4254238,"-1,520.00",FCO SERVICES,Assets Under Construction (Oracle PA Control Account)
FCO,FCO,22-May-13,4254238,"-2,240.00",FCO SERVICES,Assets Under Construction (Oracle PA Control Account)
FCO,FCO,22-May-13,4254238,"-2,814.90",FCO SERVICES,UK - Air Travel
FCO,FCO,22-May-13,4254238,"-11,250.00",FCO SERVICES,Assets Under Construction (Oracle PA Control Account)
FCO,FCO,22-May-13,4254238,"-6,080.00",FCO SERVICES,Assets Under Construction (Oracle PA Control Account)
FCO,FCO,22-May-13,4254238,"-6,300.00",FCO SERVICES,Assets Under Construction (Oracle PA Control Account)
FCO,FCO,22-May-13,4254238,"-1,441.42",FCO SERVICES,UK - Air Travel
FCO,FCO,22-May-13,4254238,-528,FCO SERVICES,UK - Air Travel
FCO,FCO,22-May-13,4254238,"11,778.00",FCO SERVICES,Assets Under Construction (Oracle PA Control Account)
FCO,FCO,22-May-13,4254238,783.9,FCO SERVICES,Assets Under Construction (Oracle PA Control Account)
FCO,FCO,22-May-13,4254238,"14,820.00",FCO SERVICES,Assets Under Construction (Oracle PA Control Account)
FCO,FCO,22-May-13,4254238,"2,171.70",FCO SERVICES,Assets Under Construction (Oracle PA Control Account)
FCO,FCO,22-May-13,4254238,"7,120.72",FCO SERVICES,Assets Under Construction (Oracle PA Control Account)
FCO,FCO,22-May-13,4254238,"-2,250.00",FCO SERVICES,Assets Under Construction (Oracle PA Control Account)
FCO,FCO,22-May-13,4254238,"2,355.60",FCO SERVICES,Assets Under Construction (Oracle PA Control Account)
FCO,FCO,22-May-13,4254238,-105.6,FCO SERVICES,UK - Air Travel
FCO,FCO,22-May-13,4254238,"-7,120.72",FCO SERVICES,Assets Under Construction (Oracle PA Control Account)
FCO,FCO,22-May-13,4254238,"-11,778.00",FCO SERVICES,Assets Under Construction (Oracle PA Control Account)
FCO,FCO,22-May-13,4254238,-783.9,FCO SERVICES,Assets Under Construction (Oracle PA Control Account)
FCO,FCO,22-May-13,4254238,"-14,820.00",FCO SERVICES,Assets Under Construction (Oracle PA Control Account)
FCO,FCO,22-May-13,4254238,"-2,171.70",FCO SERVICES,Assets Under Construction (Oracle PA Control Account)
FCO,FCO,22-May-13,4254238,"2,814.90",FCO SERVICES,UK - Air Travel
FCO,FCO,22-May-13,4254238,783.9,FCO SERVICES,Assets Under Construction (Oracle PA Control Account)
FCO,FCO,22-May-13,4254238,"14,820.00",FCO SERVICES,Assets Under Construction (Oracle PA Control Account)
FCO,FCO,22-May-13,4254238,"2,172.00",FCO SERVICES,Assets Under Construction (Oracle PA Control Account)
FCO,FCO,22-May-13,4254238,528,FCO SERVICES,IT/IS Consultancy
FCO,FCO,22-May-13,4254238,"1,441.42",FCO SERVICES,IT/IS Consultancy
FCO,FCO,22-May-13,4254238,"11,778.00",FCO SERVICES,Assets Under Construction (Oracle PA Control Account)
FCO,FCO,22-May-13,4254238,"2,336.10",FCO SERVICES,Assets Under Construction (Oracle PA Control Account)
FCO,FCO,22-May-13,4287308,"38,154.72",FCO SERVICES,Specialist Contractors
FCO,FCO,22-May-13,4287308,799.64,FCO SERVICES,Specialist Contractors
FCO,FCO,22-May-13,4287308,"1,604.12",FCO SERVICES,Specialist Contractors
FCO,FCO,22-May-13,4287308,"9,650.75",FCO SERVICES,IT/IS Consultancy
FCO,FCO,22-May-13,4287308,"1,930.15",FCO SERVICES,IT/IS Consultancy
FCO,FCO,22-May-13,4287308,"-38,154.72",FCO SERVICES,Specialist Contractors
FCO,FCO,22-May-13,4287308,-799.64,FCO SERVICES,Specialist Contractors
FCO,FCO,22-May-13,4287308,"-1,604.12",FCO SERVICES,Specialist Contractors
FCO,FCO,22-May-13,4287308,"-9,650.75",FCO SERVICES,IT/IS Consultancy
FCO,FCO,22-May-13,4287308,"38,154.72",FCO SERVICES,Specialist Contractors
FCO,FCO,22-May-13,4287308,33.42,FCO SERVICES,Specialist Contractors
FCO,FCO,22-May-13,4287308,"12,021.09",FCO SERVICES,IT/IS Consultancy
FCO,FCO,22-May-13,4287308,474.07,FCO SERVICES,IT/IS Consultancy
FCO,FCO,22-May-13,4304929,"27,316.67",FCO SERVICES,Assets Under Construction (Oracle PA Control Account)
FCO,FCO,22-May-13,4308409,"217,297.21",FCO SERVICES,Assets Under Construction (Oracle PA Control Account)
FCO,FCO,22-May-13,4308415,"212,771.84",FCO SERVICES,Assets Under Construction (Oracle PA Control Account)
FCO,FCO,22-May-13,4308422,"55,035.02",FCO SERVICES,Assets Under Construction (Oracle PA Control Account)
FCO,FCO,22-May-13,4308454,"200,258.32",FCO SERVICES,Assets Under Construction (Oracle PA Control Account)
FCO,FCO,22-May-13,4310886,"692,550.00",FCO SERVICES,Air Freight Dip Bags - Freight & Clearance Charges
FCO,FCO,22-May-13,4310894,"363,108.75",FCO SERVICES,Air Freight Dip Bags - Freight & Clearance Charges
FCO,FCO,22-May-13,4311031,"27,481.00",KEY 4 LEARNING LTD,Equipment and Services For Disabled Staff
FCO,FCO,22-May-13,4293433,"25,644.45",SAGICOR LIFE INSURANCE INC,Rental Payments - non residential
FCO,FCO,22-May-13,4308310,"26,889.35",MINISTRY OF JUSTICE,Programme Spend (Oracle Projects Control Account)
FCO,FCO,22-May-13,4312901,"100,000.00",THE GLOBAL CENTRE FOR THE RESPONSIBILITY TO PROTECT,Programme Spend (Oracle Projects Control Account)
FCO,FCO,22-May-13,4305980,615.51,ISS FACILITY SERVICES LTD FCO OP,Building Fabric Services
FCO,FCO,22-May-13,4305980,690.45,ISS FACILITY SERVICES LTD FCO OP,Residential Property Services
FCO,FCO,22-May-13,4305980,"3,323.35",ISS FACILITY SERVICES LTD FCO OP,Reception Services
FCO,FCO,22-May-13,4305980,976.75,ISS FACILITY SERVICES LTD FCO OP,Miscellaneous Expenditure: inc subscriptions and equipment maintenance
FCO,FCO,22-May-13,4305980,"12,417.36",ISS FACILITY SERVICES LTD FCO OP,Manned Guarding Services
FCO,FCO,22-May-13,4305980,"5,186.03",ISS FACILITY SERVICES LTD FCO OP,Cleaning & Waste
FCO,FCO,22-May-13,4305980,"1,293.44",ISS FACILITY SERVICES LTD FCO OP,Office Support Services
FCO,FCO,22-May-13,4305980,"1,618.43",ISS FACILITY SERVICES LTD FCO OP,Repair and maintenance of furniture and fittings
FCO,FCO,22-May-13,4305980,"1,457.33",ISS FACILITY SERVICES LTD FCO OP,Mail & Porterage Services
FCO,FCO,22-May-13,4305980,"16,786.93",ISS FACILITY SERVICES LTD FCO OP,Grounds Maintenance
FCO,FCO,22-May-13,4305980,"8,817.32",ISS FACILITY SERVICES LTD FCO OP,Building Mechanical and Engineering Services
FCO,FCO,22-May-13,4305980,"2,409.08",ISS FACILITY SERVICES LTD FCO OP,Contract Fees
FCO,FCO,22-May-13,4305980,998.18,ISS FACILITY SERVICES LTD FCO OP,Contract Fees
FCO,FCO,22-May-13,4305980,654.3,ISS FACILITY SERVICES LTD FCO OP,Contract Fees
FCO,FCO,22-May-13,4305980,"1,924.13",ISS FACILITY SERVICES LTD FCO OP,Contract Fees
FCO,FCO,22-May-13,4305980,499.09,ISS FACILITY SERVICES LTD FCO OP,Contract Fees
FCO,FCO,22-May-13,4305980,"1,885.30",ISS FACILITY SERVICES LTD FCO OP,Contract Fees
FCO,FCO,22-May-13,4305980,940.97,ISS FACILITY SERVICES LTD FCO OP,Contract Fees
FCO,FCO,22-May-13,4305980,"7,158.40",ISS FACILITY SERVICES LTD FCO OP,Unscheduled repairs to building infrastructure
FCO,FCO,22-May-13,4305980,61.55,ISS FACILITY SERVICES LTD FCO OP,Building Fabric Services
FCO,FCO,22-May-13,4305980,69.05,ISS FACILITY SERVICES LTD FCO OP,Residential Property Services
FCO,FCO,22-May-13,4305980,332.33,ISS FACILITY SERVICES LTD FCO OP,Reception Services
FCO,FCO,22-May-13,4305980,97.68,ISS FACILITY SERVICES LTD FCO OP,Miscellaneous Expenditure: inc subscriptions and equipment maintenance
FCO,FCO,22-May-13,4305980,"1,241.74",ISS FACILITY SERVICES LTD FCO OP,Manned Guarding Services
FCO,FCO,22-May-13,4305980,518.6,ISS FACILITY SERVICES LTD FCO OP,Cleaning & Waste
FCO,FCO,22-May-13,4305980,129.34,ISS FACILITY SERVICES LTD FCO OP,Office Support Services
FCO,FCO,22-May-13,4305980,161.84,ISS FACILITY SERVICES LTD FCO OP,Repair and maintenance of furniture and fittings
FCO,FCO,22-May-13,4305980,145.74,ISS FACILITY SERVICES LTD FCO OP,Mail & Porterage Services
FCO,FCO,22-May-13,4305980,"1,678.69",ISS FACILITY SERVICES LTD FCO OP,Grounds Maintenance
FCO,FCO,22-May-13,4305980,881.73,ISS FACILITY SERVICES LTD FCO OP,Building Mechanical and Engineering Services
FCO,FCO,22-May-13,4305980,240.91,ISS FACILITY SERVICES LTD FCO OP,Contract Fees
FCO,FCO,22-May-13,4305980,99.82,ISS FACILITY SERVICES LTD FCO OP,Contract Fees
FCO,FCO,22-May-13,4305980,65.43,ISS FACILITY SERVICES LTD FCO OP,Contract Fees
FCO,FCO,22-May-13,4305980,192.41,ISS FACILITY SERVICES LTD FCO OP,Contract Fees
FCO,FCO,22-May-13,4305980,49.91,ISS FACILITY SERVICES LTD FCO OP,Contract Fees
FCO,FCO,22-May-13,4305980,188.53,ISS FACILITY SERVICES LTD FCO OP,Contract Fees
FCO,FCO,22-May-13,4305980,94.1,ISS FACILITY SERVICES LTD FCO OP,Contract Fees
FCO,FCO,22-May-13,4305980,715.84,ISS FACILITY SERVICES LTD FCO OP,Unscheduled repairs to building infrastructure
FCO,FCO,22-May-13,4305991,"9,378.89",ISS FACILITY SERVICES LTD FCO OP,Building Fabric Services
FCO,FCO,22-May-13,4305991,"4,713.15",ISS FACILITY SERVICES LTD FCO OP,Residential Property Services
FCO,FCO,22-May-13,4305991,"1,481.14",ISS FACILITY SERVICES LTD FCO OP,Reception Services
FCO,FCO,22-May-13,4305991,"1,462.67",ISS FACILITY SERVICES LTD FCO OP,Miscellaneous Expenditure: inc subscriptions and equipment maintenance
FCO,FCO,22-May-13,4305991,"9,357.57",ISS FACILITY SERVICES LTD FCO OP,Manned Guarding Services
FCO,FCO,22-May-13,4305991,"6,184.38",ISS FACILITY SERVICES LTD FCO OP,Cleaning & Waste
FCO,FCO,22-May-13,4305991,578.15,ISS FACILITY SERVICES LTD FCO OP,Office Support Services
FCO,FCO,22-May-13,4305991,"1,645.04",ISS FACILITY SERVICES LTD FCO OP,Repair and maintenance of furniture and fittings
FCO,FCO,22-May-13,4305991,"1,154.20",ISS FACILITY SERVICES LTD FCO OP,Mail & Porterage Services
FCO,FCO,22-May-13,4305991,"2,588.00",ISS FACILITY SERVICES LTD FCO OP,Grounds Maintenance
FCO,FCO,22-May-13,4305991,"5,213.39",ISS FACILITY SERVICES LTD FCO OP,Building Mechanical and Engineering Services
FCO,FCO,22-May-13,4305991,"3,863.23",ISS FACILITY SERVICES LTD FCO OP,Contract Fees
FCO,FCO,22-May-13,4305991,703.95,ISS FACILITY SERVICES LTD FCO OP,Contract Fees
FCO,FCO,22-May-13,4305991,422.29,ISS FACILITY SERVICES LTD FCO OP,Contract Fees
FCO,FCO,22-May-13,4305991,"1,054.86",ISS FACILITY SERVICES LTD FCO OP,Contract Fees
FCO,FCO,22-May-13,4305991,305.32,ISS FACILITY SERVICES LTD FCO OP,Contract Fees
FCO,FCO,22-May-13,4305991,"1,208.39",ISS FACILITY SERVICES LTD FCO OP,Contract Fees
FCO,FCO,22-May-13,4305991,516.91,ISS FACILITY SERVICES LTD FCO OP,Contract Fees
FCO,FCO,22-May-13,4305991,"6,940.71",ISS FACILITY SERVICES LTD FCO OP,Unscheduled repairs to building infrastructure
FCO,FCO,22-May-13,4305991,529.91,ISS FACILITY SERVICES LTD FCO OP,Building Fabric Services
FCO,FCO,22-May-13,4305991,266.29,ISS FACILITY SERVICES LTD FCO OP,Residential Property Services
FCO,FCO,22-May-13,4305991,83.68,ISS FACILITY SERVICES LTD FCO OP,Reception Services
FCO,FCO,22-May-13,4305991,82.64,ISS FACILITY SERVICES LTD FCO OP,Miscellaneous Expenditure: inc subscriptions and equipment maintenance
FCO,FCO,22-May-13,4305991,528.7,ISS FACILITY SERVICES LTD FCO OP,Manned Guarding Services
FCO,FCO,22-May-13,4305991,349.42,ISS FACILITY SERVICES LTD FCO OP,Cleaning & Waste
FCO,FCO,22-May-13,4305991,32.67,ISS FACILITY SERVICES LTD FCO OP,Office Support Services
FCO,FCO,22-May-13,4305991,92.94,ISS FACILITY SERVICES LTD FCO OP,Repair and maintenance of furniture and fittings
FCO,FCO,22-May-13,4305991,65.21,ISS FACILITY SERVICES LTD FCO OP,Mail & Porterage Services
FCO,FCO,22-May-13,4305991,146.22,ISS FACILITY SERVICES LTD FCO OP,Grounds Maintenance
FCO,FCO,22-May-13,4305991,294.56,ISS FACILITY SERVICES LTD FCO OP,Building Mechanical and Engineering Services
FCO,FCO,22-May-13,4305991,218.27,ISS FACILITY SERVICES LTD FCO OP,Contract Fees
FCO,FCO,22-May-13,4305991,39.77,ISS FACILITY SERVICES LTD FCO OP,Contract Fees
FCO,FCO,22-May-13,4305991,23.86,ISS FACILITY SERVICES LTD FCO OP,Contract Fees
FCO,FCO,22-May-13,4305991,59.6,ISS FACILITY SERVICES LTD FCO OP,Contract Fees
FCO,FCO,22-May-13,4305991,17.25,ISS FACILITY SERVICES LTD FCO OP,Contract Fees
FCO,FCO,22-May-13,4305991,68.27,ISS FACILITY SERVICES LTD FCO OP,Contract Fees
FCO,FCO,22-May-13,4305991,29.21,ISS FACILITY SERVICES LTD FCO OP,Contract Fees
FCO,FCO,22-May-13,4305991,392.15,ISS FACILITY SERVICES LTD FCO OP,Unscheduled repairs to building infrastructure
FCO,FCO,22-May-13,4305996,372.68,ISS FACILITY SERVICES LTD FCO OP,Contract Fees
FCO,FCO,22-May-13,4305996,"1,460.06",ISS FACILITY SERVICES LTD FCO OP,Reception Services
FCO,FCO,22-May-13,4305996,675.53,ISS FACILITY SERVICES LTD FCO OP,Miscellaneous Expenditure: inc subscriptions and equipment maintenance
FCO,FCO,22-May-13,4305996,"12,329.22",ISS FACILITY SERVICES LTD FCO OP,Manned Guarding Services
FCO,FCO,22-May-13,4305996,"7,539.73",ISS FACILITY SERVICES LTD FCO OP,Cleaning & Waste
FCO,FCO,22-May-13,4305996,"2,024.18",ISS FACILITY SERVICES LTD FCO OP,Office Support Services
FCO,FCO,22-May-13,4305996,"2,081.27",ISS FACILITY SERVICES LTD FCO OP,Repair and maintenance of furniture and fittings
FCO,FCO,22-May-13,4305996,"2,353.76",ISS FACILITY SERVICES LTD FCO OP,Mail & Porterage Services
FCO,FCO,22-May-13,4305996,395.48,ISS FACILITY SERVICES LTD FCO OP,Grounds Maintenance
FCO,FCO,22-May-13,4305996,"3,664.44",ISS FACILITY SERVICES LTD FCO OP,Building Fabric Services
FCO,FCO,22-May-13,4305996,"19,454.84",ISS FACILITY SERVICES LTD FCO OP,Building Mechanical and Engineering Services
FCO,FCO,22-May-13,4305996,437.12,ISS FACILITY SERVICES LTD FCO OP,Contract Fees
FCO,FCO,22-May-13,4305996,"50,616.54",ISS FACILITY SERVICES LTD FCO OP,Contract Fees
FCO,FCO,22-May-13,4305996,"1,311.51",ISS FACILITY SERVICES LTD FCO OP,Contract Fees
FCO,FCO,22-May-13,4305996,848.15,ISS FACILITY SERVICES LTD FCO OP,Contract Fees
FCO,FCO,22-May-13,4305996,"1,880.42",ISS FACILITY SERVICES LTD FCO OP,Contract Fees
FCO,FCO,22-May-13,4305996,502.64,ISS FACILITY SERVICES LTD FCO OP,Contract Fees
FCO,FCO,22-May-13,4305996,"1,967.10",ISS FACILITY SERVICES LTD FCO OP,Contract Fees
FCO,FCO,22-May-13,4305996,"9,911.73",ISS FACILITY SERVICES LTD FCO OP,Unscheduled repairs to building infrastructure
FCO,FCO,22-May-13,4305996,"2,376.86",ISS FACILITY SERVICES LTD FCO OP,Residential Property Services
FCO,FCO,22-May-13,4305996,"35,018.22",ISS FACILITY SERVICES LTD FCO OP,Contract Fees
FCO,FCO,22-May-13,4305999,355.22,ISS FACILITY SERVICES LTD FCO OP,Building Fabric Services
FCO,FCO,22-May-13,4305999,223.42,ISS FACILITY SERVICES LTD FCO OP,Residential Property Services
FCO,FCO,22-May-13,4305999,155.77,ISS FACILITY SERVICES LTD FCO OP,Reception Services
FCO,FCO,22-May-13,4305999,396.94,ISS FACILITY SERVICES LTD FCO OP,Miscellaneous Expenditure: inc subscriptions and equipment maintenance
FCO,FCO,22-May-13,4305999,"18,436.00",ISS FACILITY SERVICES LTD FCO OP,Manned Guarding Services
FCO,FCO,22-May-13,4305999,751.92,ISS FACILITY SERVICES LTD FCO OP,Cleaning & Waste
FCO,FCO,22-May-13,4305999,67.82,ISS FACILITY SERVICES LTD FCO OP,Office Support Services
FCO,FCO,22-May-13,4305999,422.37,ISS FACILITY SERVICES LTD FCO OP,Repair and maintenance of furniture and fittings
FCO,FCO,22-May-13,4305999,399.95,ISS FACILITY SERVICES LTD FCO OP,Mail & Porterage Services
FCO,FCO,22-May-13,4305999,168.11,ISS FACILITY SERVICES LTD FCO OP,Grounds Maintenance
FCO,FCO,22-May-13,4305999,"2,384.34",ISS FACILITY SERVICES LTD FCO OP,Building Mechanical and Engineering Services
FCO,FCO,22-May-13,4305999,"3,652.82",ISS FACILITY SERVICES LTD FCO OP,Contract Fees
FCO,FCO,22-May-13,4305999,271.71,ISS FACILITY SERVICES LTD FCO OP,Contract Fees
FCO,FCO,22-May-13,4305999,206.15,ISS FACILITY SERVICES LTD FCO OP,Contract Fees
FCO,FCO,22-May-13,4305999,512.87,ISS FACILITY SERVICES LTD FCO OP,Contract Fees
FCO,FCO,22-May-13,4305999,135.85,ISS FACILITY SERVICES LTD FCO OP,Contract Fees
FCO,FCO,22-May-13,4305999,583.31,ISS FACILITY SERVICES LTD FCO OP,Contract Fees
FCO,FCO,22-May-13,4305999,135.85,ISS FACILITY SERVICES LTD FCO OP,Contract Fees
FCO,FCO,22-May-13,4305999,"1,588.31",ISS FACILITY SERVICES LTD FCO OP,Unscheduled repairs to building infrastructure
FCO,FCO,22-May-13,4305999,35.52,ISS FACILITY SERVICES LTD FCO OP,Building Fabric Services
FCO,FCO,22-May-13,4305999,22.34,ISS FACILITY SERVICES LTD FCO OP,Residential Property Services
FCO,FCO,22-May-13,4305999,15.58,ISS FACILITY SERVICES LTD FCO OP,Reception Services
FCO,FCO,22-May-13,4305999,39.69,ISS FACILITY SERVICES LTD FCO OP,Miscellaneous Expenditure: inc subscriptions and equipment maintenance
FCO,FCO,22-May-13,4305999,"1,843.60",ISS FACILITY SERVICES LTD FCO OP,Manned Guarding Services
FCO,FCO,22-May-13,4305999,75.19,ISS FACILITY SERVICES LTD FCO OP,Cleaning & Waste
FCO,FCO,22-May-13,4305999,6.78,ISS FACILITY SERVICES LTD FCO OP,Office Support Services
FCO,FCO,22-May-13,4305999,42.24,ISS FACILITY SERVICES LTD FCO OP,Repair and maintenance of furniture and fittings
FCO,FCO,22-May-13,4305999,40,ISS FACILITY SERVICES LTD FCO OP,Mail & Porterage Services
FCO,FCO,22-May-13,4305999,16.81,ISS FACILITY SERVICES LTD FCO OP,Grounds Maintenance
FCO,FCO,22-May-13,4305999,238.43,ISS FACILITY SERVICES LTD FCO OP,Building Mechanical and Engineering Services
FCO,FCO,22-May-13,4305999,365.28,ISS FACILITY SERVICES LTD FCO OP,Contract Fees
FCO,FCO,22-May-13,4305999,27.17,ISS FACILITY SERVICES LTD FCO OP,Contract Fees
FCO,FCO,22-May-13,4305999,20.62,ISS FACILITY SERVICES LTD FCO OP,Contract Fees
FCO,FCO,22-May-13,4305999,51.29,ISS FACILITY SERVICES LTD FCO OP,Contract Fees
FCO,FCO,22-May-13,4305999,13.59,ISS FACILITY SERVICES LTD FCO OP,Contract Fees
FCO,FCO,22-May-13,4305999,58.33,ISS FACILITY SERVICES LTD FCO OP,Contract Fees
FCO,FCO,22-May-13,4305999,13.59,ISS FACILITY SERVICES LTD FCO OP,Contract Fees
FCO,FCO,22-May-13,4305999,158.83,ISS FACILITY SERVICES LTD FCO OP,Unscheduled repairs to building infrastructure
FCO,FCO,22-May-13,4306004,"11,225.46",ISS FACILITY SERVICES LTD FCO OP,Cleaning & Waste
FCO,FCO,22-May-13,4306004,"1,389.82",ISS FACILITY SERVICES LTD FCO OP,Contract Fees
FCO,FCO,22-May-13,4306004,"3,660.55",ISS FACILITY SERVICES LTD FCO OP,Contract Fees
FCO,FCO,22-May-13,4306004,"1,008.13",ISS FACILITY SERVICES LTD FCO OP,Contract Fees
FCO,FCO,22-May-13,4306004,"8,965.59",ISS FACILITY SERVICES LTD FCO OP,Unscheduled repairs to building infrastructure
FCO,FCO,22-May-13,4306004,127.23,ISS FACILITY SERVICES LTD FCO OP,Residential Property Services
FCO,FCO,22-May-13,4306004,"2,703.90",ISS FACILITY SERVICES LTD FCO OP,Reception Services
FCO,FCO,22-May-13,4306004,281.06,ISS FACILITY SERVICES LTD FCO OP,Miscellaneous Expenditure: inc subscriptions and equipment maintenance
FCO,FCO,22-May-13,4306004,"2,958.36",ISS FACILITY SERVICES LTD FCO OP,Office Support Services
FCO,FCO,22-May-13,4306004,"40,600.65",ISS FACILITY SERVICES LTD FCO OP,Manned Guarding Services
FCO,FCO,22-May-13,4306004,254.47,ISS FACILITY SERVICES LTD FCO OP,Repair and maintenance of furniture and fittings
FCO,FCO,22-May-13,4306004,"1,647.21",ISS FACILITY SERVICES LTD FCO OP,Contract Fees
FCO,FCO,22-May-13,4306004,"5,692.42",ISS FACILITY SERVICES LTD FCO OP,Grounds Maintenance
FCO,FCO,22-May-13,4306004,"17,718.90",ISS FACILITY SERVICES LTD FCO OP,Building Mechanical and Engineering Services
FCO,FCO,22-May-13,4306004,998.4,ISS FACILITY SERVICES LTD FCO OP,Contract Fees
FCO,FCO,22-May-13,4306004,371.97,ISS FACILITY SERVICES LTD FCO OP,Contract Fees
FCO,FCO,22-May-13,4306004,743.94,ISS FACILITY SERVICES LTD FCO OP,Contract Fees
FCO,FCO,22-May-13,4306004,561.27,ISS FACILITY SERVICES LTD FCO OP,Cleaning & Waste
FCO,FCO,22-May-13,4306004,69.49,ISS FACILITY SERVICES LTD FCO OP,Contract Fees
FCO,FCO,22-May-13,4306004,183.03,ISS FACILITY SERVICES LTD FCO OP,Contract Fees
FCO,FCO,22-May-13,4306004,50.4,ISS FACILITY SERVICES LTD FCO OP,Contract Fees
FCO,FCO,22-May-13,4306004,448.28,ISS FACILITY SERVICES LTD FCO OP,Unscheduled repairs to building infrastructure
FCO,FCO,22-May-13,4306004,6.36,ISS FACILITY SERVICES LTD FCO OP,Residential Property Services
FCO,FCO,22-May-13,4306004,135.2,ISS FACILITY SERVICES LTD FCO OP,Reception Services
FCO,FCO,22-May-13,4306004,14.05,ISS FACILITY SERVICES LTD FCO OP,Miscellaneous Expenditure: inc subscriptions and equipment maintenance
FCO,FCO,22-May-13,4306004,147.92,ISS FACILITY SERVICES LTD FCO OP,Office Support Services
FCO,FCO,22-May-13,4306004,"2,030.03",ISS FACILITY SERVICES LTD FCO OP,Manned Guarding Services
FCO,FCO,22-May-13,4306004,12.72,ISS FACILITY SERVICES LTD FCO OP,Repair and maintenance of furniture and fittings
FCO,FCO,22-May-13,4306004,82.36,ISS FACILITY SERVICES LTD FCO OP,Contract Fees
FCO,FCO,22-May-13,4306004,284.62,ISS FACILITY SERVICES LTD FCO OP,Grounds Maintenance
FCO,FCO,22-May-13,4306004,885.95,ISS FACILITY SERVICES LTD FCO OP,Building Mechanical and Engineering Services
FCO,FCO,22-May-13,4306004,49.92,ISS FACILITY SERVICES LTD FCO OP,Contract Fees
FCO,FCO,22-May-13,4306004,18.6,ISS FACILITY SERVICES LTD FCO OP,Contract Fees
FCO,FCO,22-May-13,4306004,37.2,ISS FACILITY SERVICES LTD FCO OP,Contract Fees
FCO,FCO,22-May-13,4306005,"1,864.14",ISS FACILITY SERVICES LTD FCO OP,Reception Services
FCO,FCO,22-May-13,4306005,"2,485.52",ISS FACILITY SERVICES LTD FCO OP,Office Support Services
FCO,FCO,22-May-13,4306005,172.61,ISS FACILITY SERVICES LTD FCO OP,Miscellaneous Expenditure: inc subscriptions and equipment maintenance
FCO,FCO,22-May-13,4306005,"13,912.29",ISS FACILITY SERVICES LTD FCO OP,Manned Guarding Services
FCO,FCO,22-May-13,4306005,"2,927.40",ISS FACILITY SERVICES LTD FCO OP,Cleaning & Waste
FCO,FCO,22-May-13,4306005,"3,941.78",ISS FACILITY SERVICES LTD FCO OP,Contract Fees
FCO,FCO,22-May-13,4306005,"1,817.96",ISS FACILITY SERVICES LTD FCO OP,Grounds Maintenance
FCO,FCO,22-May-13,4306005,"1,553.45",ISS FACILITY SERVICES LTD FCO OP,Building Fabric Services
FCO,FCO,22-May-13,4306005,"6,852.45",ISS FACILITY SERVICES LTD FCO OP,Building Mechanical and Engineering Services
FCO,FCO,22-May-13,4306005,"4,376.20",ISS FACILITY SERVICES LTD FCO OP,Unscheduled repairs to building infrastructure
FCO,FCO,22-May-13,4306008,252.17,ISS FACILITY SERVICES LTD FCO OP,Building Fabric Services
FCO,FCO,22-May-13,4306008,"1,089.39",ISS FACILITY SERVICES LTD FCO OP,Residential Property Services
FCO,FCO,22-May-13,4306008,692.97,ISS FACILITY SERVICES LTD FCO OP,Reception Services
FCO,FCO,22-May-13,4306008,711.2,ISS FACILITY SERVICES LTD FCO OP,Miscellaneous Expenditure: inc subscriptions and equipment maintenance
FCO,FCO,22-May-13,4306008,"16,015.40",ISS FACILITY SERVICES LTD FCO OP,Manned Guarding Services
FCO,FCO,22-May-13,4306008,"2,752.15",ISS FACILITY SERVICES LTD FCO OP,Cleaning & Waste
FCO,FCO,22-May-13,4306008,295.01,ISS FACILITY SERVICES LTD FCO OP,Office Support Services
FCO,FCO,22-May-13,4306008,242.77,ISS FACILITY SERVICES LTD FCO OP,Repair and maintenance of furniture and fittings
FCO,FCO,22-May-13,4306008,182.85,ISS FACILITY SERVICES LTD FCO OP,Mail & Porterage Services
FCO,FCO,22-May-13,4306008,"2,765.74",ISS FACILITY SERVICES LTD FCO OP,Grounds Maintenance
FCO,FCO,22-May-13,4306008,"6,627.58",ISS FACILITY SERVICES LTD FCO OP,Building Mechanical and Engineering Services
FCO,FCO,22-May-13,4306008,"1,005.95",ISS FACILITY SERVICES LTD FCO OP,Contract Fees
FCO,FCO,22-May-13,4306008,354.03,ISS FACILITY SERVICES LTD FCO OP,Contract Fees
FCO,FCO,22-May-13,4306008,177.01,ISS FACILITY SERVICES LTD FCO OP,Contract Fees
FCO,FCO,22-May-13,4306008,449.29,ISS FACILITY SERVICES LTD FCO OP,Contract Fees
FCO,FCO,22-May-13,4306008,177.01,ISS FACILITY SERVICES LTD FCO OP,Contract Fees
FCO,FCO,22-May-13,4306008,531.04,ISS FACILITY SERVICES LTD FCO OP,Contract Fees
FCO,FCO,22-May-13,4306008,269.2,ISS FACILITY SERVICES LTD FCO OP,Contract Fees
FCO,FCO,22-May-13,4306008,"3,825.24",ISS FACILITY SERVICES LTD FCO OP,Unscheduled repairs to building infrastructure
FCO,FCO,22-May-13,4306010,"1,247.20",ISS FACILITY SERVICES LTD FCO OP,FM Interserve BES Maintenance
FCO,FCO,22-May-13,4306010,"3,993.92",ISS FACILITY SERVICES LTD FCO OP,FM Interserve BES Maintenance
FCO,FCO,22-May-13,4306010,973.14,ISS FACILITY SERVICES LTD FCO OP,FM Interserve BES Maintenance
FCO,FCO,22-May-13,4306010,"6,716.48",ISS FACILITY SERVICES LTD FCO OP,FM Interserve BES Maintenance
FCO,FCO,22-May-13,4306010,213.22,ISS FACILITY SERVICES LTD FCO OP,FM Interserve BES Maintenance
FCO,FCO,22-May-13,4306010,"1,869.86",ISS FACILITY SERVICES LTD FCO OP,FM Interserve BES Maintenance
FCO,FCO,22-May-13,4306010,369.11,ISS FACILITY SERVICES LTD FCO OP,FM Interserve BES Maintenance
FCO,FCO,22-May-13,4306010,"2,378.83",ISS FACILITY SERVICES LTD FCO OP,FM Interserve BES Maintenance
FCO,FCO,22-May-13,4306010,"2,122.22",ISS FACILITY SERVICES LTD FCO OP,FM Interserve BES Maintenance
FCO,FCO,22-May-13,4306010,"1,588.51",ISS FACILITY SERVICES LTD FCO OP,FM Interserve BES Maintenance
FCO,FCO,22-May-13,4306010,768.76,ISS FACILITY SERVICES LTD FCO OP,FM Interserve BES Maintenance
FCO,FCO,22-May-13,4306010,"3,450.28",ISS FACILITY SERVICES LTD FCO OP,FM Interserve BES Maintenance
FCO,FCO,22-May-13,4306010,"1,060.60",ISS FACILITY SERVICES LTD FCO OP,FM Interserve BES Maintenance
FCO,FCO,22-May-13,4306010,270.67,ISS FACILITY SERVICES LTD FCO OP,FM Interserve BES Maintenance
FCO,FCO,22-May-13,4306010,27.62,ISS FACILITY SERVICES LTD FCO OP,FM Interserve BES Maintenance
FCO,FCO,22-May-13,4306010,51.31,ISS FACILITY SERVICES LTD FCO OP,FM Interserve BES Maintenance
FCO,FCO,22-May-13,4306010,213.22,ISS FACILITY SERVICES LTD FCO OP,FM Interserve BES Maintenance
FCO,FCO,22-May-13,4306010,187.08,ISS FACILITY SERVICES LTD FCO OP,FM Interserve BES Maintenance
FCO,FCO,22-May-13,4306010,599.09,ISS FACILITY SERVICES LTD FCO OP,FM Interserve BES Maintenance
FCO,FCO,22-May-13,4306010,145.97,ISS FACILITY SERVICES LTD FCO OP,FM Interserve BES Maintenance
FCO,FCO,22-May-13,4306010,"1,007.47",ISS FACILITY SERVICES LTD FCO OP,FM Interserve BES Maintenance
FCO,FCO,22-May-13,4306010,31.98,ISS FACILITY SERVICES LTD FCO OP,FM Interserve BES Maintenance
FCO,FCO,22-May-13,4306010,280.48,ISS FACILITY SERVICES LTD FCO OP,FM Interserve BES Maintenance
FCO,FCO,22-May-13,4306010,55.37,ISS FACILITY SERVICES LTD FCO OP,FM Interserve BES Maintenance
FCO,FCO,22-May-13,4306010,356.82,ISS FACILITY SERVICES LTD FCO OP,FM Interserve BES Maintenance
FCO,FCO,22-May-13,4306010,318.33,ISS FACILITY SERVICES LTD FCO OP,FM Interserve BES Maintenance
FCO,FCO,22-May-13,4306010,238.28,ISS FACILITY SERVICES LTD FCO OP,FM Interserve BES Maintenance
FCO,FCO,22-May-13,4306010,115.31,ISS FACILITY SERVICES LTD FCO OP,FM Interserve BES Maintenance
FCO,FCO,22-May-13,4306010,517.54,ISS FACILITY SERVICES LTD FCO OP,FM Interserve BES Maintenance
FCO,FCO,22-May-13,4306010,159.09,ISS FACILITY SERVICES LTD FCO OP,FM Interserve BES Maintenance
FCO,FCO,22-May-13,4306010,40.6,ISS FACILITY SERVICES LTD FCO OP,FM Interserve BES Maintenance
FCO,FCO,22-May-13,4306010,4.14,ISS FACILITY SERVICES LTD FCO OP,FM Interserve BES Maintenance
FCO,FCO,22-May-13,4306010,7.69,ISS FACILITY SERVICES LTD FCO OP,FM Interserve BES Maintenance
FCO,FCO,22-May-13,4306010,31.98,ISS FACILITY SERVICES LTD FCO OP,FM Interserve BES Maintenance
FCO,FCO,22-May-13,4306014,567.01,ISS FACILITY SERVICES LTD FCO OP,Repair and maintenance of furniture and fittings
FCO,FCO,22-May-13,4306014,448.74,ISS FACILITY SERVICES LTD FCO OP,Contract Fees
FCO,FCO,22-May-13,4306014,"2,728.19",ISS FACILITY SERVICES LTD FCO OP,Unscheduled repairs to building infrastructure
FCO,FCO,22-May-13,4306014,428.43,ISS FACILITY SERVICES LTD FCO OP,Residential Property Services
FCO,FCO,22-May-13,4306014,203.59,ISS FACILITY SERVICES LTD FCO OP,Miscellaneous Expenditure: inc subscriptions and equipment maintenance
FCO,FCO,22-May-13,4306014,"1,796.25",ISS FACILITY SERVICES LTD FCO OP,Manned Guarding Services
FCO,FCO,22-May-13,4306014,"3,041.85",ISS FACILITY SERVICES LTD FCO OP,Cleaning & Waste
FCO,FCO,22-May-13,4306014,766.66,ISS FACILITY SERVICES LTD FCO OP,Office Support Services
FCO,FCO,22-May-13,4306014,"1,054.50",ISS FACILITY SERVICES LTD FCO OP,Building Fabric Services
FCO,FCO,22-May-13,4306014,537.45,ISS FACILITY SERVICES LTD FCO OP,Mail & Porterage Services
FCO,FCO,22-May-13,4306014,"3,905.30",ISS FACILITY SERVICES LTD FCO OP,Building Mechanical and Engineering Services
FCO,FCO,22-May-13,4306014,"5,519.46",ISS FACILITY SERVICES LTD FCO OP,Grounds Maintenance
FCO,FCO,22-May-13,4306014,590.71,ISS FACILITY SERVICES LTD FCO OP,Contract Fees
FCO,FCO,22-May-13,4306014,221.02,ISS FACILITY SERVICES LTD FCO OP,Contract Fees
FCO,FCO,22-May-13,4306014,132.96,ISS FACILITY SERVICES LTD FCO OP,Contract Fees
FCO,FCO,22-May-13,4306014,574,ISS FACILITY SERVICES LTD FCO OP,Contract Fees
FCO,FCO,22-May-13,4306014,110.51,ISS FACILITY SERVICES LTD FCO OP,Contract Fees
FCO,FCO,22-May-13,4306014,387.65,ISS FACILITY SERVICES LTD FCO OP,Contract Fees
FCO,FCO,22-May-13,4306014,85.05,ISS FACILITY SERVICES LTD FCO OP,Repair and maintenance of furniture and fittings
FCO,FCO,22-May-13,4306014,67.31,ISS FACILITY SERVICES LTD FCO OP,Contract Fees
FCO,FCO,22-May-13,4306014,409.23,ISS FACILITY SERVICES LTD FCO OP,Unscheduled repairs to building infrastructure
FCO,FCO,22-May-13,4306014,64.27,ISS FACILITY SERVICES LTD FCO OP,Residential Property Services
FCO,FCO,22-May-13,4306014,30.54,ISS FACILITY SERVICES LTD FCO OP,Miscellaneous Expenditure: inc subscriptions and equipment maintenance
FCO,FCO,22-May-13,4306014,269.44,ISS FACILITY SERVICES LTD FCO OP,Manned Guarding Services
FCO,FCO,22-May-13,4306014,456.28,ISS FACILITY SERVICES LTD FCO OP,Cleaning & Waste
FCO,FCO,22-May-13,4306014,115,ISS FACILITY SERVICES LTD FCO OP,Office Support Services
FCO,FCO,22-May-13,4306014,158.17,ISS FACILITY SERVICES LTD FCO OP,Building Fabric Services
FCO,FCO,22-May-13,4306014,80.62,ISS FACILITY SERVICES LTD FCO OP,Mail & Porterage Services
FCO,FCO,22-May-13,4306014,585.8,ISS FACILITY SERVICES LTD FCO OP,Building Mechanical and Engineering Services
FCO,FCO,22-May-13,4306014,827.92,ISS FACILITY SERVICES LTD FCO OP,Grounds Maintenance
FCO,FCO,22-May-13,4306014,88.61,ISS FACILITY SERVICES LTD FCO OP,Contract Fees
FCO,FCO,22-May-13,4306014,33.15,ISS FACILITY SERVICES LTD FCO OP,Contract Fees
FCO,FCO,22-May-13,4306014,19.95,ISS FACILITY SERVICES LTD FCO OP,Contract Fees
FCO,FCO,22-May-13,4306014,86.1,ISS FACILITY SERVICES LTD FCO OP,Contract Fees
FCO,FCO,22-May-13,4306014,16.58,ISS FACILITY SERVICES LTD FCO OP,Contract Fees
FCO,FCO,22-May-13,4306014,58.15,ISS FACILITY SERVICES LTD FCO OP,Contract Fees
FCO,FCO,22-May-13,4306017,380.36,ISS FACILITY SERVICES LTD FCO OP,Building Fabric Services
FCO,FCO,22-May-13,4306017,518.31,ISS FACILITY SERVICES LTD FCO OP,Residential Property Services
FCO,FCO,22-May-13,4306017,388.67,ISS FACILITY SERVICES LTD FCO OP,Reception Services
FCO,FCO,22-May-13,4306017,610.9,ISS FACILITY SERVICES LTD FCO OP,Miscellaneous Expenditure: inc subscriptions and equipment maintenance
FCO,FCO,22-May-13,4306017,"18,635.98",ISS FACILITY SERVICES LTD FCO OP,Manned Guarding Services
FCO,FCO,22-May-13,4306017,780.62,ISS FACILITY SERVICES LTD FCO OP,Cleaning & Waste
FCO,FCO,22-May-13,4306017,235.17,ISS FACILITY SERVICES LTD FCO OP,Office Support Services
FCO,FCO,22-May-13,4306017,165.22,ISS FACILITY SERVICES LTD FCO OP,Repair and maintenance of furniture and fittings
FCO,FCO,22-May-13,4306017,347.23,ISS FACILITY SERVICES LTD FCO OP,Mail & Porterage Services
FCO,FCO,22-May-13,4306017,"1,252.46",ISS FACILITY SERVICES LTD FCO OP,Grounds Maintenance
FCO,FCO,22-May-13,4306017,"4,124.72",ISS FACILITY SERVICES LTD FCO OP,Building Mechanical and Engineering Services
FCO,FCO,22-May-13,4306017,551.82,ISS FACILITY SERVICES LTD FCO OP,Contract Fees
FCO,FCO,22-May-13,4306017,345.5,ISS FACILITY SERVICES LTD FCO OP,Contract Fees
FCO,FCO,22-May-13,4306017,172.75,ISS FACILITY SERVICES LTD FCO OP,Contract Fees
FCO,FCO,22-May-13,4306017,397.33,ISS FACILITY SERVICES LTD FCO OP,Contract Fees
FCO,FCO,22-May-13,4306017,172.75,ISS FACILITY SERVICES LTD FCO OP,Contract Fees
FCO,FCO,22-May-13,4306017,518.26,ISS FACILITY SERVICES LTD FCO OP,Contract Fees
FCO,FCO,22-May-13,4306017,224.57,ISS FACILITY SERVICES LTD FCO OP,Contract Fees
FCO,FCO,22-May-13,4306017,"2,340.97",ISS FACILITY SERVICES LTD FCO OP,Unscheduled repairs to building infrastructure
FCO,FCO,22-May-13,4306018,330.74,ISS FACILITY SERVICES LTD FCO OP,FM Interserve BES Maintenance
FCO,FCO,22-May-13,4306018,"1,830.93",ISS FACILITY SERVICES LTD FCO OP,FM Interserve BES Maintenance
FCO,FCO,22-May-13,4306018,"1,855.22",ISS FACILITY SERVICES LTD FCO OP,Unscheduled repairs to building infrastructure
FCO,FCO,22-May-13,4306018,"2,134.34",ISS FACILITY SERVICES LTD FCO OP,FM Interserve BES Maintenance
FCO,FCO,22-May-13,4306018,"1,046.24",ISS FACILITY SERVICES LTD FCO OP,FM Interserve BES Maintenance
FCO,FCO,22-May-13,4306018,120.94,ISS FACILITY SERVICES LTD FCO OP,FM Interserve BES Maintenance
FCO,FCO,22-May-13,4306018,"2,134.34",ISS FACILITY SERVICES LTD FCO OP,FM Interserve BES Maintenance
FCO,FCO,22-May-13,4306018,329.57,ISS FACILITY SERVICES LTD FCO OP,FM Interserve BES Maintenance
FCO,FCO,22-May-13,4306018,355.72,ISS FACILITY SERVICES LTD FCO OP,FM Interserve BES Maintenance
FCO,FCO,22-May-13,4306018,187.25,ISS FACILITY SERVICES LTD FCO OP,FM Interserve BES Maintenance
FCO,FCO,22-May-13,4306018,146.39,ISS FACILITY SERVICES LTD FCO OP,Unscheduled repairs to building infrastructure
FCO,FCO,22-May-13,4306018,"12,031.81",ISS FACILITY SERVICES LTD FCO OP,FM Interserve BES Maintenance
FCO,FCO,22-May-13,4306018,"2,468.06",ISS FACILITY SERVICES LTD FCO OP,FM Interserve BES Maintenance
FCO,FCO,22-May-13,4306018,"8,500.73",ISS FACILITY SERVICES LTD FCO OP,FM Interserve BES Maintenance
FCO,FCO,22-May-13,4306018,301.32,ISS FACILITY SERVICES LTD FCO OP,FM Interserve BES Maintenance
FCO,FCO,22-May-13,4306018,23.15,ISS FACILITY SERVICES LTD FCO OP,FM Interserve BES Maintenance
FCO,FCO,22-May-13,4306018,128.16,ISS FACILITY SERVICES LTD FCO OP,FM Interserve BES Maintenance
FCO,FCO,22-May-13,4306018,129.87,ISS FACILITY SERVICES LTD FCO OP,Unscheduled repairs to building infrastructure
FCO,FCO,22-May-13,4306018,149.4,ISS FACILITY SERVICES LTD FCO OP,FM Interserve BES Maintenance
FCO,FCO,22-May-13,4306018,73.24,ISS FACILITY SERVICES LTD FCO OP,FM Interserve BES Maintenance
FCO,FCO,22-May-13,4306018,8.46,ISS FACILITY SERVICES LTD FCO OP,FM Interserve BES Maintenance
FCO,FCO,22-May-13,4306018,149.4,ISS FACILITY SERVICES LTD FCO OP,FM Interserve BES Maintenance
FCO,FCO,22-May-13,4306018,23.07,ISS FACILITY SERVICES LTD FCO OP,FM Interserve BES Maintenance
FCO,FCO,22-May-13,4306018,24.9,ISS FACILITY SERVICES LTD FCO OP,FM Interserve BES Maintenance
FCO,FCO,22-May-13,4306018,13.11,ISS FACILITY SERVICES LTD FCO OP,FM Interserve BES Maintenance
FCO,FCO,22-May-13,4306018,10.25,ISS FACILITY SERVICES LTD FCO OP,Unscheduled repairs to building infrastructure
FCO,FCO,22-May-13,4306018,842.23,ISS FACILITY SERVICES LTD FCO OP,FM Interserve BES Maintenance
FCO,FCO,22-May-13,4306018,172.77,ISS FACILITY SERVICES LTD FCO OP,FM Interserve BES Maintenance
FCO,FCO,22-May-13,4306018,595.05,ISS FACILITY SERVICES LTD FCO OP,FM Interserve BES Maintenance
FCO,FCO,22-May-13,4306018,21.09,ISS FACILITY SERVICES LTD FCO OP,FM Interserve BES Maintenance
FCO,FCO,22-May-13,4306020,"3,014.22",ISS FACILITY SERVICES LTD FCO OP,Building Fabric Services
FCO,FCO,22-May-13,4306020,"2,471.73",ISS FACILITY SERVICES LTD FCO OP,Residential Property Services
FCO,FCO,22-May-13,4306020,"1,780.05",ISS FACILITY SERVICES LTD FCO OP,Reception Services
FCO,FCO,22-May-13,4306020,"3,314.65",ISS FACILITY SERVICES LTD FCO OP,Miscellaneous Expenditure: inc subscriptions and equipment maintenance
FCO,FCO,22-May-13,4306020,"40,711.93",ISS FACILITY SERVICES LTD FCO OP,Manned Guarding Services
FCO,FCO,22-May-13,4306020,"2,834.64",ISS FACILITY SERVICES LTD FCO OP,Cleaning & Waste
FCO,FCO,22-May-13,4306020,974.79,ISS FACILITY SERVICES LTD FCO OP,Office Support Services
FCO,FCO,22-May-13,4306020,800.17,ISS FACILITY SERVICES LTD FCO OP,Repair and maintenance of furniture and fittings
FCO,FCO,22-May-13,4306020,"1,503.72",ISS FACILITY SERVICES LTD FCO OP,Mail & Porterage Services
FCO,FCO,22-May-13,4306020,"5,216.19",ISS FACILITY SERVICES LTD FCO OP,Grounds Maintenance
FCO,FCO,22-May-13,4306020,"9,297.88",ISS FACILITY SERVICES LTD FCO OP,Building Mechanical and Engineering Services
FCO,FCO,22-May-13,4306020,"20,663.40",ISS FACILITY SERVICES LTD FCO OP,Contract Fees
FCO,FCO,22-May-13,4306020,883.97,ISS FACILITY SERVICES LTD FCO OP,Contract Fees
FCO,FCO,22-May-13,4306020,441.98,ISS FACILITY SERVICES LTD FCO OP,Contract Fees
FCO,FCO,22-May-13,4306020,"1,121.30",ISS FACILITY SERVICES LTD FCO OP,Contract Fees
FCO,FCO,22-May-13,4306020,441.98,ISS FACILITY SERVICES LTD FCO OP,Contract Fees
FCO,FCO,22-May-13,4306020,"1,325.95",ISS FACILITY SERVICES LTD FCO OP,Contract Fees
FCO,FCO,22-May-13,4306020,679.32,ISS FACILITY SERVICES LTD FCO OP,Contract Fees
FCO,FCO,22-May-13,4306020,"6,401.13",ISS FACILITY SERVICES LTD FCO OP,Unscheduled repairs to building infrastructure
FCO,FCO,22-May-13,4306020,211,ISS FACILITY SERVICES LTD FCO OP,Building Fabric Services
FCO,FCO,22-May-13,4306020,173.02,ISS FACILITY SERVICES LTD FCO OP,Residential Property Services
FCO,FCO,22-May-13,4306020,124.6,ISS FACILITY SERVICES LTD FCO OP,Reception Services
FCO,FCO,22-May-13,4306020,232.03,ISS FACILITY SERVICES LTD FCO OP,Miscellaneous Expenditure: inc subscriptions and equipment maintenance
FCO,FCO,22-May-13,4306020,"2,849.84",ISS FACILITY SERVICES LTD FCO OP,Manned Guarding Services
FCO,FCO,22-May-13,4306020,198.43,ISS FACILITY SERVICES LTD FCO OP,Cleaning & Waste
FCO,FCO,22-May-13,4306020,68.24,ISS FACILITY SERVICES LTD FCO OP,Office Support Services
FCO,FCO,22-May-13,4306020,56.01,ISS FACILITY SERVICES LTD FCO OP,Repair and maintenance of furniture and fittings
FCO,FCO,22-May-13,4306020,105.26,ISS FACILITY SERVICES LTD FCO OP,Mail & Porterage Services
FCO,FCO,22-May-13,4306020,365.13,ISS FACILITY SERVICES LTD FCO OP,Grounds Maintenance
FCO,FCO,22-May-13,4306020,650.85,ISS FACILITY SERVICES LTD FCO OP,Building Mechanical and Engineering Services
FCO,FCO,22-May-13,4306020,"1,446.44",ISS FACILITY SERVICES LTD FCO OP,Contract Fees
FCO,FCO,22-May-13,4306020,61.88,ISS FACILITY SERVICES LTD FCO OP,Contract Fees
FCO,FCO,22-May-13,4306020,30.94,ISS FACILITY SERVICES LTD FCO OP,Contract Fees
FCO,FCO,22-May-13,4306020,78.49,ISS FACILITY SERVICES LTD FCO OP,Contract Fees
FCO,FCO,22-May-13,4306020,30.94,ISS FACILITY SERVICES LTD FCO OP,Contract Fees
FCO,FCO,22-May-13,4306020,92.82,ISS FACILITY SERVICES LTD FCO OP,Contract Fees
FCO,FCO,22-May-13,4306020,47.55,ISS FACILITY SERVICES LTD FCO OP,Contract Fees
FCO,FCO,22-May-13,4306020,448.08,ISS FACILITY SERVICES LTD FCO OP,Unscheduled repairs to building infrastructure
FCO,FCO,22-May-13,4306023,"1,088.73",ISS FACILITY SERVICES LTD FCO OP,Building Fabric Services
FCO,FCO,22-May-13,4306023,957.76,ISS FACILITY SERVICES LTD FCO OP,Residential Property Services
FCO,FCO,22-May-13,4306023,748.25,ISS FACILITY SERVICES LTD FCO OP,Reception Services
FCO,FCO,22-May-13,4306023,522.42,ISS FACILITY SERVICES LTD FCO OP,Miscellaneous Expenditure: inc subscriptions and equipment maintenance
FCO,FCO,22-May-13,4306023,"18,976.52",ISS FACILITY SERVICES LTD FCO OP,Manned Guarding Services
FCO,FCO,22-May-13,4306023,"3,110.49",ISS FACILITY SERVICES LTD FCO OP,Cleaning & Waste
FCO,FCO,22-May-13,4306023,573.71,ISS FACILITY SERVICES LTD FCO OP,Office Support Services
FCO,FCO,22-May-13,4306023,"1,023.61",ISS FACILITY SERVICES LTD FCO OP,Repair and maintenance of furniture and fittings
FCO,FCO,22-May-13,4306023,"1,409.23",ISS FACILITY SERVICES LTD FCO OP,Mail & Porterage Services
FCO,FCO,22-May-13,4306023,"1,956.77",ISS FACILITY SERVICES LTD FCO OP,Grounds Maintenance
FCO,FCO,22-May-13,4306023,"7,073.25",ISS FACILITY SERVICES LTD FCO OP,Building Mechanical and Engineering Services
FCO,FCO,22-May-13,4306023,"4,875.81",ISS FACILITY SERVICES LTD FCO OP,Contract Fees
FCO,FCO,22-May-13,4306023,291.91,ISS FACILITY SERVICES LTD FCO OP,Contract Fees
FCO,FCO,22-May-13,4306023,269.64,ISS FACILITY SERVICES LTD FCO OP,Contract Fees
FCO,FCO,22-May-13,4306023,836.26,ISS FACILITY SERVICES LTD FCO OP,Contract Fees
FCO,FCO,22-May-13,4306023,145.95,ISS FACILITY SERVICES LTD FCO OP,Contract Fees
FCO,FCO,22-May-13,4306023,747.09,ISS FACILITY SERVICES LTD FCO OP,Contract Fees
FCO,FCO,22-May-13,4306023,240.47,ISS FACILITY SERVICES LTD FCO OP,Contract Fees
FCO,FCO,22-May-13,4306023,"4,024.69",ISS FACILITY SERVICES LTD FCO OP,Unscheduled repairs to building infrastructure
FCO,FCO,22-May-13,4309256,"49,099.30",CENTER FOR THE STUDY OF ISLAM AND DEMOCRACY,Programme Spend (Oracle Projects Control Account)
FCO,FCO,22-May-13,4307760,"32,000.00",DEVELOPMENT PEOPLE & NATURE ASS,Programme Spend (Oracle Projects Control Account)
FCO,FCO,23-May-13,4301235,"4,780.68",HAYS SPECIALIST RECRUITMENT LTD,Specialist Contractors
FCO,FCO,23-May-13,4301235,"14,231.36",HAYS SPECIALIST RECRUITMENT LTD,Assets Under Construction (Oracle PA Control Account)
FCO,FCO,23-May-13,4301235,89.14,HAYS SPECIALIST RECRUITMENT LTD,Hays: Exams and Assessments
FCO,FCO,23-May-13,4301235,517.5,HAYS SPECIALIST RECRUITMENT LTD,Fee Paid Officers
FCO,FCO,23-May-13,4301235,215.77,HAYS SPECIALIST RECRUITMENT LTD,Hays: Exams and Assessments
FCO,FCO,23-May-13,4301235,210.12,HAYS SPECIALIST RECRUITMENT LTD,Hays: Exams and Assessments
FCO,FCO,23-May-13,4301235,"10,143.00",HAYS SPECIALIST RECRUITMENT LTD,Specialist Contractors
FCO,FCO,23-May-13,4301235,371.07,HAYS SPECIALIST RECRUITMENT LTD,Specialist Contractors
FCO,FCO,23-May-13,4301235,"5,320.00",HAYS SPECIALIST RECRUITMENT LTD,Specialist Contractors
FCO,FCO,23-May-13,4301235,89.14,HAYS SPECIALIST RECRUITMENT LTD,Hays: Exams and Assessments
FCO,FCO,23-May-13,4301235,8.28,HAYS SPECIALIST RECRUITMENT LTD,Hays: Exams and Assessments
FCO,FCO,23-May-13,4301235,31.05,HAYS SPECIALIST RECRUITMENT LTD,Hays: Exams and Assessments
FCO,FCO,23-May-13,4301235,20.7,HAYS SPECIALIST RECRUITMENT LTD,Hays: Exams and Assessments
FCO,FCO,23-May-13,4301235,343.81,HAYS SPECIALIST RECRUITMENT LTD,Hays: Exams and Assessments
FCO,FCO,23-May-13,4301235,89.14,HAYS SPECIALIST RECRUITMENT LTD,Hays: Exams and Assessments
FCO,FCO,23-May-13,4301235,89.14,HAYS SPECIALIST RECRUITMENT LTD,Hays: Exams and Assessments
FCO,FCO,23-May-13,4301235,114.6,HAYS SPECIALIST RECRUITMENT LTD,Hays: Exams and Assessments
FCO,FCO,23-May-13,4301235,216.47,HAYS SPECIALIST RECRUITMENT LTD,Language Exams (excl Hays)
FCO,FCO,23-May-13,4301235,44.56,HAYS SPECIALIST RECRUITMENT LTD,Hays: Exams and Assessments
FCO,FCO,23-May-13,4301235,"1,978.76",HAYS SPECIALIST RECRUITMENT LTD,Fee Paid Officers
FCO,FCO,23-May-13,4301235,"4,500.00",HAYS SPECIALIST RECRUITMENT LTD,Specialist Contractors
FCO,FCO,23-May-13,4301235,"1,500.00",HAYS SPECIALIST RECRUITMENT LTD,Specialist Contractors
FCO,FCO,23-May-13,4301235,318.35,HAYS SPECIALIST RECRUITMENT LTD,Hays: Exams and Assessments
FCO,FCO,23-May-13,4301235,"9,346.05",HAYS SPECIALIST RECRUITMENT LTD,Assets Under Construction (Oracle PA Control Account)
FCO,FCO,23-May-13,4301235,89.14,HAYS SPECIALIST RECRUITMENT LTD,Language Exams (excl Hays)
FCO,FCO,23-May-13,4301235,"5,030.10",HAYS SPECIALIST RECRUITMENT LTD,Specialist Contractors
FCO,FCO,23-May-13,4301235,"15,090.30",HAYS SPECIALIST RECRUITMENT LTD,Specialist Contractors
FCO,FCO,23-May-13,4301235,50.94,HAYS SPECIALIST RECRUITMENT LTD,Hays: Exams and Assessments
FCO,FCO,23-May-13,4301235,101.87,HAYS SPECIALIST RECRUITMENT LTD,Hays: Exams and Assessments
FCO,FCO,23-May-13,4301235,210.12,HAYS SPECIALIST RECRUITMENT LTD,Hays: Exams and Assessments
FCO,FCO,23-May-13,4301235,203.74,HAYS SPECIALIST RECRUITMENT LTD,Hays: Exams and Assessments
FCO,FCO,23-May-13,4301235,89.14,HAYS SPECIALIST RECRUITMENT LTD,Hays: Exams and Assessments
FCO,FCO,23-May-13,4301235,191.01,HAYS SPECIALIST RECRUITMENT LTD,Hays: Exams and Assessments
FCO,FCO,23-May-13,4301235,127.34,HAYS SPECIALIST RECRUITMENT LTD,Hays: Exams and Assessments
FCO,FCO,23-May-13,4301235,89.14,HAYS SPECIALIST RECRUITMENT LTD,Hays: Exams and Assessments
FCO,FCO,23-May-13,4301235,974.14,HAYS SPECIALIST RECRUITMENT LTD,Hays: Exams and Assessments
FCO,FCO,23-May-13,4301235,210.08,HAYS SPECIALIST RECRUITMENT LTD,Language Exams (excl Hays)
FCO,FCO,23-May-13,4301235,152.81,HAYS SPECIALIST RECRUITMENT LTD,Hays: Exams and Assessments
FCO,FCO,23-May-13,4301235,101.87,HAYS SPECIALIST RECRUITMENT LTD,Hays: Exams and Assessments
FCO,FCO,23-May-13,4301235,"6,184.90",HAYS SPECIALIST RECRUITMENT LTD,Finance Consultancy
FCO,FCO,23-May-13,4301235,191.01,HAYS SPECIALIST RECRUITMENT LTD,Hays: Exams and Assessments
FCO,FCO,23-May-13,4301235,44.56,HAYS SPECIALIST RECRUITMENT LTD,Hays: Exams and Assessments
FCO,FCO,23-May-13,4301235,"6,050.00",HAYS SPECIALIST RECRUITMENT LTD,Finance Consultancy
FCO,FCO,23-May-13,4301235,"10,815.75",HAYS SPECIALIST RECRUITMENT LTD,Assets Under Construction (Oracle PA Control Account)
FCO,FCO,23-May-13,4301235,"5,796.00",HAYS SPECIALIST RECRUITMENT LTD,Specialist Contractors
FCO,FCO,23-May-13,4301235,"12,420.00",HAYS SPECIALIST RECRUITMENT LTD,Assets Under Construction (Oracle PA Control Account)
FCO,FCO,23-May-13,4301235,203.74,HAYS SPECIALIST RECRUITMENT LTD,Hays: Exams and Assessments
FCO,FCO,23-May-13,4301235,152.8,HAYS SPECIALIST RECRUITMENT LTD,Hays: Exams and Assessments
FCO,FCO,23-May-13,4301235,"4,838.62",HAYS SPECIALIST RECRUITMENT LTD,Specialist Contractors
FCO,FCO,23-May-13,4301235,"6,900.00",HAYS SPECIALIST RECRUITMENT LTD,Finance Consultancy
FCO,FCO,23-May-13,4301235,50.94,HAYS SPECIALIST RECRUITMENT LTD,Hays: Exams and Assessments
FCO,FCO,23-May-13,4301235,89.14,HAYS SPECIALIST RECRUITMENT LTD,Hays: Exams and Assessments
FCO,FCO,23-May-13,4301235,229.21,HAYS SPECIALIST RECRUITMENT LTD,Hays: Exams and Assessments
FCO,FCO,23-May-13,4301235,152.8,HAYS SPECIALIST RECRUITMENT LTD,Hays: Exams and Assessments
FCO,FCO,23-May-13,4301235,50.94,HAYS SPECIALIST RECRUITMENT LTD,Hays: Exams and Assessments
FCO,FCO,23-May-13,4301235,101.87,HAYS SPECIALIST RECRUITMENT LTD,Hays: Exams and Assessments
FCO,FCO,23-May-13,4301235,-371.07,HAYS SPECIALIST RECRUITMENT LTD,Specialist Contractors
FCO,FCO,23-May-13,4301235,158.67,HAYS SPECIALIST RECRUITMENT LTD,Specialist Contractors
FCO,FCO,23-May-13,4301235,956.14,HAYS SPECIALIST RECRUITMENT LTD,Specialist Contractors
FCO,FCO,23-May-13,4301235,395.75,HAYS SPECIALIST RECRUITMENT LTD,Fee Paid Officers
FCO,FCO,23-May-13,4301235,-210.12,HAYS SPECIALIST RECRUITMENT LTD,Hays: Exams and Assessments
FCO,FCO,23-May-13,4301235,210.12,HAYS SPECIALIST RECRUITMENT LTD,Hays: Exams and Assessments
FCO,FCO,23-May-13,4301235,"-4,780.68",HAYS SPECIALIST RECRUITMENT LTD,Specialist Contractors
FCO,FCO,23-May-13,4301235,"4,780.68",HAYS SPECIALIST RECRUITMENT LTD,Specialist Contractors
FCO,FCO,23-May-13,4301235,956.14,HAYS SPECIALIST RECRUITMENT LTD,Specialist Contractors
FCO,FCO,23-May-13,4301235,-956.14,HAYS SPECIALIST RECRUITMENT LTD,Specialist Contractors
FCO,FCO,23-May-13,4301235,-31.05,HAYS SPECIALIST RECRUITMENT LTD,Hays: Exams and Assessments
FCO,FCO,23-May-13,4301235,-20.7,HAYS SPECIALIST RECRUITMENT LTD,Hays: Exams and Assessments
FCO,FCO,23-May-13,4301235,31.05,HAYS SPECIALIST RECRUITMENT LTD,Hays: Exams and Assessments
FCO,FCO,23-May-13,4301235,20.7,HAYS SPECIALIST RECRUITMENT LTD,Hays: Exams and Assessments
FCO,FCO,23-May-13,4301235,-215.77,HAYS SPECIALIST RECRUITMENT LTD,Hays: Exams and Assessments
FCO,FCO,23-May-13,4301235,165,HAYS SPECIALIST RECRUITMENT LTD,Hays: Exams and Assessments
FCO,FCO,23-May-13,4301235,50.77,HAYS SPECIALIST RECRUITMENT LTD,Hays: Exams and Assessments
FCO,FCO,23-May-13,4301235,-8.28,HAYS SPECIALIST RECRUITMENT LTD,Hays: Exams and Assessments
FCO,FCO,23-May-13,4301235,8.28,HAYS SPECIALIST RECRUITMENT LTD,Hays: Exams and Assessments
FCO,FCO,23-May-13,4301235,"-14,231.36",HAYS SPECIALIST RECRUITMENT LTD,Assets Under Construction (Oracle PA Control Account)
FCO,FCO,23-May-13,4301235,"10,996.96",HAYS SPECIALIST RECRUITMENT LTD,Assets Under Construction (Oracle PA Control Account)
FCO,FCO,23-May-13,4301235,"-10,815.75",HAYS SPECIALIST RECRUITMENT LTD,Assets Under Construction (Oracle PA Control Account)
FCO,FCO,23-May-13,4301235,"7,969.50",HAYS SPECIALIST RECRUITMENT LTD,Assets Under Construction (Oracle PA Control Account)
FCO,FCO,23-May-13,4314691,"31,635.65",N A MOVING SERVICES LTD,Heavy Baggage
FCO,FCO,23-May-13,4314691,"1,480.00",N A MOVING SERVICES LTD,Heavy Baggage
FCO,FCO,23-May-13,4314694,"161,798.53",N A MOVING SERVICES LTD,Heavy Baggage
FCO,FCO,23-May-13,4314694,"10,360.00",N A MOVING SERVICES LTD,Heavy Baggage
FCO,FCO,23-May-13,4314696,"128,975.75",N A MOVING SERVICES LTD,Heavy Baggage
FCO,FCO,23-May-13,4314696,"10,952.00",N A MOVING SERVICES LTD,Heavy Baggage
FCO,FCO,23-May-13,4313796,"20,606.83",IESCO,Electricity Non-Residential
FCO,FCO,23-May-13,4313796,"17,556.56",IESCO,Electricity Residential
FCO,FCO,23-May-13,4306058,"49,225.76",GABORONE CITY COUNCIL,Rental Payments - non residential
FCO,FCO,23-May-13,4315416,"28,555.34",PROFESIYNA YURYDYCHNA GRUPA,Residential Property Services
FCO,FCO,23-May-13,4272497,"58,432.58",INSTITUTE FOR ESSENTIAL SERVICES REFORM,Programme Spend (Oracle Projects Control Account)
FCO,FCO,23-May-13,4315277,"623,267.98",CHURCH WORLD SERVICE-PAKISTAN,Programme Spend (Oracle Projects Control Account)
FCO,FCO,23-May-13,4312963,"1,013,863.00",MABEY BRIDGE LTD,Programme Spend (Oracle Projects Control Account)
FCO,FCO,23-May-13,4312963,"-1,013,863.00",MABEY BRIDGE LTD,Programme Spend (Oracle Projects Control Account)
FCO,FCO,23-May-13,4312963,"821,229.03",MABEY BRIDGE LTD,Programme Spend (Oracle Projects Control Account)
FCO,FCO,23-May-13,4313174,"32,455.45",The Centre for Criminal Procedure and Reform at Renmin University of China,Programme Spend (Oracle Projects Control Account)
FCO,FCO,23-May-13,4313173,"31,009.81",BEIJING NORMAL UNIVERSITY,Programme Spend (Oracle Projects Control Account)
FCO,FCO,23-May-13,4314745,"37,740.00",MICRO SYSTEMATION LTD,Programme Spend (Oracle Projects Control Account)
FCO,FCO,23-May-13,4312804,"44,990.20",ACACIA HEALTH INSURANCE,Post - Air Travel
FCO,FCO,24-May-13,4315981,"21,239.03",HMRC HM REVENUE AND CUSTOMS,Programme Spend (Oracle Projects Control Account)
FCO,FCO,24-May-13,4316182,"17,738.06",GILBERT-ASH FITOUT LIMITED,Assets Under Construction (Oracle PA Control Account)
FCO,FCO,24-May-13,4316182,"57,641.36",GILBERT-ASH FITOUT LIMITED,Assets Under Construction (Oracle PA Control Account)
FCO,FCO,24-May-13,4316034,"323,665.33",INTERNATIONAL COMMISSION FOR MISSING PERSONS,Programme Spend (Oracle Projects Control Account)
FCO,FCO,24-May-13,4306787,"156,630.68",OROSTREAM INTERNATIONAL CONTRACTS LTD,Assets Under Construction (Oracle PA Control Account)
FCO,FCO,24-May-13,4315813,"32,001.76",AUSWAERTIGES AMT,Rental Payments - non residential
FCO,FCO,24-May-13,4308274,"61,707.55",BK SHRESTHA AND BUILDERS PVT LTD,Construction Project more than 10k
FCO,FCO,24-May-13,4307677,"62,352.88",UNION FRANCO ARABE D'ASSURANCES ET DE REASSURANCES SAL (UFA),Cleaning & Waste
FCO,FCO,24-May-13,4307677,381.46,UNION FRANCO ARABE D'ASSURANCES ET DE REASSURANCES SAL (UFA),Programme Spend (Oracle Projects Control Account)
FCO,FCO,24-May-13,4307677,"-62,352.88",UNION FRANCO ARABE D'ASSURANCES ET DE REASSURANCES SAL (UFA),Cleaning & Waste
FCO,FCO,27-May-13,4318241,"18,144.70",BELL POTTINGER COMMUNICATIONS LTD,General Information Services
FCO,FCO,27-May-13,4318241,"18,144.70",BELL POTTINGER COMMUNICATIONS LTD,Selling Into Wider Markets Expenditure
FCO,FCO,27-May-13,4318241,"2,835.11",BELL POTTINGER COMMUNICATIONS LTD,General Information Services
FCO,FCO,27-May-13,4315965,"26,274.69",AMA SPA,Waste Disposal
FCO,FCO,27-May-13,4315346,"66,743.90",AFGHANISTAN JUSTICE ORGANIZATION,Programme Spend (Oracle Projects Control Account)
FCO,FCO,27-May-13,4313913,"29,508.07",NAZIR AHMAD AFGHAN CONSTRUCTION COMPANY,Programme Spend (Oracle Projects Control Account)
FCO,FCO,28-May-13,4316889,"59,151.12",VODAFONE LTD-CABLE & WIRELESS UK,FTN Unitary Payment
FCO,FCO,28-May-13,4316892,"44,710.00",VODAFONE LTD-CABLE & WIRELESS UK,FTN Unitary Payment
FCO,FCO,28-May-13,4316895,"797,516.15",VODAFONE LTD-CABLE & WIRELESS UK,FTN Unitary Payment
FCO,FCO,28-May-13,4316899,"28,974.00",VODAFONE LTD-CABLE & WIRELESS UK,FTN Unitary Payment
FCO,FCO,28-May-13,4316899,"5,794.80",VODAFONE LTD-CABLE & WIRELESS UK,FTN Unitary Payment
FCO,FCO,28-May-13,4316914,"98,324.02",VODAFONE LTD-CABLE & WIRELESS UK,FTN Unitary Payment
FCO,FCO,28-May-13,4316914,"19,664.80",VODAFONE LTD-CABLE & WIRELESS UK,FTN Unitary Payment
FCO,FCO,28-May-13,4292586,"19,276.00",HEWLETT PACKARD LTD,Assets Under Construction (Oracle PA Control Account)
FCO,FCO,28-May-13,4292586,"1,896.00",HEWLETT PACKARD LTD,Assets Under Construction (Oracle PA Control Account)
FCO,FCO,28-May-13,4316990,"34,400.00",PORTCULLIS COMPUTER SECURITY LTD,IT/IS Consultancy
FCO,FCO,28-May-13,4316990,"6,880.00",PORTCULLIS COMPUTER SECURITY LTD,IT/IS Consultancy
FCO,FCO,28-May-13,4316839,"57,504.23",WESTMINSTER FOUNDATION FOR DEMOCRACY,Programme Spend (Oracle Projects Control Account)
FCO,FCO,28-May-13,4316835,"127,019.07",KELLOGG BROWN & ROOT,Property Maintenance Overseas Residential
FCO,FCO,28-May-13,4317956,"38,100.00",IOM INTERNATIONAL ORGANIZATION FOR MIGRATION,Programme Spend (Oracle Projects Control Account)
FCO,FCO,28-May-13,4316431,"42,340.00",PAKISTAN INSTITUTE OF LEGISLATIVE DEVELOPMENT & TRANSPARENCY,Programme Spend (Oracle Projects Control Account)
FCO,FCO,28-May-13,4318103,"80,752.01",FACEO FRANCE,Property Maintenance Overseas Non Residential
FCO,FCO,28-May-13,4318103,"11,350.83",FACEO FRANCE,Cleaning & Waste
FCO,FCO,28-May-13,4318103,"2,139.43",FACEO FRANCE,Property Maintenance Overseas Non Residential
FCO,FCO,28-May-13,4318103,"1,561.27",FACEO FRANCE,Property Maintenance Overseas Residential
FCO,FCO,28-May-13,4318109,"80,752.01",FACEO FRANCE,Property Maintenance Overseas Non Residential
FCO,FCO,28-May-13,4318109,"11,350.83",FACEO FRANCE,Cleaning & Waste
FCO,FCO,28-May-13,4318109,"2,139.43",FACEO FRANCE,Property Maintenance Overseas Non Residential
FCO,FCO,28-May-13,4318109,"1,561.27",FACEO FRANCE,Property Maintenance Overseas Residential
FCO,FCO,28-May-13,4318315,"38,530.90",SCHWINN WAREHOUSING & STORAGE,Rental Payments - non residential
FCO,FCO,28-May-13,4319733,"68,731.77",New Era Oil & Gas,Fuel Oil Non-Residential
FCO,FCO,29-May-13,4320289,"46,700.00",INTERNATIONAL COFFEE ORGANIZATION,Protocol - General VAT Refunds to Other Organisations
FCO,FCO,29-May-13,4299088,"275,275.00",THALES UK LTD,IT/IS Consultancy
FCO,FCO,29-May-13,4320404,"33,500.00",THE KONIGSWINTER CONFERENCE,Programme Spend (Oracle Projects Control Account)
FCO,FCO,29-May-13,4316861,"94,908.28",THE TREASURY SOLICITOR,Legal Consultancy
FCO,FCO,29-May-13,4316861,"18,981.66",THE TREASURY SOLICITOR,Legal Consultancy
FCO,FCO,29-May-13,4316861,"-94,908.28",THE TREASURY SOLICITOR,Legal Consultancy
FCO,FCO,29-May-13,4316861,"-18,981.66",THE TREASURY SOLICITOR,Legal Consultancy
FCO,FCO,29-May-13,4316861,"94,908.28",THE TREASURY SOLICITOR,Legal Consultancy
FCO,FCO,29-May-13,4317965,"35,242.50",THE TREASURY SOLICITOR,Legal Consultancy
FCO,FCO,29-May-13,4320392,"123,273.48",WESTMINSTER FOUNDATION FOR DEMOCRACY,Programme Spend (Oracle Projects Control Account)
FCO,FCO,29-May-13,4314256,"24,030.00",FCO SERVICES,IT/IS Consultancy
FCO,FCO,29-May-13,4317151,"64,955.24",FCO SERVICES,Assets Under Construction (Oracle PA Control Account)
FCO,FCO,29-May-13,4317151,"52,506.83",FCO SERVICES,Assets Under Construction (Oracle PA Control Account)
FCO,FCO,29-May-13,4317151,"4,410.00",FCO SERVICES,Assets Under Construction (Oracle PA Control Account)
FCO,FCO,29-May-13,4317151,"8,709.00",FCO SERVICES,Assets Under Construction (Oracle PA Control Account)
FCO,FCO,29-May-13,4317151,"40,761.66",FCO SERVICES,"Purchase of Furniture, Fittings and Domestic Appliances"
FCO,FCO,29-May-13,4317170,"51,603.14",FCO SERVICES,Assets Under Construction (Oracle PA Control Account)
FCO,FCO,29-May-13,4317170,237.86,FCO SERVICES,Assets Under Construction (Oracle PA Control Account)
FCO,FCO,29-May-13,4317871,"32,603.25",FCO SERVICES,Vehicle Hire
FCO,FCO,29-May-13,4317871,"6,520.65",FCO SERVICES,Vehicle Hire
FCO,FCO,29-May-13,4317881,"41,791.00",FCO SERVICES,Information Systems Maintenance
FCO,FCO,29-May-13,4320384,"36,825.00",FCO SERVICES,Vehicles Miscellaneous
FCO,FCO,29-May-13,4320384,"7,365.00",FCO SERVICES,Vehicles Miscellaneous
FCO,FCO,29-May-13,4320411,"77,076.00",FCO SERVICES,Freight & Customs Clearance Charges
FCO,FCO,29-May-13,4320411,"15,415.20",FCO SERVICES,Freight & Customs Clearance Charges
FCO,FCO,29-May-13,4320489,"189,290.16",PLAZA TOWER LLC,Rental Payments - non residential
FCO,FCO,29-May-13,4320489,"2,655.65",PLAZA TOWER LLC,Electricity Non-Residential
FCO,FCO,29-May-13,4320489,"10,406.45",PLAZA TOWER LLC,Water Non-Residential
FCO,FCO,29-May-13,4320489,154.89,PLAZA TOWER LLC,Miscellaneous Expenditure: inc subscriptions and equipment maintenance
FCO,FCO,29-May-13,4316081,"25,423.45",BRICKELL BAY TOWER LTD,Rental Payments - non residential
FCO,FCO,29-May-13,4316081,31.65,BRICKELL BAY TOWER LTD,Electricity Non-Residential
FCO,FCO,29-May-13,4316081,"1,779.64",BRICKELL BAY TOWER LTD,Rates Taxes Non-Residential
FCO,FCO,29-May-13,4320258,"26,625.81",CULTURA INGLESA,Rental Payments - non residential
FCO,FCO,29-May-13,4320113,"26,490.00",BRITISH MUSEUM,Inward visits to the UK and UK Conferences
FCO,FCO,29-May-13,4320113,"5,298.00",BRITISH MUSEUM,Inward visits to the UK and UK Conferences
FCO,FCO,29-May-13,4316038,"29,043.50",HITT CONTRACTING INC,Construction Project more than 10k
FCO,FCO,29-May-13,4305570,"50,031.63",THE ASIA FOUNDATION,Programme Spend (Oracle Projects Control Account)
FCO,FCO,29-May-13,4319816,"31,688.40",3DI TECHNOLOGIES LLC,Information Systems Implementation
FCO,FCO,29-May-13,4309696,"42,561.11",COFFEY INTERNATIONAL DEVELOPMENT,Programme Spend (Oracle Projects Control Account)
FCO,FCO,29-May-13,4312362,"42,943.00",TSUNAMI AXIS LTD,Assets Under Construction (Oracle PA Control Account)
FCO,FCO,29-May-13,4312362,"8,588.60",TSUNAMI AXIS LTD,Assets Under Construction (Oracle PA Control Account)
FCO,FCO,29-May-13,4320076,"64,318.45",CRIMINAL JUSTICE TASK FORCE - CJTF,Programme Spend (Oracle Projects Control Account)
FCO,FCO,29-May-13,4320300,"40,295.68",Elixir Solutions,Programme Spend (Oracle Projects Control Account)
FCO,FCO,29-May-13,4320189,"64,686.75",M INTEGRATED SOLUTIONS,Inward visits to the UK and UK Conferences
FCO,FCO,29-May-13,4320327,"971,546.96",EUROPEAN BANK FOR CONSTRUCTION + DEVELOPMENT,Protocol - General VAT Refunds to Other Organisations
FCO,FCO,29-May-13,4322190,"23,043.11",FOREIGN AFFAIRS AND INTERNATIONAL TRADE CANADA,Property Maintenance Overseas Non Residential
FCO,FCO,29-May-13,4322190,"6,154.00",FOREIGN AFFAIRS AND INTERNATIONAL TRADE CANADA,Miscellaneous Expenditure: inc subscriptions and equipment maintenance
FCO,FCO,29-May-13,4322190,"59,445.59",FOREIGN AFFAIRS AND INTERNATIONAL TRADE CANADA,Rental Payments - non residential
FCO,FCO,30-May-13,4322769,"48,836.77",BRITISH COUNCIL,Programme Spend (Oracle Projects Control Account)
FCO,FCO,30-May-13,4322771,"48,836.77",BRITISH COUNCIL,Programme Spend (Oracle Projects Control Account)
FCO,FCO,30-May-13,4312341,"106,885.38",CHIEF ACCOUNTANT & PAYMASTER,GH/VIP Grant in Aid
FCO,FCO,30-May-13,4312341,"-106,885.38",CHIEF ACCOUNTANT & PAYMASTER,GH/VIP Grant in Aid
FCO,FCO,30-May-13,4312341,"46,019.03",CHIEF ACCOUNTANT & PAYMASTER,GH/VIP Grant in Aid
FCO,FCO,30-May-13,4312341,"56,112.70",CHIEF ACCOUNTANT & PAYMASTER,GH/VIP Grant in Aid
FCO,FCO,30-May-13,4312341,"4,321.50",CHIEF ACCOUNTANT & PAYMASTER,GH/VIP Grant in Aid
FCO,FCO,30-May-13,4312341,432.15,CHIEF ACCOUNTANT & PAYMASTER,GH/VIP Grant in Aid
FCO,FCO,30-May-13,4312341,"12,173.27",CHIEF ACCOUNTANT & PAYMASTER,GH/VIP Grant in Aid
FCO,FCO,30-May-13,4320017,"100,000.00",PRISONERS ABROAD,Human Rights: Policy and Prisoners
FCO,FCO,30-May-13,4320114,"337,496.44",KELLOGG BROWN & ROOT,Estates Management Services
FCO,FCO,30-May-13,4321405,"52,666.84",IOM INTERNATIONAL ORGANIZATION FOR MIGRATION,Programme Spend (Oracle Projects Control Account)
FCO,FCO,30-May-13,4322049,"52,037.78",GLOBAL PARTNERS GOVERNANCE PRACTICE LTD,Programme Spend (Oracle Projects Control Account)
FCO,FCO,30-May-13,4322777,"198,547.00",STRENGTHENING PARTICIPATORY ORGANISATION,Programme Spend (Oracle Projects Control Account)
FCO,FCO,30-May-13,4322784,"198,548.00",STRENGTHENING PARTICIPATORY ORGANISATION,Programme Spend (Oracle Projects Control Account)
FCO,FCO,30-May-13,4321598,"33,583.05",INTERMEDIA,Programme Spend (Oracle Projects Control Account)
FCO,FCO,30-May-13,4322011,"26,666.00",BULLET MARKETING LTD,General Information Services
FCO,FCO,30-May-13,4322011,"5,333.20",BULLET MARKETING LTD,General Information Services
FCO,FCO,30-May-13,4320908,"50,475.00",WOMEN EMPOWERMENT LITERACY AND DEVELOPMENT ORGANIZATION,Programme Spend (Oracle Projects Control Account)
FCO,FCO,30-May-13,4321363,"81,300.00",WOMEN EMPOWERMENT LITERACY AND DEVELOPMENT ORGANIZATION,Programme Spend (Oracle Projects Control Account)
FCO,FCO,30-May-13,4315591,37.15,ISS FACILITY SERVICES LTD FCO OP - POE,Gas Non-Residential
FCO,FCO,30-May-13,4315591,69.07,ISS FACILITY SERVICES LTD FCO OP - POE,Telephone Call Charges
FCO,FCO,30-May-13,4315591,"1,721.32",ISS FACILITY SERVICES LTD FCO OP - POE,Telephone Call Charges
FCO,FCO,30-May-13,4315591,83.17,ISS FACILITY SERVICES LTD FCO OP - POE,Telephone Call Charges
FCO,FCO,30-May-13,4315591,143.49,ISS FACILITY SERVICES LTD FCO OP - POE,Telephone Call Charges
FCO,FCO,30-May-13,4315591,36.43,ISS FACILITY SERVICES LTD FCO OP - POE,Telephone Call Charges
FCO,FCO,30-May-13,4315591,599.35,ISS FACILITY SERVICES LTD FCO OP - POE,Telephone Call Charges
FCO,FCO,30-May-13,4315591,199.89,ISS FACILITY SERVICES LTD FCO OP - POE,Waste Disposal
FCO,FCO,30-May-13,4315591,"6,911.52",ISS FACILITY SERVICES LTD FCO OP - POE,Rates Taxes Non-Residential
FCO,FCO,30-May-13,4315591,440.73,ISS FACILITY SERVICES LTD FCO OP - POE,Rental Payments - non residential
